BIOGUIDE_ID,OFFICE,QUARTER,PROGRAM,CATEGORY,SORT SEQUENCE,DATE,TRANSCODE,RECORDID,PAYEE,START DATE,END DATE,PURPOSE,AMOUNT,YEAR
,2017 OFFICE OF THE SPEAKER,Q4,GENERAL EXPENDITURES,PERSONNEL COMPENSATION,DETAIL,   ,   ,   ,ALTHOUSE JOSHUA S,10/1/2017,12/31/2017,CONSERVATIVE OUTREACH DIRECTOR,20000.01,2017
,2017 OFFICE OF THE SPEAKER,Q4,GENERAL EXPENDITURES,PERSONNEL COMPENSATION,DETAIL,   ,   ,   ,ANDRES DOUGLAS R,10/1/2017,12/31/2017,PRESS SECRETARY,27500.01,2017
,2017 OFFICE OF THE SPEAKER,Q4,GENERAL EXPENDITURES,PERSONNEL COMPENSATION,DETAIL,   ,   ,   ,ANDREWS THOMAS S,10/1/2017,12/31/2017,MEMBER SERVICES DIRECTOR,32499.99,2017
,2017 OFFICE OF THE SPEAKER,Q4,GENERAL EXPENDITURES,PERSONNEL COMPENSATION,DETAIL,   ,   ,   ,ANTELL GEOFFREY,10/1/2017,12/31/2017,ASST TO THE SPEAKER FOR POLICY,41250,2017
,2017 OFFICE OF THE SPEAKER,Q4,GENERAL EXPENDITURES,PERSONNEL COMPENSATION,DETAIL,   ,   ,   ,BENJAMIN WILLIAM C.,10/1/2017,12/31/2017,SYSTEM ADMINISTRATOR,13250.01,2017
,2017 OFFICE OF THE SPEAKER,Q4,GENERAL EXPENDITURES,PERSONNEL COMPENSATION,DETAIL,   ,   ,   ,BLAKE KRISTENE,10/1/2017,12/31/2017,DIR OF ADMIN OPERATIONS,33750,2017
,2017 OFFICE OF THE SPEAKER,Q4,GENERAL EXPENDITURES,PERSONNEL COMPENSATION,DETAIL,   ,   ,   ,BLANKENSHIP APRIL L.,10/1/2017,12/31/2017,FINANCIAL ADMINISTRATOR,5702.76,2017
,2017 OFFICE OF THE SPEAKER,Q4,GENERAL EXPENDITURES,PERSONNEL COMPENSATION,DETAIL,   ,   ,   ,BUCK BRENDAN K,10/1/2017,12/31/2017,COUNSELOR TO THE SPEAKER,43125,2017
,2017 OFFICE OF THE SPEAKER,Q4,GENERAL EXPENDITURES,PERSONNEL COMPENSATION,DETAIL,   ,   ,   ,BURKS JONATHAN,10/1/2017,12/31/2017,CHIEF OF STAFF,43125,2017
,2017 OFFICE OF THE SPEAKER,Q4,GENERAL EXPENDITURES,PERSONNEL COMPENSATION,DETAIL,   ,   ,   ,BUSH NICHOLAS J,10/1/2017,12/31/2017,SHARED EMPLOYEE,24999.99,2017
,2017 OFFICE OF THE SPEAKER,Q4,GENERAL EXPENDITURES,PERSONNEL COMPENSATION,DETAIL,   ,   ,   ,CALLAS GEORGE A,10/1/2017,12/31/2017,CHIEF TAX COUNSEL,42674.01,2017
,2017 OFFICE OF THE SPEAKER,Q4,GENERAL EXPENDITURES,PERSONNEL COMPENSATION,DETAIL,   ,   ,   ,CAMERON JESSICA E,10/1/2017,12/31/2017,LAW CLERK,13749.99,2017
,2017 OFFICE OF THE SPEAKER,Q4,GENERAL EXPENDITURES,PERSONNEL COMPENSATION,DETAIL,   ,   ,   ,CHAMBERS KELLY A.,10/1/2017,12/31/2017,SHARED EMPLOYEE,24999.99,2017
,2017 OFFICE OF THE SPEAKER,Q4,GENERAL EXPENDITURES,PERSONNEL COMPENSATION,DETAIL,   ,   ,   ,COYLE SARAH M,10/1/2017,12/31/2017,FLOOR ASSISTANT,12500.01,2017
,2017 OFFICE OF THE SPEAKER,Q4,GENERAL EXPENDITURES,PERSONNEL COMPENSATION,DETAIL,   ,   ,   ,DEN HERDER ALEXA S,10/1/2017,12/31/2017,STAFF ASSISTANT,8750.01,2017
,2017 OFFICE OF THE SPEAKER,Q4,GENERAL EXPENDITURES,PERSONNEL COMPENSATION,DETAIL,   ,   ,   ,DEN HERDER ALEXA S,9/1/2017,11/30/2017,STAFF ASSISTANT (OVERTIME),494.7,2017
,2017 OFFICE OF THE SPEAKER,Q4,GENERAL EXPENDITURES,PERSONNEL COMPENSATION,DETAIL,   ,   ,   ,DOCKERY DERRICK D,10/1/2017,12/31/2017,INTERGOVERNMENTAL OUTREACH DIR,20000.01,2017
,2017 OFFICE OF THE SPEAKER,Q4,GENERAL EXPENDITURES,PERSONNEL COMPENSATION,DETAIL,   ,   ,   ,DRESSLER JEFFREY A,10/1/2017,12/31/2017,ASST TO THE SPEAKER FOR POLICY,27500.01,2017
,2017 OFFICE OF THE SPEAKER,Q4,GENERAL EXPENDITURES,PERSONNEL COMPENSATION,DETAIL,   ,   ,   ,EASBY-SMITH ANNE S.,10/1/2017,12/31/2017,SPECIAL EVENTS COORDINATOR,23750.01,2017
,2017 OFFICE OF THE SPEAKER,Q4,GENERAL EXPENDITURES,PERSONNEL COMPENSATION,DETAIL,   ,   ,   ,EDWARDS SPENCER M,10/1/2017,12/31/2017,DEP PRESS SEC/HEAD OF ADVANCE,18375,2017
,2017 OFFICE OF THE SPEAKER,Q4,GENERAL EXPENDITURES,PERSONNEL COMPENSATION,DETAIL,   ,   ,   ,EICHHORN JARED D.,10/1/2017,12/31/2017,CLOAKROOM DIRECTOR,24999.99,2017
,2017 OFFICE OF THE SPEAKER,Q4,GENERAL EXPENDITURES,PERSONNEL COMPENSATION,DETAIL,   ,   ,   ,EPLEY MARK D,10/1/2017,12/31/2017,GENERAL COUNSEL/OVERSIGHT,43125,2017
,2017 OFFICE OF THE SPEAKER,Q4,GENERAL EXPENDITURES,PERSONNEL COMPENSATION,DETAIL,   ,   ,   ,FOLTZ DEVON N,10/1/2017,12/31/2017,DEPUTY FLOOR DIRECTOR/COUNSEL,35000.01,2017
,2017 OFFICE OF THE SPEAKER,Q4,GENERAL EXPENDITURES,PERSONNEL COMPENSATION,DETAIL,   ,   ,   ,GILLESPIE JAMES M,10/1/2017,12/31/2017,FLOOR ASSISTANT,11750.01,2017
,2017 OFFICE OF THE SPEAKER,Q4,GENERAL EXPENDITURES,PERSONNEL COMPENSATION,DETAIL,   ,   ,   ,HALPERN HUGH N.,10/1/2017,12/31/2017,FLOOR DIRECTOR - STATUTORY,43125,2017
,2017 OFFICE OF THE SPEAKER,Q4,GENERAL EXPENDITURES,PERSONNEL COMPENSATION,DETAIL,   ,   ,   ,HEMINGWAY JENNIFER A,10/1/2017,12/31/2017,DIRECTOR OF HOUSE OPERATIONS,43125,2017
,2017 OFFICE OF THE SPEAKER,Q4,GENERAL EXPENDITURES,PERSONNEL COMPENSATION,DETAIL,   ,   ,   ,HERRLE CYNTHIA A.,10/1/2017,12/31/2017,ASST TO THE SPEAKER FOR POLICY,42000,2017
,2017 OFFICE OF THE SPEAKER,Q4,GENERAL EXPENDITURES,PERSONNEL COMPENSATION,DETAIL,   ,   ,   ,HIGGINS CASEY,10/1/2017,12/31/2017,ASSIST TO SPEAKER FOR POLICY,39603.75,2017
,2017 OFFICE OF THE SPEAKER,Q4,GENERAL EXPENDITURES,PERSONNEL COMPENSATION,DETAIL,   ,   ,   ,HOFFMANN MATTHEW,9/1/2017,9/29/2017,ASSIST TO SPEAKER FOR POLICY (OTHER COMPENSATION),440.04,2017
,2017 OFFICE OF THE SPEAKER,Q4,GENERAL EXPENDITURES,PERSONNEL COMPENSATION,DETAIL,   ,   ,   ,HOFMAN RYAN,11/1/2017,12/31/2017,SHARED EMPLOYEE,3300,2017
,2017 OFFICE OF THE SPEAKER,Q4,GENERAL EXPENDITURES,PERSONNEL COMPENSATION,DETAIL,   ,   ,   ,KEARNEY EMILY M,10/1/2017,12/31/2017,SPECIAL EVENTS SCHEDULING ASST,8750.01,2017
,2017 OFFICE OF THE SPEAKER,Q4,GENERAL EXPENDITURES,PERSONNEL COMPENSATION,DETAIL,   ,   ,   ,KEARNEY EMILY M,9/18/2017,12/31/2017,SPECIAL EVENTS SCHEDULING ASST (OVERTIME),1135.8,2017
,2017 OFFICE OF THE SPEAKER,Q4,GENERAL EXPENDITURES,PERSONNEL COMPENSATION,DETAIL,   ,   ,   ,KOHLER JOHN D,10/1/2017,12/31/2017,CORRESPONDENCE ASSISTANT,8750.01,2017
,2017 OFFICE OF THE SPEAKER,Q4,GENERAL EXPENDITURES,PERSONNEL COMPENSATION,DETAIL,   ,   ,   ,LARSON SALLY R,10/1/2017,12/31/2017,SHARED EMPLOYEE,24999.99,2017
,2017 OFFICE OF THE SPEAKER,Q4,GENERAL EXPENDITURES,PERSONNEL COMPENSATION,DETAIL,   ,   ,   ,LETSCH ANDREW D,10/1/2017,12/31/2017,STAFF ASSISTANT,8750.01,2017
,2017 OFFICE OF THE SPEAKER,Q4,GENERAL EXPENDITURES,PERSONNEL COMPENSATION,DETAIL,   ,   ,   ,LETSCH ANDREW D,9/1/2017,11/30/2017,STAFF ASSISTANT (OVERTIME),334.43,2017
,2017 OFFICE OF THE SPEAKER,Q4,GENERAL EXPENDITURES,PERSONNEL COMPENSATION,DETAIL,   ,   ,   ,MAHAN ROGER A,10/1/2017,12/31/2017,ASSISTANT TO THE SPEAKER FOR P,22500,2017
,2017 OFFICE OF THE SPEAKER,Q4,GENERAL EXPENDITURES,PERSONNEL COMPENSATION,DETAIL,   ,   ,   ,MANECKE KIMBERLY,10/1/2017,12/31/2017,DEPUTY DIRECTOR OF SCHEDULING,15500.01,2017
,2017 OFFICE OF THE SPEAKER,Q4,GENERAL EXPENDITURES,PERSONNEL COMPENSATION,DETAIL,   ,   ,   ,MCCANN EDWARD D.,10/1/2017,12/31/2017,ASSIST TO SPEAKER FOR POLICY,39999.99,2017
,2017 OFFICE OF THE SPEAKER,Q4,GENERAL EXPENDITURES,PERSONNEL COMPENSATION,DETAIL,   ,   ,   ,MILLER WILLIAM,10/1/2017,12/31/2017,SPECIAL ASSISTANT TO THE SPEAK,18999.99,2017
,2017 OFFICE OF THE SPEAKER,Q4,GENERAL EXPENDITURES,PERSONNEL COMPENSATION,DETAIL,   ,   ,   ,MUNDAY J M.,10/1/2017,12/31/2017,DIRECTOR OF INFORMATION TECHNO,32499.99,2017
,2017 OFFICE OF THE SPEAKER,Q4,GENERAL EXPENDITURES,PERSONNEL COMPENSATION,DETAIL,   ,   ,   ,O'TOOLE RYAN T,10/1/2017,12/31/2017,FLOOR ASSISTANT,15000,2017
,2017 OFFICE OF THE SPEAKER,Q4,GENERAL EXPENDITURES,PERSONNEL COMPENSATION,DETAIL,   ,   ,   ,PARKS STEPHANIE M,10/1/2017,12/31/2017,ASSISTANT TO SPEAKER FOR POLIC,22916.67,2017
,2017 OFFICE OF THE SPEAKER,Q4,GENERAL EXPENDITURES,PERSONNEL COMPENSATION,DETAIL,   ,   ,   ,PIATT AUSTIN W,10/1/2017,12/31/2017,STAFF ASSISTANT,8750.01,2017
,2017 OFFICE OF THE SPEAKER,Q4,GENERAL EXPENDITURES,PERSONNEL COMPENSATION,DETAIL,   ,   ,   ,PIATT AUSTIN W,9/1/2017,11/30/2017,STAFF ASSISTANT (OVERTIME),378.6,2017
,2017 OFFICE OF THE SPEAKER,Q4,GENERAL EXPENDITURES,PERSONNEL COMPENSATION,DETAIL,   ,   ,   ,POINTER KATHERINE C,10/1/2017,12/31/2017,FLOOR ASSISTANT,15000,2017
,2017 OFFICE OF THE SPEAKER,Q4,GENERAL EXPENDITURES,PERSONNEL COMPENSATION,DETAIL,   ,   ,   ,REISING JOHN B,10/1/2017,12/31/2017,SHARED EMPLOYEE,24999.99,2017
,2017 OFFICE OF THE SPEAKER,Q4,GENERAL EXPENDITURES,PERSONNEL COMPENSATION,DETAIL,   ,   ,   ,RICCI MICHAEL,10/1/2017,12/31/2017,DIRECTOR OF COMMUNICATIONS,42000,2017
,2017 OFFICE OF THE SPEAKER,Q4,GENERAL EXPENDITURES,PERSONNEL COMPENSATION,DETAIL,   ,   ,   ,ROMAN MARK J.,10/1/2017,12/31/2017,SHARED EMPLOYEE,24999.99,2017
,2017 OFFICE OF THE SPEAKER,Q4,GENERAL EXPENDITURES,PERSONNEL COMPENSATION,DETAIL,   ,   ,   ,RYAN MADELINE E,10/24/2017,12/31/2017,STAFF ASSISTANT,6513.9,2017
,2017 OFFICE OF THE SPEAKER,Q4,GENERAL EXPENDITURES,PERSONNEL COMPENSATION,DETAIL,   ,   ,   ,RYAN MADELINE E,11/1/2017,11/30/2017,STAFF ASSISTANT (OVERTIME),31.55,2017
,2017 OFFICE OF THE SPEAKER,Q4,GENERAL EXPENDITURES,PERSONNEL COMPENSATION,DETAIL,   ,   ,   ,SAKWA JENNA P,10/1/2017,12/31/2017,MEDIA AFFAIRS DIRECTOR,26250,2017
,2017 OFFICE OF THE SPEAKER,Q4,GENERAL EXPENDITURES,PERSONNEL COMPENSATION,DETAIL,   ,   ,   ,SHAPIRO MICHAEL I.,10/1/2017,12/31/2017,COMMUNICATIONS ADVISOR,20000.01,2017
,2017 OFFICE OF THE SPEAKER,Q4,GENERAL EXPENDITURES,PERSONNEL COMPENSATION,DETAIL,   ,   ,   ,SLINGSBY JULIA K.,10/1/2017,12/31/2017,DEPUTY COMMUNICATIONS DIRECTOR,26250,2017
,2017 OFFICE OF THE SPEAKER,Q4,GENERAL EXPENDITURES,PERSONNEL COMPENSATION,DETAIL,   ,   ,   ,SMITH CALEB J,10/1/2017,12/31/2017,DIGITAL COMMUNICATIONS DIRECTO,32499.99,2017
,2017 OFFICE OF THE SPEAKER,Q4,GENERAL EXPENDITURES,PERSONNEL COMPENSATION,DETAIL,   ,   ,   ,SMYTHE AUGUSTINE,10/1/2017,12/31/2017,POLICY DIRECTOR,43125,2017
,2017 OFFICE OF THE SPEAKER,Q4,GENERAL EXPENDITURES,PERSONNEL COMPENSATION,DETAIL,   ,   ,   ,SPETH ANDREW D.,10/1/2017,12/31/2017,DEPUTY CHIEF OF STAFF,30000,2017
,2017 OFFICE OF THE SPEAKER,Q4,GENERAL EXPENDITURES,PERSONNEL COMPENSATION,DETAIL,   ,   ,   ,STRONG ASHLEE A,10/1/2017,12/31/2017,PRESS SECRETARY,38750.01,2017
,2017 OFFICE OF THE SPEAKER,Q4,GENERAL EXPENDITURES,PERSONNEL COMPENSATION,DETAIL,   ,   ,   ,VANDEHEY VANESSA P,10/1/2017,12/31/2017,SENIOR STAFF ASSISTANT,10500,2017
,2017 OFFICE OF THE SPEAKER,Q4,GENERAL EXPENDITURES,PERSONNEL COMPENSATION,DETAIL,   ,   ,   ,VREEBURG JACOBUS A,10/1/2017,12/31/2017,SHARED EMPLOYEE,26534.26,2017
,2017 OFFICE OF THE SPEAKER,Q4,GENERAL EXPENDITURES,PERSONNEL COMPENSATION,DETAIL,   ,   ,   ,WALTZ PAIGE M,10/1/2017,12/31/2017,DIGITAL MEDIA COORDINATOR,12999.99,2017
,2017 OFFICE OF THE SPEAKER,Q4,GENERAL EXPENDITURES,PERSONNEL COMPENSATION,DETAIL,   ,   ,   ,WEAVER KIEL P.,10/1/2017,12/31/2017,ASST TO SPEAKER FOR POLICY,41250,2017
,2017 OFFICE OF THE SPEAKER,Q4,GENERAL EXPENDITURES,PERSONNEL COMPENSATION,DETAIL,   ,   ,   ,WICKISER VICTORIA H,10/1/2017,12/31/2017,DIRECTOR OF SCHEDULING,27500.01,2017
,2017 OFFICE OF THE SPEAKER,Q4,GENERAL EXPENDITURES,PERSONNEL COMPENSATION,DETAIL,   ,   ,   ,YANTKO DOMINIQUE G,10/1/2017,12/31/2017,SHARED EMPLOYEE,13750,2017
,2017 OFFICE OF THE SPEAKER,Q4,GENERAL EXPENDITURES,PERSONNEL COMPENSATION,SUBTOTAL,   ,   ,   ,   ,   ,   ,PERSONNEL COMPENSATION TOTALS:,1456685.52,2017
,2017 OFFICE OF THE SPEAKER,Q4,GENERAL EXPENDITURES,TRAVEL,DETAIL,10/10/2017,AP,E0558125,WALTZ PAIGE M.,9/16/2017,9/18/2017,COMMERCIAL TRANSPORTATION,120,2017
,2017 OFFICE OF THE SPEAKER,Q4,GENERAL EXPENDITURES,TRAVEL,DETAIL,10/10/2017,AP,E0558125,WALTZ PAIGE M.,9/18/2017,9/19/2017,LODGING,129.08,2017
,2017 OFFICE OF THE SPEAKER,Q4,GENERAL EXPENDITURES,TRAVEL,DETAIL,10/10/2017,AP,E0558125,WALTZ PAIGE M.,9/17/2017,9/19/2017,MEALS,78.01,2017
,2017 OFFICE OF THE SPEAKER,Q4,GENERAL EXPENDITURES,TRAVEL,DETAIL,10/10/2017,AP,E0558125,WALTZ PAIGE M.,9/17/2017,9/19/2017,TAXI/PARKING/TOLLS,75,2017
,2017 OFFICE OF THE SPEAKER,Q4,GENERAL EXPENDITURES,TRAVEL,DETAIL,10/10/2017,AP,E0558133,SMITH CALEB,9/28/2017,9/28/2017,MEALS,13.19,2017
,2017 OFFICE OF THE SPEAKER,Q4,GENERAL EXPENDITURES,TRAVEL,DETAIL,10/10/2017,AP,E0558133,SMITH CALEB,9/28/2017,9/28/2017,PRIVATE AUTO MILEAGE,144.18,2017
,2017 OFFICE OF THE SPEAKER,Q4,GENERAL EXPENDITURES,TRAVEL,DETAIL,10/10/2017,AP,E0558133,SMITH CALEB,9/27/2017,9/28/2017,TAXI/PARKING/TOLLS,32.52,2017
,2017 OFFICE OF THE SPEAKER,Q4,GENERAL EXPENDITURES,TRAVEL,DETAIL,10/13/2017,AP,E0560025,HIGGINS CASEY,9/16/2017,9/19/2017,COMMERCIAL TRANSPORTATION,540.6,2017
,2017 OFFICE OF THE SPEAKER,Q4,GENERAL EXPENDITURES,TRAVEL,DETAIL,10/13/2017,AP,E0560025,HIGGINS CASEY,9/18/2017,9/19/2017,LODGING,152.1,2017
,2017 OFFICE OF THE SPEAKER,Q4,GENERAL EXPENDITURES,TRAVEL,DETAIL,10/17/2017,AP,E0560882,EDWARDS SPENCER M.,9/26/2017,9/26/2017,COMMERCIAL TRANSPORTATION,42,2017
,2017 OFFICE OF THE SPEAKER,Q4,GENERAL EXPENDITURES,TRAVEL,DETAIL,10/17/2017,AP,E0560882,EDWARDS SPENCER M.,9/28/2017,9/28/2017,MEALS,9.28,2017
,2017 OFFICE OF THE SPEAKER,Q4,GENERAL EXPENDITURES,TRAVEL,DETAIL,10/17/2017,AP,E0560882,EDWARDS SPENCER M.,9/28/2017,9/28/2017,TAXI/PARKING/TOLLS,56.55,2017
,2017 OFFICE OF THE SPEAKER,Q4,GENERAL EXPENDITURES,TRAVEL,DETAIL,10/27/2017,AP,E0563620,SMITH CALEB,10/5/2017,10/5/2017,PRIVATE AUTO MILEAGE,91.54,2017
,2017 OFFICE OF THE SPEAKER,Q4,GENERAL EXPENDITURES,TRAVEL,DETAIL,10/27/2017,AP,E0563620,SMITH CALEB,10/5/2017,10/5/2017,TAXI/PARKING/TOLLS,4,2017
,2017 OFFICE OF THE SPEAKER,Q4,GENERAL EXPENDITURES,TRAVEL,DETAIL,10/29/2017,AP,952136,SAKWA JENNA P.,10/19/2017,10/20/2017,COMMERCIAL TRANSPORTATION,396,2017
,2017 OFFICE OF THE SPEAKER,Q4,GENERAL EXPENDITURES,TRAVEL,DETAIL,10/30/2017,AP,E0564526,CALLAS GEORGE A.,4/20/2017,4/20/2017,TAXI/PARKING/TOLLS,10,2017
,2017 OFFICE OF THE SPEAKER,Q4,GENERAL EXPENDITURES,TRAVEL,DETAIL,10/30/2017,AP,E0564526,CALLAS GEORGE A.,6/1/2017,6/6/2017,TAXI/PARKING/TOLLS,20.71,2017
,2017 OFFICE OF THE SPEAKER,Q4,GENERAL EXPENDITURES,TRAVEL,DETAIL,10/30/2017,AP,E0564526,CALLAS GEORGE A.,9/15/2017,9/15/2017,TAXI/PARKING/TOLLS,23,2017
,2017 OFFICE OF THE SPEAKER,Q4,GENERAL EXPENDITURES,TRAVEL,DETAIL,10/30/2017,AP,E0564526,CALLAS GEORGE A.,10/2/2017,10/2/2017,TAXI/PARKING/TOLLS,27,2017
,2017 OFFICE OF THE SPEAKER,Q4,GENERAL EXPENDITURES,TRAVEL,DETAIL,11/2/2017,AP,E0566836,CITIBANK GOV CARD SERVICE,9/17/2017,9/28/2017,COMMERCIAL TRANSPORTATION,1437.37,2017
,2017 OFFICE OF THE SPEAKER,Q4,GENERAL EXPENDITURES,TRAVEL,DETAIL,11/2/2017,AP,E0566836,CITIBANK GOV CARD SERVICE,9/17/2017,9/20/2017,LODGING,1063.56,2017
,2017 OFFICE OF THE SPEAKER,Q4,GENERAL EXPENDITURES,TRAVEL,DETAIL,11/2/2017,AP,E0566836,CITIBANK GOV CARD SERVICE,9/19/2017,9/20/2017,MEALS,101.61,2017
,2017 OFFICE OF THE SPEAKER,Q4,GENERAL EXPENDITURES,TRAVEL,DETAIL,11/14/2017,AP,E0569425,DRESSLER JEFFREY A.,9/19/2017,9/26/2017,TAXI/PARKING/TOLLS,33,2017
,2017 OFFICE OF THE SPEAKER,Q4,GENERAL EXPENDITURES,TRAVEL,DETAIL,11/14/2017,AP,E0569425,DRESSLER JEFFREY A.,10/16/2017,10/30/2017,TAXI/PARKING/TOLLS,50,2017
,2017 OFFICE OF THE SPEAKER,Q4,GENERAL EXPENDITURES,TRAVEL,DETAIL,11/14/2017,AP,E0569425,DRESSLER JEFFREY A.,11/2/2017,11/3/2017,TAXI/PARKING/TOLLS,14,2017
,2017 OFFICE OF THE SPEAKER,Q4,GENERAL EXPENDITURES,TRAVEL,DETAIL,11/28/2017,AP,E0572457,SAKWA JENNA P.,11/7/2017,11/8/2017,TAXI/PARKING/TOLLS,17.38,2017
,2017 OFFICE OF THE SPEAKER,Q4,GENERAL EXPENDITURES,TRAVEL,DETAIL,11/29/2017,AP,E0573366,SAKWA JENNA P.,11/13/2017,11/13/2017,TAXI/PARKING/TOLLS,93.68,2017
,2017 OFFICE OF THE SPEAKER,Q4,GENERAL EXPENDITURES,TRAVEL,DETAIL,11/29/2017,AP,E0573369,PARKS STEPHANIE M.,11/8/2017,11/8/2017,TAXI/PARKING/TOLLS,4.31,2017
,2017 OFFICE OF THE SPEAKER,Q4,GENERAL EXPENDITURES,TRAVEL,DETAIL,12/19/2017,AP,E0576410,SMYTHE AUGUSTINE,11/1/2017,11/1/2017,TAXI/PARKING/TOLLS,24.54,2017
,2017 OFFICE OF THE SPEAKER,Q4,GENERAL EXPENDITURES,TRAVEL,DETAIL,12/23/2017,AP,E0579855,SAKWA JENNA P.,11/6/2017,11/6/2017,COMMERCIAL TRANSPORTATION,412,2017
,2017 OFFICE OF THE SPEAKER,Q4,GENERAL EXPENDITURES,TRAVEL,SUBTOTAL,   ,   ,   ,   ,   ,   ,TRAVEL TOTALS:,5216.21,2017
,2017 OFFICE OF THE SPEAKER,Q4,GENERAL EXPENDITURES,RENT  COMMUNICATION  UTILITIES,DETAIL,10/30/2017,AP,E0564456,AT&T,9/10/2017,10/9/2017,TELECOMSRV/EQ/TOLL CHARGE,171.69,2017
,2017 OFFICE OF THE SPEAKER,Q4,GENERAL EXPENDITURES,RENT  COMMUNICATION  UTILITIES,DETAIL,10/30/2017,AP,E0564482,FEDEX,9/14/2017,9/14/2017,POSTAGE / COURIER / BOX RENTAL,28.24,2017
,2017 OFFICE OF THE SPEAKER,Q4,GENERAL EXPENDITURES,RENT  COMMUNICATION  UTILITIES,DETAIL,10/30/2017,AP,E0564674,FEDEX,7/31/2017,7/31/2017,POSTAGE / COURIER / BOX RENTAL,7.12,2017
,2017 OFFICE OF THE SPEAKER,Q4,GENERAL EXPENDITURES,RENT  COMMUNICATION  UTILITIES,DETAIL,10/31/2017,AP,E0565190,FEDEX,7/17/2017,7/17/2017,POSTAGE / COURIER / BOX RENTAL,9.01,2017
,2017 OFFICE OF THE SPEAKER,Q4,GENERAL EXPENDITURES,RENT  COMMUNICATION  UTILITIES,DETAIL,11/8/2017,AP,953008,AT&T,9/10/2017,10/9/2017,TELECOMSRV/EQ/TOLL CHARGE,-171.69,2017
,2017 OFFICE OF THE SPEAKER,Q4,GENERAL EXPENDITURES,RENT  COMMUNICATION  UTILITIES,DETAIL,11/28/2017,GL,GRP0073473, ,11/1/2017,11/30/2017,HIR GRAPHICS (TRANSFER),62,2017
,2017 OFFICE OF THE SPEAKER,Q4,GENERAL EXPENDITURES,RENT  COMMUNICATION  UTILITIES,SUBTOTAL,   ,   ,   ,   ,   ,   ,RENT  COMMUNICATION  UTILITIES TOTALS:,106.37,2017
,2017 OFFICE OF THE SPEAKER,Q4,GENERAL EXPENDITURES,PRINTING AND REPRODUCTION,DETAIL,10/25/2017,AP,E0564527,ACCURATE WORD LLC,9/20/2017,9/20/2017,PRINTING & REPRODUCTION,659,2017
,2017 OFFICE OF THE SPEAKER,Q4,GENERAL EXPENDITURES,PRINTING AND REPRODUCTION,DETAIL,10/30/2017,AP,952297,ACCURATE WORD LLC,9/20/2017,9/20/2017,PRINTING & REPRODUCTION,-659,2017
,2017 OFFICE OF THE SPEAKER,Q4,GENERAL EXPENDITURES,PRINTING AND REPRODUCTION,DETAIL,11/9/2017,AP,E0570328,ACCURATE WORD LLC,10/30/2017,10/30/2017,PRINTING & REPRODUCTION,59.95,2017
,2017 OFFICE OF THE SPEAKER,Q4,GENERAL EXPENDITURES,PRINTING AND REPRODUCTION,DETAIL,11/20/2017,AP,957539,ACCURATE WORD LLC,10/30/2017,10/30/2017,PRINTING & REPRODUCTION,-59.95,2017
,2017 OFFICE OF THE SPEAKER,Q4,GENERAL EXPENDITURES,PRINTING AND REPRODUCTION,DETAIL,11/28/2017,GL,PIX0073418, ,11/1/2017,11/30/2017,PHOTOGRAPHIC (TRANSFER),148,2017
,2017 OFFICE OF THE SPEAKER,Q4,GENERAL EXPENDITURES,PRINTING AND REPRODUCTION,DETAIL,12/22/2017,GL,PIX0074132, ,12/1/2017,12/31/2017,PHOTOGRAPHIC (TRANSFER),163,2017
,2017 OFFICE OF THE SPEAKER,Q4,GENERAL EXPENDITURES,PRINTING AND REPRODUCTION,SUBTOTAL,   ,   ,   ,   ,   ,   ,PRINTING AND REPRODUCTION TOTALS:,311,2017
,2017 OFFICE OF THE SPEAKER,Q4,GENERAL EXPENDITURES,OTHER SERVICES,DETAIL,11/20/2017,AP,957556,CITI PCARD-MAILCHIMP    MONTHLY,9/29/2017,10/27/2017,WEB DEV HST EMAIL & RLTD SERV,2029.95,2017
,2017 OFFICE OF THE SPEAKER,Q4,GENERAL EXPENDITURES,OTHER SERVICES,DETAIL,11/20/2017,AP,957556,CITI PCARD-PREMIUMBEAT.COM,9/29/2017,10/27/2017,WEB DEV HST EMAIL & RLTD SERV,49,2017
,2017 OFFICE OF THE SPEAKER,Q4,GENERAL EXPENDITURES,OTHER SERVICES,DETAIL,11/20/2017,AP,957556,CITI PCARD-SPROUT SOCIAL,9/29/2017,10/27/2017,WEB DEV HST EMAIL & RLTD SERV,59,2017
,2017 OFFICE OF THE SPEAKER,Q4,GENERAL EXPENDITURES,OTHER SERVICES,DETAIL,12/14/2017,AP,959241,CITIBANK P CARD,9/29/2017,10/27/2017,WEB DEV HST EMAIL & RLTD SERV,-2137.95,2017
,2017 OFFICE OF THE SPEAKER,Q4,GENERAL EXPENDITURES,OTHER SERVICES,DETAIL,12/19/2017,AP,E0576848,NJI MEDIA LLC,12/1/2017,12/31/2017,WEB DEV HST EMAIL & RLTD SERV,2775,2017
,2017 OFFICE OF THE SPEAKER,Q4,GENERAL EXPENDITURES,OTHER SERVICES,DETAIL,12/29/2017,AP,964061,NJI MEDIA LLC,12/1/2017,12/31/2017,WEB DEV HST EMAIL & RLTD SERV,-2775,2017
,2017 OFFICE OF THE SPEAKER,Q4,GENERAL EXPENDITURES,OTHER SERVICES,SUBTOTAL,   ,   ,   ,   ,   ,   ,OTHER SERVICES TOTALS:,0,2017
,2017 OFFICE OF THE SPEAKER,Q4,GENERAL EXPENDITURES,SUPPLIES AND MATERIALS,DETAIL,10/10/2017,AP,E0558126,FIRST CHOICE COFFEE SERVICES,9/28/2017,9/28/2017,FOOD & BEVERAGE,474.76,2017
,2017 OFFICE OF THE SPEAKER,Q4,GENERAL EXPENDITURES,SUPPLIES AND MATERIALS,DETAIL,10/10/2017,AP,E0558129,COCA-COLA BOTTLING COMPANY CONSOLIDATED,9/29/2017,9/29/2017,FOOD & BEVERAGE,61.25,2017
,2017 OFFICE OF THE SPEAKER,Q4,GENERAL EXPENDITURES,SUPPLIES AND MATERIALS,DETAIL,10/13/2017,AP,E0559760,FIRST CHOICE COFFEE SERVICES,10/5/2017,10/5/2017,FOOD & BEVERAGE,328.71,2017
,2017 OFFICE OF THE SPEAKER,Q4,GENERAL EXPENDITURES,SUPPLIES AND MATERIALS,DETAIL,10/17/2017,AP,E0561813,BLANKENSHIP APRIL L.,10/10/2017,10/10/2017,FOOD & BEVERAGE,1118.4,2017
,2017 OFFICE OF THE SPEAKER,Q4,GENERAL EXPENDITURES,SUPPLIES AND MATERIALS,DETAIL,10/19/2017,AP,951470,CITI PCARD-200 BBQ DC,8/29/2017,9/28/2017,FOOD & BEVERAGE,1228.8,2017
,2017 OFFICE OF THE SPEAKER,Q4,GENERAL EXPENDITURES,SUPPLIES AND MATERIALS,DETAIL,10/19/2017,AP,951470,CITI PCARD-BUCA DI BEPPO,8/29/2017,9/28/2017,FOOD & BEVERAGE,578.22,2017
,2017 OFFICE OF THE SPEAKER,Q4,GENERAL EXPENDITURES,SUPPLIES AND MATERIALS,DETAIL,10/19/2017,AP,951470,CITI PCARD-CAFE RIO FALLS CHURCH,8/29/2017,9/28/2017,FOOD & BEVERAGE,302.17,2017
,2017 OFFICE OF THE SPEAKER,Q4,GENERAL EXPENDITURES,SUPPLIES AND MATERIALS,DETAIL,10/19/2017,AP,951470,CITI PCARD-CORNER BAKERY,8/29/2017,9/28/2017,FOOD & BEVERAGE,1884.4,2017
,2017 OFFICE OF THE SPEAKER,Q4,GENERAL EXPENDITURES,SUPPLIES AND MATERIALS,DETAIL,10/19/2017,AP,951470,CITI PCARD-CREAMERY DD,8/29/2017,9/28/2017,FOOD & BEVERAGE,17,2017
,2017 OFFICE OF THE SPEAKER,Q4,GENERAL EXPENDITURES,SUPPLIES AND MATERIALS,DETAIL,10/19/2017,AP,951470,CITI PCARD-DT 656 CATERING,8/29/2017,9/28/2017,FOOD & BEVERAGE,804.76,2017
,2017 OFFICE OF THE SPEAKER,Q4,GENERAL EXPENDITURES,SUPPLIES AND MATERIALS,DETAIL,10/19/2017,AP,951470,CITI PCARD-SWEETGREEN CH,8/29/2017,9/28/2017,FOOD & BEVERAGE,34.82,2017
,2017 OFFICE OF THE SPEAKER,Q4,GENERAL EXPENDITURES,SUPPLIES AND MATERIALS,DETAIL,10/19/2017,AP,951470,CITI PCARD-TAYLOR GOURMET BALLPAR,8/29/2017,9/28/2017,FOOD & BEVERAGE,95.57,2017
,2017 OFFICE OF THE SPEAKER,Q4,GENERAL EXPENDITURES,SUPPLIES AND MATERIALS,DETAIL,10/19/2017,AP,951470,CITI PCARD-WWW COSTCO COM,8/29/2017,9/28/2017,FOOD & BEVERAGE,379.8,2017
,2017 OFFICE OF THE SPEAKER,Q4,GENERAL EXPENDITURES,SUPPLIES AND MATERIALS,DETAIL,10/24/2017,AP,E0562035,COCA-COLA BOTTLING COMPANY CONSOLIDATED,10/13/2017,10/13/2017,FOOD & BEVERAGE,85.75,2017
,2017 OFFICE OF THE SPEAKER,Q4,GENERAL EXPENDITURES,SUPPLIES AND MATERIALS,DETAIL,10/27/2017,AP,E0562310,BLANKENSHIP APRIL L.,10/12/2017,10/12/2017,FOOD & BEVERAGE,302.17,2017
,2017 OFFICE OF THE SPEAKER,Q4,GENERAL EXPENDITURES,SUPPLIES AND MATERIALS,DETAIL,11/2/2017,AP,E0566781,VREEBURG JACOBUS A.,10/11/2017,10/11/2017,FOOD & BEVERAGE,47.44,2017
,2017 OFFICE OF THE SPEAKER,Q4,GENERAL EXPENDITURES,SUPPLIES AND MATERIALS,DETAIL,11/2/2017,AP,E0566784,FIRST CHOICE COFFEE SERVICES,10/26/2017,10/26/2017,FOOD & BEVERAGE,544.3,2017
,2017 OFFICE OF THE SPEAKER,Q4,GENERAL EXPENDITURES,SUPPLIES AND MATERIALS,DETAIL,11/8/2017,AP,E0567063,COCA-COLA BOTTLING COMPANY CONSOLIDATED,10/27/2017,10/27/2017,FOOD & BEVERAGE,73.5,2017
,2017 OFFICE OF THE SPEAKER,Q4,GENERAL EXPENDITURES,SUPPLIES AND MATERIALS,DETAIL,11/8/2017,AP,E0568293,FIRST CHOICE COFFEE SERVICES,11/2/2017,11/2/2017,FOOD & BEVERAGE,771.64,2017
,2017 OFFICE OF THE SPEAKER,Q4,GENERAL EXPENDITURES,SUPPLIES AND MATERIALS,DETAIL,11/20/2017,AP,957556,CITI PCARD-ADOBE  CREATIVE CLOUD,9/29/2017,10/27/2017,SOFTWARE  LESS THAN  $500,148.03,2017
,2017 OFFICE OF THE SPEAKER,Q4,GENERAL EXPENDITURES,SUPPLIES AND MATERIALS,DETAIL,11/20/2017,AP,957556,CITI PCARD-AMAZON MKTPLACE PMTS,9/29/2017,9/30/2017,OFFICE SUPPLIES (OUTSIDE),1075.86,2017
,2017 OFFICE OF THE SPEAKER,Q4,GENERAL EXPENDITURES,SUPPLIES AND MATERIALS,DETAIL,11/20/2017,AP,957556,CITI PCARD-AMAZON MKTPLACE PMTS,9/29/2017,10/27/2017,OFFICE SUPPLIES (OUTSIDE),186.33,2017
,2017 OFFICE OF THE SPEAKER,Q4,GENERAL EXPENDITURES,SUPPLIES AND MATERIALS,DETAIL,11/20/2017,AP,957556,CITI PCARD-AMAZON.COM,9/29/2017,9/30/2017,OFFICE SUPPLIES (OUTSIDE),229.48,2017
,2017 OFFICE OF THE SPEAKER,Q4,GENERAL EXPENDITURES,SUPPLIES AND MATERIALS,DETAIL,11/20/2017,AP,957556,CITI PCARD-AMAZON.COM AMZN.COM/BI,9/29/2017,9/30/2017,OFFICE SUPPLIES (OUTSIDE),28.5,2017
,2017 OFFICE OF THE SPEAKER,Q4,GENERAL EXPENDITURES,SUPPLIES AND MATERIALS,DETAIL,11/20/2017,AP,957556,CITI PCARD-APL APPLE ONLINE STORE,9/29/2017,9/30/2017,OFFICE SUPPLIES (OUTSIDE),76.14,2017
,2017 OFFICE OF THE SPEAKER,Q4,GENERAL EXPENDITURES,SUPPLIES AND MATERIALS,DETAIL,11/20/2017,AP,957556,CITI PCARD-BUCA DI BEPPO,9/29/2017,10/27/2017,FOOD & BEVERAGE,394.73,2017
,2017 OFFICE OF THE SPEAKER,Q4,GENERAL EXPENDITURES,SUPPLIES AND MATERIALS,DETAIL,11/20/2017,AP,957556,CITI PCARD-CAFE RIO FALLS CHURCH,9/29/2017,9/30/2017,FOOD & BEVERAGE,343.48,2017
,2017 OFFICE OF THE SPEAKER,Q4,GENERAL EXPENDITURES,SUPPLIES AND MATERIALS,DETAIL,11/20/2017,AP,957556,CITI PCARD-CAFE RIO FALLS CHURCH,9/29/2017,10/27/2017,FOOD & BEVERAGE,302.17,2017
,2017 OFFICE OF THE SPEAKER,Q4,GENERAL EXPENDITURES,SUPPLIES AND MATERIALS,DETAIL,11/20/2017,AP,957556,CITI PCARD-DT 656 CATERING,9/29/2017,10/27/2017,FOOD & BEVERAGE,472.34,2017
,2017 OFFICE OF THE SPEAKER,Q4,GENERAL EXPENDITURES,SUPPLIES AND MATERIALS,DETAIL,11/20/2017,AP,957556,CITI PCARD-PF CHANGS,9/29/2017,10/27/2017,FOOD & BEVERAGE,433.39,2017
,2017 OFFICE OF THE SPEAKER,Q4,GENERAL EXPENDITURES,SUPPLIES AND MATERIALS,DETAIL,11/20/2017,AP,957556,CITI PCARD-SECURITY CR REIKANTECHN,9/29/2017,10/27/2017,SOFTWARE  LESS THAN  $500,-93.38,2017
,2017 OFFICE OF THE SPEAKER,Q4,GENERAL EXPENDITURES,SUPPLIES AND MATERIALS,DETAIL,11/20/2017,AP,957556,CITI PCARD-WHOLEFDS HST,9/29/2017,10/27/2017,FOOD & BEVERAGE,332.95,2017
,2017 OFFICE OF THE SPEAKER,Q4,GENERAL EXPENDITURES,SUPPLIES AND MATERIALS,DETAIL,11/21/2017,AP,E0561925,FIRST CHOICE COFFEE SERVICES,10/12/2017,10/12/2017,FOOD & BEVERAGE,242.78,2017
,2017 OFFICE OF THE SPEAKER,Q4,GENERAL EXPENDITURES,SUPPLIES AND MATERIALS,DETAIL,11/29/2017,AP,E0572458,FIRST CHOICE COFFEE SERVICES,11/9/2017,11/9/2017,FOOD & BEVERAGE,535.78,2017
,2017 OFFICE OF THE SPEAKER,Q4,GENERAL EXPENDITURES,SUPPLIES AND MATERIALS,DETAIL,11/29/2017,AP,E0573367,COCA-COLA BOTTLING COMPANY CONSOLIDATED,11/14/2017,11/14/2017,FOOD & BEVERAGE,61.25,2017
,2017 OFFICE OF THE SPEAKER,Q4,GENERAL EXPENDITURES,SUPPLIES AND MATERIALS,DETAIL,11/29/2017,AP,E0573368,FIRST CHOICE COFFEE SERVICES,11/16/2017,11/16/2017,FOOD & BEVERAGE,666.4,2017
,2017 OFFICE OF THE SPEAKER,Q4,GENERAL EXPENDITURES,SUPPLIES AND MATERIALS,DETAIL,12/12/2017,AP,958939,FIRST CHOICE COFFEE SERVICES,10/17/2017,10/17/2017,FOOD & BEVERAGE,929.02,2017
,2017 OFFICE OF THE SPEAKER,Q4,GENERAL EXPENDITURES,SUPPLIES AND MATERIALS,DETAIL,12/12/2017,AP,958939,FIRST CHOICE COFFEE SERVICES,10/17/2017,10/17/2017,OFFICE SUPPLIES (OUTSIDE),4,2017
,2017 OFFICE OF THE SPEAKER,Q4,GENERAL EXPENDITURES,SUPPLIES AND MATERIALS,DETAIL,12/19/2017,AP,963392,CITI PCARD-ALEXANDRIA FAMOUS DAVE,10/28/2017,11/28/2017,FOOD & BEVERAGE,356.43,2017
,2017 OFFICE OF THE SPEAKER,Q4,GENERAL EXPENDITURES,SUPPLIES AND MATERIALS,DETAIL,12/19/2017,AP,963392,CITI PCARD-AMAZON MKTPLACE PMTS,10/28/2017,11/28/2017,FOOD & BEVERAGE,451.5,2017
,2017 OFFICE OF THE SPEAKER,Q4,GENERAL EXPENDITURES,SUPPLIES AND MATERIALS,DETAIL,12/19/2017,AP,963392,CITI PCARD-BUCA DI BEPPO,10/28/2017,11/28/2017,FOOD & BEVERAGE,394.73,2017
,2017 OFFICE OF THE SPEAKER,Q4,GENERAL EXPENDITURES,SUPPLIES AND MATERIALS,DETAIL,12/19/2017,AP,963392,CITI PCARD-CAFE RIO FALLS CHURCH,10/28/2017,11/28/2017,FOOD & BEVERAGE,1254.86,2017
,2017 OFFICE OF THE SPEAKER,Q4,GENERAL EXPENDITURES,SUPPLIES AND MATERIALS,DETAIL,12/19/2017,AP,963392,CITI PCARD-DT 656 CATERING,10/28/2017,11/28/2017,FOOD & BEVERAGE,322.96,2017
,2017 OFFICE OF THE SPEAKER,Q4,GENERAL EXPENDITURES,SUPPLIES AND MATERIALS,DETAIL,12/19/2017,AP,963392,CITI PCARD-NANDOS OF THE YARDS,10/28/2017,11/28/2017,FOOD & BEVERAGE,347,2017
,2017 OFFICE OF THE SPEAKER,Q4,GENERAL EXPENDITURES,SUPPLIES AND MATERIALS,DETAIL,12/19/2017,AP,963392,CITI PCARD-PF CHANGS,10/28/2017,11/28/2017,FOOD & BEVERAGE,520.53,2017
,2017 OFFICE OF THE SPEAKER,Q4,GENERAL EXPENDITURES,SUPPLIES AND MATERIALS,DETAIL,12/19/2017,AP,963392,CITI PCARD-POTBELLY,10/28/2017,11/28/2017,FOOD & BEVERAGE,3018.95,2017
,2017 OFFICE OF THE SPEAKER,Q4,GENERAL EXPENDITURES,SUPPLIES AND MATERIALS,DETAIL,12/19/2017,AP,963392,CITI PCARD-SQ  SQ  BBQ BUS CATERI,10/28/2017,11/28/2017,FOOD & BEVERAGE,2006,2017
,2017 OFFICE OF THE SPEAKER,Q4,GENERAL EXPENDITURES,SUPPLIES AND MATERIALS,DETAIL,12/19/2017,AP,963392,CITI PCARD-TAYLOR GOURMET 1116H L,10/28/2017,11/28/2017,FOOD & BEVERAGE,897.6,2017
,2017 OFFICE OF THE SPEAKER,Q4,GENERAL EXPENDITURES,SUPPLIES AND MATERIALS,DETAIL,12/19/2017,AP,963392,CITI PCARD-WWW COSTCO COM,10/28/2017,11/28/2017,OFFICE SUPPLIES (OUTSIDE),365.2,2017
,2017 OFFICE OF THE SPEAKER,Q4,GENERAL EXPENDITURES,SUPPLIES AND MATERIALS,DETAIL,12/19/2017,AP,E0576353,FIRST CHOICE COFFEE SERVICES,11/29/2017,11/29/2017,FOOD & BEVERAGE,667.42,2017
,2017 OFFICE OF THE SPEAKER,Q4,GENERAL EXPENDITURES,SUPPLIES AND MATERIALS,DETAIL,12/19/2017,AP,E0577668,BLAKE KRISTENE,11/27/2017,11/27/2017,FOOD & BEVERAGE,61.27,2017
,2017 OFFICE OF THE SPEAKER,Q4,GENERAL EXPENDITURES,SUPPLIES AND MATERIALS,DETAIL,12/23/2017,AP,E0579886,FIRST CHOICE COFFEE SERVICES,12/7/2017,12/7/2017,FOOD & BEVERAGE,579.41,2017
,2017 OFFICE OF THE SPEAKER,Q4,GENERAL EXPENDITURES,SUPPLIES AND MATERIALS,DETAIL,12/23/2017,AP,E0579887,COCA-COLA BOTTLING COMPANY CONSOLIDATED,12/6/2017,12/6/2017,FOOD & BEVERAGE,134.75,2017
,2017 OFFICE OF THE SPEAKER,Q4,GENERAL EXPENDITURES,SUPPLIES AND MATERIALS,DETAIL,12/28/2017,AP,963892,CITIBANK P CARD,10/28/2017,11/28/2017,FOOD & BEVERAGE,365.2,2017
,2017 OFFICE OF THE SPEAKER,Q4,GENERAL EXPENDITURES,SUPPLIES AND MATERIALS,DETAIL,12/28/2017,AP,963892,CITIBANK P CARD,10/28/2017,11/28/2017,OFFICE SUPPLIES (OUTSIDE),-365.2,2017
,2017 OFFICE OF THE SPEAKER,Q4,GENERAL EXPENDITURES,SUPPLIES AND MATERIALS,DETAIL,12/28/2017,AP,E0579888,DESIGN CUISINE,11/30/2017,11/30/2017,FOOD & BEVERAGE,15778,2017
,2017 OFFICE OF THE SPEAKER,Q4,GENERAL EXPENDITURES,SUPPLIES AND MATERIALS,DETAIL,12/28/2017,AP,E0581034,ERIC FLEISCHER CATERING,12/6/2017,12/6/2017,FOOD & BEVERAGE,10930,2017
,2017 OFFICE OF THE SPEAKER,Q4,GENERAL EXPENDITURES,SUPPLIES AND MATERIALS,DETAIL,12/29/2017,AP,964000,DAIOHS FIRST CHOICE COFFEE SERVICES,10/17/2017,10/17/2017,OFFICE SUPPLIES (OUTSIDE),-4,2017
,2017 OFFICE OF THE SPEAKER,Q4,GENERAL EXPENDITURES,SUPPLIES AND MATERIALS,SUBTOTAL,   ,   ,   ,   ,   ,   ,SUPPLIES AND MATERIALS TOTALS:,53585.32,2017
,2017 OFFICE OF THE SPEAKER,Q4,GENERAL EXPENDITURES,SUPPLIES AND MATERIALS,SUBTOTAL,   ,   ,   ,   ,   ,   ,GENERAL EXPENDITURES TOTALS:,1515904.42,2017
,2017 OFFICE OF THE SPEAKER,Q4,GENERAL EXPENDITURES,SUPPLIES AND MATERIALS,GRAND TOTAL FOR ORGANIZATION,   ,   ,   ,   ,   ,   ,OFFICE TOTALS: ,1515904.42,2017
,2016 OFFICE OF THE SPEAKER,Q4,GENERAL EXPENDITURES,TRAVEL,DETAIL,11/21/2017,AP,E0564512,CALLAS GEORGE A.,2/22/2016,2/22/2016,TAXI/PARKING/TOLLS,12,2016
,2016 OFFICE OF THE SPEAKER,Q4,GENERAL EXPENDITURES,TRAVEL,SUBTOTAL,   ,   ,   ,   ,   ,   ,TRAVEL TOTALS:,12,2016
,2016 OFFICE OF THE SPEAKER,Q4,GENERAL EXPENDITURES,SUPPLIES AND MATERIALS,DETAIL,10/20/2017,AP,951337,CDW GOVERNMENT INC. C/O ISM IN,1/16/2017,1/16/2017,OFFICE SUPPLIES (OUTSIDE),50,2016
,2016 OFFICE OF THE SPEAKER,Q4,GENERAL EXPENDITURES,SUPPLIES AND MATERIALS,DETAIL,10/20/2017,AP,951337,CDW GOVERNMENT INC. C/O ISM IN,1/16/2017,1/16/2017,SOFTWARE  LESS THAN  $500 QTY - 12,898.8,2016
,2016 OFFICE OF THE SPEAKER,Q4,GENERAL EXPENDITURES,SUPPLIES AND MATERIALS,DETAIL,10/20/2017,AP,951339,CDW GOVERNMENT INC. C/O ISM IN,1/6/2017,1/6/2017,OFFICE SUPPLIES (OUTSIDE) QTY - 2,287.8,2016
,2016 OFFICE OF THE SPEAKER,Q4,GENERAL EXPENDITURES,SUPPLIES AND MATERIALS,DETAIL,10/20/2017,AP,951339,CDW GOVERNMENT INC. C/O ISM IN,1/6/2017,1/6/2017,OFFICE SUPPLIES (OUTSIDE) QTY - 10,651.1,2016
,2016 OFFICE OF THE SPEAKER,Q4,GENERAL EXPENDITURES,SUPPLIES AND MATERIALS,DETAIL,10/20/2017,AP,951339,CDW GOVERNMENT INC. C/O ISM IN,1/6/2017,1/6/2017,OFFICE SUPPLIES (OUTSIDE) QTY - 60,869.4,2016
,2016 OFFICE OF THE SPEAKER,Q4,GENERAL EXPENDITURES,SUPPLIES AND MATERIALS,DETAIL,10/20/2017,AP,951339,CDW GOVERNMENT INC. C/O ISM IN,1/6/2017,1/6/2017,OFFICE SUPPLIES (OUTSIDE) QTY - 4,1044.16,2016
,2016 OFFICE OF THE SPEAKER,Q4,GENERAL EXPENDITURES,SUPPLIES AND MATERIALS,DETAIL,10/24/2017,AP,951608,CDW GOVERNMENT INC. C/O ISM IN,1/6/2017,1/6/2017,SOFTWARE  LESS THAN  $500 QTY - 16,1210.56,2016
,2016 OFFICE OF THE SPEAKER,Q4,GENERAL EXPENDITURES,SUPPLIES AND MATERIALS,DETAIL,10/24/2017,AP,951611,CDW GOVERNMENT INC. C/O ISM IN,1/13/2017,1/13/2017,OFFICE SUPPLIES (OUTSIDE),450.39,2016
,2016 OFFICE OF THE SPEAKER,Q4,GENERAL EXPENDITURES,SUPPLIES AND MATERIALS,DETAIL,10/25/2017,AP,951609,CDW GOVERNMENT INC. C/O ISM IN,1/7/2017,1/7/2017,SOFTWARE  LESS THAN  $500 QTY - 2,769.64,2016
,2016 OFFICE OF THE SPEAKER,Q4,GENERAL EXPENDITURES,SUPPLIES AND MATERIALS,DETAIL,10/25/2017,AP,951609,CDW GOVERNMENT INC. C/O ISM IN,1/7/2017,1/7/2017,SOFTWARE  LESS THAN  $500 QTY - 50,8527.5,2016
,2016 OFFICE OF THE SPEAKER,Q4,GENERAL EXPENDITURES,SUPPLIES AND MATERIALS,SUBTOTAL,   ,   ,   ,   ,   ,   ,SUPPLIES AND MATERIALS TOTALS:,14759.35,2016
,2016 OFFICE OF THE SPEAKER,Q4,GENERAL EXPENDITURES,EQUIPMENT,DETAIL,10/24/2017,AP,951610,CDW GOVERNMENT INC. C/O ISM IN,1/9/2017,1/9/2017,COMPUTER HARDW PURCH  LESS THAN $25 000,1641.44,2016
,2016 OFFICE OF THE SPEAKER,Q4,GENERAL EXPENDITURES,EQUIPMENT,DETAIL,10/24/2017,AP,951610,CDW GOVERNMENT INC. C/O ISM IN,1/9/2017,1/9/2017,WARRANTIES QTY - 2,162.24,2016
,2016 OFFICE OF THE SPEAKER,Q4,GENERAL EXPENDITURES,EQUIPMENT,DETAIL,10/24/2017,AP,951611,CDW GOVERNMENT INC. C/O ISM IN,1/13/2017,1/13/2017,COMPUTER HARDW PURCH  LESS THAN $25 000,518.26,2016
,2016 OFFICE OF THE SPEAKER,Q4,GENERAL EXPENDITURES,EQUIPMENT,DETAIL,10/25/2017,AP,951607,CDW GOVERNMENT INC. C/O ISM IN,1/10/2017,1/10/2017,COMPUTER HARDW PURCH  LESS THAN $25 000,6508.67,2016
,2016 OFFICE OF THE SPEAKER,Q4,GENERAL EXPENDITURES,EQUIPMENT,DETAIL,10/25/2017,AP,951607,CDW GOVERNMENT INC. C/O ISM IN,1/10/2017,1/10/2017,WARRANTIES QTY - 2,1516.64,2016
,2016 OFFICE OF THE SPEAKER,Q4,GENERAL EXPENDITURES,EQUIPMENT,SUBTOTAL,   ,   ,   ,   ,   ,   ,EQUIPMENT TOTALS:,10347.25,2016
,2016 OFFICE OF THE SPEAKER,Q4,GENERAL EXPENDITURES,EQUIPMENT,SUBTOTAL,   ,   ,   ,   ,   ,   ,GENERAL EXPENDITURES TOTALS:,25118.6,2016
,2016 OFFICE OF THE SPEAKER,Q4,GENERAL EXPENDITURES,EQUIPMENT,GRAND TOTAL FOR ORGANIZATION,   ,   ,   ,   ,   ,   ,OFFICE TOTALS: ,25118.6,2016
,2017 OFFICE OF THE MAJORITY LEADER,Q4,GENERAL EXPENDITURES,PERSONNEL COMPENSATION,DETAIL,   ,   ,   ,BEATTY JULIA-GRACE D,12/19/2017,12/31/2017,STAFF ASSISTANT,1000,2017
,2017 OFFICE OF THE MAJORITY LEADER,Q4,GENERAL EXPENDITURES,PERSONNEL COMPENSATION,DETAIL,   ,   ,   ,BIEN CHRISTOPHER A,10/1/2017,12/31/2017,FLOOR ASSISTANT,17500,2017
,2017 OFFICE OF THE MAJORITY LEADER,Q4,GENERAL EXPENDITURES,PERSONNEL COMPENSATION,DETAIL,   ,   ,   ,BUCHANAN NATALIE L,10/1/2017,12/31/2017,DIR OF MEMBER SERVICES,38000,2017
,2017 OFFICE OF THE MAJORITY LEADER,Q4,GENERAL EXPENDITURES,PERSONNEL COMPENSATION,DETAIL,   ,   ,   ,CHAMBERS KELLY A.,10/1/2017,12/31/2017,DIR OF LEGISLATIVE OPERATIONS,13500.01,2017
,2017 OFFICE OF THE MAJORITY LEADER,Q4,GENERAL EXPENDITURES,PERSONNEL COMPENSATION,DETAIL,   ,   ,   ,CONSOLVO BRANDON S,10/1/2017,12/31/2017,SENIOR POLICY ADVISOR,30500,2017
,2017 OFFICE OF THE MAJORITY LEADER,Q4,GENERAL EXPENDITURES,PERSONNEL COMPENSATION,DETAIL,   ,   ,   ,DUNHAM WILL,10/1/2017,12/31/2017,POLICY DIRECTOR,41000,2017
,2017 OFFICE OF THE MAJORITY LEADER,Q4,GENERAL EXPENDITURES,PERSONNEL COMPENSATION,DETAIL,   ,   ,   ,FLORIO JOHN A,10/1/2017,12/31/2017,DEPUTY PRESS SECRETARY,22000,2017
,2017 OFFICE OF THE MAJORITY LEADER,Q4,GENERAL EXPENDITURES,PERSONNEL COMPENSATION,DETAIL,   ,   ,   ,GERZOF DEVIN A,10/1/2017,11/30/2017,STAFF ASSISTANT,9066.67,2017
,2017 OFFICE OF THE MAJORITY LEADER,Q4,GENERAL EXPENDITURES,PERSONNEL COMPENSATION,DETAIL,   ,   ,   ,GERZOF DEVIN A,11/1/2017,11/21/2017,STAFF ASSISTANT (OTHER COMPENSATION),1166.67,2017
,2017 OFFICE OF THE MAJORITY LEADER,Q4,GENERAL EXPENDITURES,PERSONNEL COMPENSATION,DETAIL,   ,   ,   ,GOURDIKIAN ALEXANDRA G,10/1/2017,12/31/2017,SCHEDULER,18000,2017
,2017 OFFICE OF THE MAJORITY LEADER,Q4,GENERAL EXPENDITURES,PERSONNEL COMPENSATION,DETAIL,   ,   ,   ,HILL PRESTON W,10/1/2017,12/31/2017,SPECIAL ASSISTANT,14500,2017
,2017 OFFICE OF THE MAJORITY LEADER,Q4,GENERAL EXPENDITURES,PERSONNEL COMPENSATION,DETAIL,   ,   ,   ,KARR ELIZABETH B,10/1/2017,12/31/2017,CHIEF OF STAFF,43125,2017
,2017 OFFICE OF THE MAJORITY LEADER,Q4,GENERAL EXPENDITURES,PERSONNEL COMPENSATION,DETAIL,   ,   ,   ,LEGANSKI JOHN G,10/1/2017,12/31/2017,DIRECTOR OF FLOOR OPERATIONS,27500,2017
,2017 OFFICE OF THE MAJORITY LEADER,Q4,GENERAL EXPENDITURES,PERSONNEL COMPENSATION,DETAIL,   ,   ,   ,MAHAN ROGER A,10/1/2017,12/31/2017,SENIOR POLICY ADVISOR,12750,2017
,2017 OFFICE OF THE MAJORITY LEADER,Q4,GENERAL EXPENDITURES,PERSONNEL COMPENSATION,DETAIL,   ,   ,   ,MEYER KATHERINE R,10/1/2017,12/31/2017,SENIOR POLICY ADVISOR,37000,2017
,2017 OFFICE OF THE MAJORITY LEADER,Q4,GENERAL EXPENDITURES,PERSONNEL COMPENSATION,DETAIL,   ,   ,   ,MIN JAMES B.,10/1/2017,12/31/2017,DEPUTY CHIEF OF STAFF/COUNSEL,33750,2017
,2017 OFFICE OF THE MAJORITY LEADER,Q4,GENERAL EXPENDITURES,PERSONNEL COMPENSATION,DETAIL,   ,   ,   ,MURRY LUKE A,10/1/2017,12/31/2017,NATIONAL SECURITY ADVISOR,37000,2017
,2017 OFFICE OF THE MAJORITY LEADER,Q4,GENERAL EXPENDITURES,PERSONNEL COMPENSATION,DETAIL,   ,   ,   ,PERRINE ERIN M,10/1/2017,12/31/2017,PRESS SECRETARY,24100,2017
,2017 OFFICE OF THE MAJORITY LEADER,Q4,GENERAL EXPENDITURES,PERSONNEL COMPENSATION,DETAIL,   ,   ,   ,PICOZZI JOSEPH S,10/1/2017,12/31/2017,STAFF ASSISTANT,9500,2017
,2017 OFFICE OF THE MAJORITY LEADER,Q4,GENERAL EXPENDITURES,PERSONNEL COMPENSATION,DETAIL,   ,   ,   ,SPARKS MATTHEW E,10/1/2017,12/31/2017,DIRECTOR OF COMMUNICATIONS,33000,2017
,2017 OFFICE OF THE MAJORITY LEADER,Q4,GENERAL EXPENDITURES,PERSONNEL COMPENSATION,DETAIL,   ,   ,   ,SPECHT BRITTAN G,10/1/2017,12/31/2017,SENIOR POLICY ADVISOR,34500,2017
,2017 OFFICE OF THE MAJORITY LEADER,Q4,GENERAL EXPENDITURES,PERSONNEL COMPENSATION,DETAIL,   ,   ,   ,STIPICEVIC KRISTIN,10/1/2017,12/31/2017,EXECUTIVE ASSISTANT,14750,2017
,2017 OFFICE OF THE MAJORITY LEADER,Q4,GENERAL EXPENDITURES,PERSONNEL COMPENSATION,DETAIL,   ,   ,   ,TORRES ALEC C,10/1/2017,12/31/2017,DEPUTY PRESS SECRETARY/WRITER,22000,2017
,2017 OFFICE OF THE MAJORITY LEADER,Q4,GENERAL EXPENDITURES,PERSONNEL COMPENSATION,SUBTOTAL,   ,   ,   ,   ,   ,   ,PERSONNEL COMPENSATION TOTALS:,535208.35,2017
,2017 OFFICE OF THE MAJORITY LEADER,Q4,GENERAL EXPENDITURES,TRAVEL,DETAIL,10/11/2017,AP,E0558969,TORRES ALEC C.,9/27/2017,9/27/2017,TAXI/PARKING/TOLLS,15.49,2017
,2017 OFFICE OF THE MAJORITY LEADER,Q4,GENERAL EXPENDITURES,TRAVEL,DETAIL,10/11/2017,AP,E0558969,TORRES ALEC C.,9/29/2017,9/29/2017,TAXI/PARKING/TOLLS,7.83,2017
,2017 OFFICE OF THE MAJORITY LEADER,Q4,GENERAL EXPENDITURES,TRAVEL,DETAIL,10/31/2017,AP,E0565008,PERRINE ERIN M.,9/13/2017,9/13/2017,TAXI/PARKING/TOLLS,33.41,2017
,2017 OFFICE OF THE MAJORITY LEADER,Q4,GENERAL EXPENDITURES,TRAVEL,DETAIL,10/31/2017,AP,E0565179,SPARKS MATTHEW E.,5/9/2017,5/10/2017,LODGING,311.05,2017
,2017 OFFICE OF THE MAJORITY LEADER,Q4,GENERAL EXPENDITURES,TRAVEL,DETAIL,10/31/2017,AP,E0565179,SPARKS MATTHEW E.,5/10/2017,5/11/2017,LODGING,106.59,2017
,2017 OFFICE OF THE MAJORITY LEADER,Q4,GENERAL EXPENDITURES,TRAVEL,DETAIL,10/31/2017,AP,E0565179,SPARKS MATTHEW E.,5/9/2017,5/9/2017,TAXI/PARKING/TOLLS,10,2017
,2017 OFFICE OF THE MAJORITY LEADER,Q4,GENERAL EXPENDITURES,TRAVEL,DETAIL,10/31/2017,AP,E0565179,SPARKS MATTHEW E.,5/11/2017,5/11/2017,TAXI/PARKING/TOLLS,30,2017
,2017 OFFICE OF THE MAJORITY LEADER,Q4,GENERAL EXPENDITURES,TRAVEL,DETAIL,11/8/2017,AP,E0567868,MURRY LUKE A,10/5/2017,10/5/2017,TAXI/PARKING/TOLLS,12.63,2017
,2017 OFFICE OF THE MAJORITY LEADER,Q4,GENERAL EXPENDITURES,TRAVEL,DETAIL,11/8/2017,AP,E0567868,MURRY LUKE A,10/17/2017,10/17/2017,TAXI/PARKING/TOLLS,28.19,2017
,2017 OFFICE OF THE MAJORITY LEADER,Q4,GENERAL EXPENDITURES,TRAVEL,DETAIL,11/13/2017,AP,E0568999,TEXAS DEPARTMENT OF TRANSPORTATION,9/4/2017,9/4/2017,COMMERCIAL TRANSPORTATION,1132.79,2017
,2017 OFFICE OF THE MAJORITY LEADER,Q4,GENERAL EXPENDITURES,TRAVEL,DETAIL,11/13/2017,AP,E0569000,PERRINE ERIN M.,10/28/2017,10/29/2017,COMMERCIAL TRANSPORTATION,334.41,2017
,2017 OFFICE OF THE MAJORITY LEADER,Q4,GENERAL EXPENDITURES,TRAVEL,DETAIL,11/13/2017,AP,E0569000,PERRINE ERIN M.,10/29/2017,10/29/2017,COMMERCIAL TRANSPORTATION,122,2017
,2017 OFFICE OF THE MAJORITY LEADER,Q4,GENERAL EXPENDITURES,TRAVEL,DETAIL,11/13/2017,AP,E0569000,PERRINE ERIN M.,10/30/2017,10/30/2017,COMMERCIAL TRANSPORTATION,-167.2,2017
,2017 OFFICE OF THE MAJORITY LEADER,Q4,GENERAL EXPENDITURES,TRAVEL,DETAIL,11/13/2017,AP,E0569000,PERRINE ERIN M.,10/28/2017,10/29/2017,LODGING,300.7,2017
,2017 OFFICE OF THE MAJORITY LEADER,Q4,GENERAL EXPENDITURES,TRAVEL,DETAIL,11/13/2017,AP,E0569000,PERRINE ERIN M.,10/28/2017,10/28/2017,TAXI/PARKING/TOLLS,40.71,2017
,2017 OFFICE OF THE MAJORITY LEADER,Q4,GENERAL EXPENDITURES,TRAVEL,DETAIL,11/13/2017,AP,E0569002,SPARKS MATTHEW E.,10/30/2017,10/30/2017,COMMERCIAL TRANSPORTATION,273,2017
,2017 OFFICE OF THE MAJORITY LEADER,Q4,GENERAL EXPENDITURES,TRAVEL,DETAIL,11/13/2017,AP,E0569002,SPARKS MATTHEW E.,10/30/2017,10/30/2017,TAXI/PARKING/TOLLS,18.35,2017
,2017 OFFICE OF THE MAJORITY LEADER,Q4,GENERAL EXPENDITURES,TRAVEL,DETAIL,12/21/2017,AP,E0579664,MURRY LUKE A,10/30/2017,10/30/2017,TAXI/PARKING/TOLLS,25.04,2017
,2017 OFFICE OF THE MAJORITY LEADER,Q4,GENERAL EXPENDITURES,TRAVEL,SUBTOTAL,   ,   ,   ,   ,   ,   ,TRAVEL TOTALS:,2634.99,2017
,2017 OFFICE OF THE MAJORITY LEADER,Q4,GENERAL EXPENDITURES,RENT  COMMUNICATION  UTILITIES,DETAIL,10/19/2017,AP,951470,CITI PCARD-USPS PO,8/29/2017,9/28/2017,POSTAGE / COURIER / BOX RENTAL,98,2017
,2017 OFFICE OF THE MAJORITY LEADER,Q4,GENERAL EXPENDITURES,RENT  COMMUNICATION  UTILITIES,DETAIL,11/20/2017,AP,957556,CITI PCARD-USPS PO,9/29/2017,10/27/2017,POSTAGE / COURIER / BOX RENTAL,98,2017
,2017 OFFICE OF THE MAJORITY LEADER,Q4,GENERAL EXPENDITURES,RENT  COMMUNICATION  UTILITIES,DETAIL,12/28/2017,GL,GRP0074260, ,12/1/2017,12/31/2017,HIR GRAPHICS (TRANSFER),50,2017
,2017 OFFICE OF THE MAJORITY LEADER,Q4,GENERAL EXPENDITURES,RENT  COMMUNICATION  UTILITIES,SUBTOTAL,   ,   ,   ,   ,   ,   ,RENT  COMMUNICATION  UTILITIES TOTALS:,246,2017
,2017 OFFICE OF THE MAJORITY LEADER,Q4,GENERAL EXPENDITURES,PRINTING AND REPRODUCTION,DETAIL,10/25/2017,AP,E0564669,ACCURATE WORD LLC,9/18/2017,9/18/2017,PRINTING & REPRODUCTION,197.6,2017
,2017 OFFICE OF THE MAJORITY LEADER,Q4,GENERAL EXPENDITURES,PRINTING AND REPRODUCTION,DETAIL,11/13/2017,AP,E0569001,PERRINE ERIN M.,10/28/2017,10/28/2017,PRINTING & REPRODUCTION,43.16,2017
,2017 OFFICE OF THE MAJORITY LEADER,Q4,GENERAL EXPENDITURES,PRINTING AND REPRODUCTION,SUBTOTAL,   ,   ,   ,   ,   ,   ,PRINTING AND REPRODUCTION TOTALS:,240.76,2017
,2017 OFFICE OF THE MAJORITY LEADER,Q4,GENERAL EXPENDITURES,OTHER SERVICES,DETAIL,10/26/2017,AP,951454,FIRESIDE21,9/1/2017,9/30/2017,WEB DEV HST EMAIL & RLTD SERV,585,2017
,2017 OFFICE OF THE MAJORITY LEADER,Q4,GENERAL EXPENDITURES,OTHER SERVICES,DETAIL,11/8/2017,AP,E0567953,ENGAGE LLC,11/1/2017,11/30/2017,WEB DEV HST EMAIL & RLTD SERV,500,2017
,2017 OFFICE OF THE MAJORITY LEADER,Q4,GENERAL EXPENDITURES,OTHER SERVICES,DETAIL,11/30/2017,AP,953317,FIRESIDE21,10/1/2017,10/31/2017,WEB DEV HST EMAIL & RLTD SERV,585,2017
,2017 OFFICE OF THE MAJORITY LEADER,Q4,GENERAL EXPENDITURES,OTHER SERVICES,DETAIL,12/28/2017,AP,E0579649,ENGAGE LLC,12/1/2017,12/31/2017,WEB DEV HST EMAIL & RLTD SERV,500,2017
,2017 OFFICE OF THE MAJORITY LEADER,Q4,GENERAL EXPENDITURES,OTHER SERVICES,DETAIL,12/29/2017,AP,964035,FIRESIDE21,11/1/2017,11/30/2017,WEB DEV HST EMAIL & RLTD SERV,585,2017
,2017 OFFICE OF THE MAJORITY LEADER,Q4,GENERAL EXPENDITURES,OTHER SERVICES,SUBTOTAL,   ,   ,   ,   ,   ,   ,OTHER SERVICES TOTALS:,2755,2017
,2017 OFFICE OF THE MAJORITY LEADER,Q4,GENERAL EXPENDITURES,SUPPLIES AND MATERIALS,DETAIL,10/19/2017,AP,951470,CITI PCARD-AMAZON MKTPLACE PMTS,8/29/2017,9/28/2017,OFFICE SUPPLIES (OUTSIDE),-2.69,2017
,2017 OFFICE OF THE MAJORITY LEADER,Q4,GENERAL EXPENDITURES,SUPPLIES AND MATERIALS,DETAIL,10/19/2017,AP,951470,CITI PCARD-CHICK-FIL-A,8/29/2017,9/28/2017,FOOD & BEVERAGE,344.69,2017
,2017 OFFICE OF THE MAJORITY LEADER,Q4,GENERAL EXPENDITURES,SUPPLIES AND MATERIALS,DETAIL,10/19/2017,AP,951470,CITI PCARD-D J WALL-ST-JOURNAL,8/29/2017,9/28/2017,PUBLICATIONS/REFERENCE MAT'L,34.89,2017
,2017 OFFICE OF THE MAJORITY LEADER,Q4,GENERAL EXPENDITURES,SUPPLIES AND MATERIALS,DETAIL,10/19/2017,AP,951470,CITI PCARD-FIRST CHOICE COFFEE SE,8/29/2017,9/28/2017,FOOD & BEVERAGE,591.84,2017
,2017 OFFICE OF THE MAJORITY LEADER,Q4,GENERAL EXPENDITURES,SUPPLIES AND MATERIALS,DETAIL,10/19/2017,AP,951470,CITI PCARD-FTP FINANCIAL TIMES,8/29/2017,9/28/2017,PUBLICATIONS/REFERENCE MAT'L,56.5,2017
,2017 OFFICE OF THE MAJORITY LEADER,Q4,GENERAL EXPENDITURES,SUPPLIES AND MATERIALS,DETAIL,10/19/2017,AP,951470,CITI PCARD-HARRISTEETER,8/29/2017,9/28/2017,FOOD & BEVERAGE,111.21,2017
,2017 OFFICE OF THE MAJORITY LEADER,Q4,GENERAL EXPENDITURES,SUPPLIES AND MATERIALS,DETAIL,10/19/2017,AP,951470,CITI PCARD-LA TIMES SUBSCRIPTION,8/29/2017,9/28/2017,PUBLICATIONS/REFERENCE MAT'L,31.92,2017
,2017 OFFICE OF THE MAJORITY LEADER,Q4,GENERAL EXPENDITURES,SUPPLIES AND MATERIALS,DETAIL,10/19/2017,AP,951470,CITI PCARD-NEW YORK TIMES DIGITAL,8/29/2017,9/28/2017,PUBLICATIONS/REFERENCE MAT'L,37.01,2017
,2017 OFFICE OF THE MAJORITY LEADER,Q4,GENERAL EXPENDITURES,SUPPLIES AND MATERIALS,DETAIL,10/19/2017,AP,951470,CITI PCARD-THE INFORMATION,8/29/2017,9/28/2017,PUBLICATIONS/REFERENCE MAT'L,39,2017
,2017 OFFICE OF THE MAJORITY LEADER,Q4,GENERAL EXPENDITURES,SUPPLIES AND MATERIALS,DETAIL,10/30/2017,AP,E0564670,READYREFRESH BY NESTLE,8/27/2017,9/26/2017,WATER,213.96,2017
,2017 OFFICE OF THE MAJORITY LEADER,Q4,GENERAL EXPENDITURES,SUPPLIES AND MATERIALS,DETAIL,10/30/2017,AP,E0565006,MIN JAMES B.,10/19/2017,10/19/2017,FOOD & BEVERAGE,522.98,2017
,2017 OFFICE OF THE MAJORITY LEADER,Q4,GENERAL EXPENDITURES,SUPPLIES AND MATERIALS,DETAIL,10/31/2017,AP,952238,DEER PARK,9/30/2017,9/30/2017,WATER,212.71,2017
,2017 OFFICE OF THE MAJORITY LEADER,Q4,GENERAL EXPENDITURES,SUPPLIES AND MATERIALS,DETAIL,11/20/2017,AP,957556,CITI PCARD-CHICK-FIL-A,9/29/2017,10/27/2017,FOOD & BEVERAGE,677.22,2017
,2017 OFFICE OF THE MAJORITY LEADER,Q4,GENERAL EXPENDITURES,SUPPLIES AND MATERIALS,DETAIL,11/20/2017,AP,957556,CITI PCARD-CORNER BAKERY,9/29/2017,10/27/2017,FOOD & BEVERAGE,349.67,2017
,2017 OFFICE OF THE MAJORITY LEADER,Q4,GENERAL EXPENDITURES,SUPPLIES AND MATERIALS,DETAIL,11/20/2017,AP,957556,CITI PCARD-D J WALL-ST-JOURNAL,9/29/2017,10/27/2017,PUBLICATIONS/REFERENCE MAT'L,34.89,2017
,2017 OFFICE OF THE MAJORITY LEADER,Q4,GENERAL EXPENDITURES,SUPPLIES AND MATERIALS,DETAIL,11/20/2017,AP,957556,CITI PCARD-FIRST CHOICE COFFEE SE,9/29/2017,10/27/2017,FOOD & BEVERAGE,236.93,2017
,2017 OFFICE OF THE MAJORITY LEADER,Q4,GENERAL EXPENDITURES,SUPPLIES AND MATERIALS,DETAIL,11/20/2017,AP,957556,CITI PCARD-FIRST CHOICE COFFEE SE,9/29/2017,10/27/2017,OFFICE SUPPLIES (OUTSIDE),644.96,2017
,2017 OFFICE OF THE MAJORITY LEADER,Q4,GENERAL EXPENDITURES,SUPPLIES AND MATERIALS,DETAIL,11/20/2017,AP,957556,CITI PCARD-FTP FINANCIAL TIMES,9/29/2017,10/27/2017,OFFICE SUPPLIES (OUTSIDE),56.5,2017
,2017 OFFICE OF THE MAJORITY LEADER,Q4,GENERAL EXPENDITURES,SUPPLIES AND MATERIALS,DETAIL,11/20/2017,AP,957556,CITI PCARD-HARRISTEETER,9/29/2017,10/27/2017,FOOD & BEVERAGE,62.58,2017
,2017 OFFICE OF THE MAJORITY LEADER,Q4,GENERAL EXPENDITURES,SUPPLIES AND MATERIALS,DETAIL,11/20/2017,AP,957556,CITI PCARD-LA TIMES SUBSCRIPTION,9/29/2017,10/27/2017,PUBLICATIONS/REFERENCE MAT'L,15.96,2017
,2017 OFFICE OF THE MAJORITY LEADER,Q4,GENERAL EXPENDITURES,SUPPLIES AND MATERIALS,DETAIL,11/20/2017,AP,957556,CITI PCARD-MAKESTICKERS.COM,9/29/2017,10/27/2017,OFFICE SUPPLIES (OUTSIDE),64.98,2017
,2017 OFFICE OF THE MAJORITY LEADER,Q4,GENERAL EXPENDITURES,SUPPLIES AND MATERIALS,DETAIL,11/20/2017,AP,957556,CITI PCARD-NEW YORK TIMES DIGITAL,9/29/2017,10/27/2017,PUBLICATIONS/REFERENCE MAT'L,37.01,2017
,2017 OFFICE OF THE MAJORITY LEADER,Q4,GENERAL EXPENDITURES,SUPPLIES AND MATERIALS,DETAIL,11/20/2017,AP,957556,CITI PCARD-STAPLES,9/29/2017,10/27/2017,OFFICE SUPPLIES (OUTSIDE),95.05,2017
,2017 OFFICE OF THE MAJORITY LEADER,Q4,GENERAL EXPENDITURES,SUPPLIES AND MATERIALS,DETAIL,11/20/2017,AP,957556,CITI PCARD-THE INFORMATION,9/29/2017,10/27/2017,PUBLICATIONS/REFERENCE MAT'L,39,2017
,2017 OFFICE OF THE MAJORITY LEADER,Q4,GENERAL EXPENDITURES,SUPPLIES AND MATERIALS,DETAIL,11/22/2017,AP,E0572201,READYREFRESH BY NESTLE,9/27/2017,10/26/2017,WATER,280.28,2017
,2017 OFFICE OF THE MAJORITY LEADER,Q4,GENERAL EXPENDITURES,SUPPLIES AND MATERIALS,DETAIL,11/30/2017,AP,958043,DEER PARK,10/31/2017,10/31/2017,WATER,202.71,2017
,2017 OFFICE OF THE MAJORITY LEADER,Q4,GENERAL EXPENDITURES,SUPPLIES AND MATERIALS,DETAIL,12/14/2017,AP,959182,CITIBANK P CARD,9/29/2017,10/27/2017,FOOD & BEVERAGE,15.95,2017
,2017 OFFICE OF THE MAJORITY LEADER,Q4,GENERAL EXPENDITURES,SUPPLIES AND MATERIALS,DETAIL,12/14/2017,AP,959182,CITIBANK P CARD,9/29/2017,10/27/2017,OFFICE SUPPLIES (OUTSIDE),-15.95,2017
,2017 OFFICE OF THE MAJORITY LEADER,Q4,GENERAL EXPENDITURES,SUPPLIES AND MATERIALS,DETAIL,12/19/2017,AP,963392,CITI PCARD-APL  ITUNES.COM/BILL,10/28/2017,11/28/2017,PUBLICATIONS/REFERENCE MAT'L,349.6,2017
,2017 OFFICE OF THE MAJORITY LEADER,Q4,GENERAL EXPENDITURES,SUPPLIES AND MATERIALS,DETAIL,12/19/2017,AP,963392,CITI PCARD-CAPITOL HOST (RIDGEWEL,10/28/2017,11/28/2017,FOOD & BEVERAGE,712.5,2017
,2017 OFFICE OF THE MAJORITY LEADER,Q4,GENERAL EXPENDITURES,SUPPLIES AND MATERIALS,DETAIL,12/19/2017,AP,963392,CITI PCARD-CHICK-FIL-A,10/28/2017,11/28/2017,FOOD & BEVERAGE,344.69,2017
,2017 OFFICE OF THE MAJORITY LEADER,Q4,GENERAL EXPENDITURES,SUPPLIES AND MATERIALS,DETAIL,12/19/2017,AP,963392,CITI PCARD-CORNER BAKERY,10/28/2017,11/28/2017,FOOD & BEVERAGE,175.79,2017
,2017 OFFICE OF THE MAJORITY LEADER,Q4,GENERAL EXPENDITURES,SUPPLIES AND MATERIALS,DETAIL,12/19/2017,AP,963392,CITI PCARD-D J WALL-ST-JOURNAL,10/28/2017,11/28/2017,PUBLICATIONS/REFERENCE MAT'L,34.89,2017
,2017 OFFICE OF THE MAJORITY LEADER,Q4,GENERAL EXPENDITURES,SUPPLIES AND MATERIALS,DETAIL,12/19/2017,AP,963392,CITI PCARD-FIRST CHOICE COFFEE SE,10/28/2017,11/28/2017,OFFICE SUPPLIES (OUTSIDE),784.68,2017
,2017 OFFICE OF THE MAJORITY LEADER,Q4,GENERAL EXPENDITURES,SUPPLIES AND MATERIALS,DETAIL,12/19/2017,AP,963392,CITI PCARD-FTP FINANCIAL TIMES,10/28/2017,11/28/2017,OFFICE SUPPLIES (OUTSIDE),56.5,2017
,2017 OFFICE OF THE MAJORITY LEADER,Q4,GENERAL EXPENDITURES,SUPPLIES AND MATERIALS,DETAIL,12/19/2017,AP,963392,CITI PCARD-HARRISTEETER,10/28/2017,11/28/2017,FOOD & BEVERAGE,34.27,2017
,2017 OFFICE OF THE MAJORITY LEADER,Q4,GENERAL EXPENDITURES,SUPPLIES AND MATERIALS,DETAIL,12/19/2017,AP,963392,CITI PCARD-LA TIMES SUBSCRIPTION,10/28/2017,11/28/2017,PUBLICATIONS/REFERENCE MAT'L,15.96,2017
,2017 OFFICE OF THE MAJORITY LEADER,Q4,GENERAL EXPENDITURES,SUPPLIES AND MATERIALS,DETAIL,12/19/2017,AP,963392,CITI PCARD-MATT PARRILLO,10/28/2017,11/28/2017,OFFICE SUPPLIES (OUTSIDE),486.38,2017
,2017 OFFICE OF THE MAJORITY LEADER,Q4,GENERAL EXPENDITURES,SUPPLIES AND MATERIALS,DETAIL,12/19/2017,AP,963392,CITI PCARD-NEW YORK TIMES DIGITAL,10/28/2017,11/28/2017,PUBLICATIONS/REFERENCE MAT'L,37.01,2017
,2017 OFFICE OF THE MAJORITY LEADER,Q4,GENERAL EXPENDITURES,SUPPLIES AND MATERIALS,DETAIL,12/19/2017,AP,963392,CITI PCARD-THE INFORMATION,10/28/2017,11/28/2017,PUBLICATIONS/REFERENCE MAT'L,39,2017
,2017 OFFICE OF THE MAJORITY LEADER,Q4,GENERAL EXPENDITURES,SUPPLIES AND MATERIALS,DETAIL,12/21/2017,AP,E0579646,MIN JAMES B.,12/4/2017,12/4/2017,HABITATION EXPENSE,76.13,2017
,2017 OFFICE OF THE MAJORITY LEADER,Q4,GENERAL EXPENDITURES,SUPPLIES AND MATERIALS,DETAIL,12/21/2017,AP,E0579646,MIN JAMES B.,12/5/2017,12/5/2017,HABITATION EXPENSE,58.17,2017
,2017 OFFICE OF THE MAJORITY LEADER,Q4,GENERAL EXPENDITURES,SUPPLIES AND MATERIALS,DETAIL,12/21/2017,AP,E0579666,MIN JAMES B.,11/28/2017,11/28/2017,FOOD & BEVERAGE,25.8,2017
,2017 OFFICE OF THE MAJORITY LEADER,Q4,GENERAL EXPENDITURES,SUPPLIES AND MATERIALS,DETAIL,12/26/2017,AP,963618,DEER PARK,11/30/2017,11/30/2017,WATER,202.71,2017
,2017 OFFICE OF THE MAJORITY LEADER,Q4,GENERAL EXPENDITURES,SUPPLIES AND MATERIALS,DETAIL,12/28/2017,AP,E0579645,READYREFRESH BY NESTLE,10/27/2017,11/26/2017,WATER,365.32,2017
,2017 OFFICE OF THE MAJORITY LEADER,Q4,GENERAL EXPENDITURES,SUPPLIES AND MATERIALS,DETAIL,12/28/2017,AP,E0579938,MIN JAMES B.,11/22/2017,11/22/2017,FOOD & BEVERAGE,396.9,2017
,2017 OFFICE OF THE MAJORITY LEADER,Q4,GENERAL EXPENDITURES,SUPPLIES AND MATERIALS,SUBTOTAL,   ,   ,   ,   ,   ,   ,SUPPLIES AND MATERIALS TOTALS:,9188.06,2017
,2017 OFFICE OF THE MAJORITY LEADER,Q4,GENERAL EXPENDITURES,SUPPLIES AND MATERIALS,SUBTOTAL,   ,   ,   ,   ,   ,   ,GENERAL EXPENDITURES TOTALS:,550273.16,2017
,2017 OFFICE OF THE MAJORITY LEADER,Q4,GENERAL EXPENDITURES,SUPPLIES AND MATERIALS,GRAND TOTAL FOR ORGANIZATION,   ,   ,   ,   ,   ,   ,OFFICE TOTALS: ,550273.16,2017
,2017 OFFICE OF THE MINORITY LEADER,Q4,GENERAL EXPENDITURES,PERSONNEL COMPENSATION,DETAIL,   ,   ,   ,AMADOR ADELA,10/1/2017,12/31/2017,POLICY ADV / MBR SVC ADV,24499.99,2017
,2017 OFFICE OF THE MINORITY LEADER,Q4,GENERAL EXPENDITURES,PERSONNEL COMPENSATION,DETAIL,   ,   ,   ,ANDROFF BLAKE J,10/1/2017,12/31/2017,EXC DIR DEM POL & COMM CMTE,42199.34,2017
,2017 OFFICE OF THE MINORITY LEADER,Q4,GENERAL EXPENDITURES,PERSONNEL COMPENSATION,DETAIL,   ,   ,   ,BERRET EMILY C,10/1/2017,12/31/2017,SPECIAL ASST TO THE LEADER,27999.99,2017
,2017 OFFICE OF THE MINORITY LEADER,Q4,GENERAL EXPENDITURES,PERSONNEL COMPENSATION,DETAIL,   ,   ,   ,BROWN GABRIELLE I,10/16/2017,12/31/2017,PRESS SECRETARY,16583.33,2017
,2017 OFFICE OF THE MINORITY LEADER,Q4,GENERAL EXPENDITURES,PERSONNEL COMPENSATION,DETAIL,   ,   ,   ,CAPRON MARGARET W.,10/1/2017,12/31/2017,SENIOR ADV POLICY & COMM,39174.24,2017
,2017 OFFICE OF THE MINORITY LEADER,Q4,GENERAL EXPENDITURES,PERSONNEL COMPENSATION,DETAIL,   ,   ,   ,CHERRY STEPHANIE,10/1/2017,12/31/2017,DIRECTOR OF MEDIA AFFAIRS,27000.01,2017
,2017 OFFICE OF THE MINORITY LEADER,Q4,GENERAL EXPENDITURES,PERSONNEL COMPENSATION,DETAIL,   ,   ,   ,CONNELLY HENRY V,10/1/2017,12/31/2017,DEPUTY COMMUNICATIONS DIRECTOR,38499.99,2017
,2017 OFFICE OF THE MINORITY LEADER,Q4,GENERAL EXPENDITURES,PERSONNEL COMPENSATION,DETAIL,   ,   ,   ,DEGRAFF KENNETH B.,10/1/2017,12/31/2017,SENIOR POLICY ADVISOR,35749.99,2017
,2017 OFFICE OF THE MINORITY LEADER,Q4,GENERAL EXPENDITURES,PERSONNEL COMPENSATION,DETAIL,   ,   ,   ,DEVLIN PATRICK J.,10/1/2017,12/31/2017,COMMUNICATIONS DIRECTOR,37250.01,2017
,2017 OFFICE OF THE MINORITY LEADER,Q4,GENERAL EXPENDITURES,PERSONNEL COMPENSATION,DETAIL,   ,   ,   ,DEWHIRST DIANE,10/1/2017,12/31/2017,DEPUTY CHIEF OF STAFF,43125,2017
,2017 OFFICE OF THE MINORITY LEADER,Q4,GENERAL EXPENDITURES,PERSONNEL COMPENSATION,DETAIL,   ,   ,   ,EDMONSON ROBERT D,10/1/2017,12/31/2017,CHIEF OF STAFF,17499.99,2017
,2017 OFFICE OF THE MINORITY LEADER,Q4,GENERAL EXPENDITURES,PERSONNEL COMPENSATION,DETAIL,   ,   ,   ,ELSHAMI NADEAM,10/1/2017,10/1/2017,CHIEF OF STAFF,479.17,2017
,2017 OFFICE OF THE MINORITY LEADER,Q4,GENERAL EXPENDITURES,PERSONNEL COMPENSATION,DETAIL,   ,   ,   ,ELSHAMI NADEAM,10/1/2017,10/1/2017,CHIEF OF STAFF (OTHER COMPENSATION),13895.83,2017
,2017 OFFICE OF THE MINORITY LEADER,Q4,GENERAL EXPENDITURES,PERSONNEL COMPENSATION,DETAIL,   ,   ,   ,ETIENNE ASHLEY D,10/1/2017,12/31/2017,COMM DIR/SENIOR ADVISOR,42500,2017
,2017 OFFICE OF THE MINORITY LEADER,Q4,GENERAL EXPENDITURES,PERSONNEL COMPENSATION,DETAIL,   ,   ,   ,FISCHER JR ROBERT V.,10/1/2017,12/31/2017,ASST FLOOR CHIEF,43125,2017
,2017 OFFICE OF THE MINORITY LEADER,Q4,GENERAL EXPENDITURES,PERSONNEL COMPENSATION,DETAIL,   ,   ,   ,GIBSON DYLAN B,10/1/2017,12/31/2017,DIGITAL DIRECTOR,23250.01,2017
,2017 OFFICE OF THE MINORITY LEADER,Q4,GENERAL EXPENDITURES,PERSONNEL COMPENSATION,DETAIL,   ,   ,   ,GREENER APRIL L.,10/1/2017,12/31/2017,RESEARCH DIRECTOR,33250,2017
,2017 OFFICE OF THE MINORITY LEADER,Q4,GENERAL EXPENDITURES,PERSONNEL COMPENSATION,DETAIL,   ,   ,   ,GRIFFIN TAYLOR T,10/1/2017,12/31/2017,PRESS SECRETARY,25750,2017
,2017 OFFICE OF THE MINORITY LEADER,Q4,GENERAL EXPENDITURES,PERSONNEL COMPENSATION,DETAIL,   ,   ,   ,HAMMILL ANDREW T.,10/1/2017,12/31/2017,DEPUTY CHIEF OF STAFF,43125,2017
,2017 OFFICE OF THE MINORITY LEADER,Q4,GENERAL EXPENDITURES,PERSONNEL COMPENSATION,DETAIL,   ,   ,   ,HAYNES JR WILFRED J.,10/1/2017,12/31/2017,IT DIRECTOR,27728.49,2017
,2017 OFFICE OF THE MINORITY LEADER,Q4,GENERAL EXPENDITURES,PERSONNEL COMPENSATION,DETAIL,   ,   ,   ,HIDALGO ADRIANA N,10/1/2017,12/31/2017,SHARED EMPLOYEE,5000.01,2017
,2017 OFFICE OF THE MINORITY LEADER,Q4,GENERAL EXPENDITURES,PERSONNEL COMPENSATION,DETAIL,   ,   ,   ,HOLMES NATHANIEL J,10/1/2017,12/31/2017,DEP DIR SCHED/ADVANCE ASSOC,21750.01,2017
,2017 OFFICE OF THE MINORITY LEADER,Q4,GENERAL EXPENDITURES,PERSONNEL COMPENSATION,DETAIL,   ,   ,   ,HURWITZ ROSS B,10/10/2017,12/31/2017,DEPUTY DIR. OF SPEECHWRITING,18625.01,2017
,2017 OFFICE OF THE MINORITY LEADER,Q4,GENERAL EXPENDITURES,PERSONNEL COMPENSATION,DETAIL,   ,   ,   ,KEATING ROSE M,10/1/2017,12/31/2017,ASST FLOOR MANAGER,37250.01,2017
,2017 OFFICE OF THE MINORITY LEADER,Q4,GENERAL EXPENDITURES,PERSONNEL COMPENSATION,DETAIL,   ,   ,   ,KEITA KAMILAH Z,10/1/2017,12/31/2017,DEPUTY INFOMATION TECH. DIRECT,29283.01,2017
,2017 OFFICE OF THE MINORITY LEADER,Q4,GENERAL EXPENDITURES,PERSONNEL COMPENSATION,DETAIL,   ,   ,   ,KUHN ELENA M,10/1/2017,12/31/2017,SENIOR PRESS ASSISTANT,15750.01,2017
,2017 OFFICE OF THE MINORITY LEADER,Q4,GENERAL EXPENDITURES,PERSONNEL COMPENSATION,DETAIL,   ,   ,   ,KUHN ELENA M,9/1/2017,11/30/2017,SENIOR PRESS ASSISTANT (OVERTIME),7121.86,2017
,2017 OFFICE OF THE MINORITY LEADER,Q4,GENERAL EXPENDITURES,PERSONNEL COMPENSATION,DETAIL,   ,   ,   ,KUNDANIS GEORGE,10/1/2017,12/31/2017,DEPUTY CHIEF OF STAFF,43125,2017
,2017 OFFICE OF THE MINORITY LEADER,Q4,GENERAL EXPENDITURES,PERSONNEL COMPENSATION,DETAIL,   ,   ,   ,LA ALISA M,10/1/2017,12/31/2017,DEPUTY DIR. OF ADVANCE,22624.99,2017
,2017 OFFICE OF THE MINORITY LEADER,Q4,GENERAL EXPENDITURES,PERSONNEL COMPENSATION,DETAIL,   ,   ,   ,LEE SERYEUNG,10/1/2017,12/31/2017,DEPUTY PRESS SECRETARY,19624.99,2017
,2017 OFFICE OF THE MINORITY LEADER,Q4,GENERAL EXPENDITURES,PERSONNEL COMPENSATION,DETAIL,   ,   ,   ,LIZARRAGA JAIME E.,10/1/2017,12/31/2017,SR ADV & DIR OF MEMBER SVC,42467.5,2017
,2017 OFFICE OF THE MINORITY LEADER,Q4,GENERAL EXPENDITURES,PERSONNEL COMPENSATION,DETAIL,   ,   ,   ,LONG MICHAEL G,10/1/2017,12/31/2017,SENIOR ADVISOR,35749.99,2017
,2017 OFFICE OF THE MINORITY LEADER,Q4,GENERAL EXPENDITURES,PERSONNEL COMPENSATION,DETAIL,   ,   ,   ,MANGRUM PEARL J.,10/1/2017,12/31/2017,FINANCIAL ADMINISTRATOR,22250.01,2017
,2017 OFFICE OF THE MINORITY LEADER,Q4,GENERAL EXPENDITURES,PERSONNEL COMPENSATION,DETAIL,   ,   ,   ,MANSBACH SHANA G,10/1/2017,12/31/2017,DEPUTY DIR OF SPEECHWRITING,25750,2017
,2017 OFFICE OF THE MINORITY LEADER,Q4,GENERAL EXPENDITURES,PERSONNEL COMPENSATION,DETAIL,   ,   ,   ,MASON TAMIKA K,10/1/2017,12/31/2017,SR STAFF ASST SYS ADMIN,20166.67,2017
,2017 OFFICE OF THE MINORITY LEADER,Q4,GENERAL EXPENDITURES,PERSONNEL COMPENSATION,DETAIL,   ,   ,   ,MELTZER RICHARD,10/1/2017,12/31/2017,POLICY DIRECTOR,43125,2017
,2017 OFFICE OF THE MINORITY LEADER,Q4,GENERAL EXPENDITURES,PERSONNEL COMPENSATION,DETAIL,   ,   ,   ,MONGE KATHERINE S,10/1/2017,12/31/2017,SENIOR POLICY ADVISOR,41250,2017
,2017 OFFICE OF THE MINORITY LEADER,Q4,GENERAL EXPENDITURES,PERSONNEL COMPENSATION,DETAIL,   ,   ,   ,OBSCURA JULIO C,10/1/2017,12/31/2017,CREATIVE DIR/DPTY PRESS SEC,19624.99,2017
,2017 OFFICE OF THE MINORITY LEADER,Q4,GENERAL EXPENDITURES,PERSONNEL COMPENSATION,DETAIL,   ,   ,   ,PARKER WYNDEE R.,10/1/2017,12/31/2017,SENIOR POLICY ADVISOR,43125,2017
,2017 OFFICE OF THE MINORITY LEADER,Q4,GENERAL EXPENDITURES,PERSONNEL COMPENSATION,DETAIL,   ,   ,   ,PFEIFFER AMY M,10/1/2017,10/31/2017,SENIOR ADVISOR,8333.33,2017
,2017 OFFICE OF THE MINORITY LEADER,Q4,GENERAL EXPENDITURES,PERSONNEL COMPENSATION,DETAIL,   ,   ,   ,PFEIFFER AMY M,11/1/2017,12/31/2017,POLICY DIRECTOR,24333.34,2017
,2017 OFFICE OF THE MINORITY LEADER,Q4,GENERAL EXPENDITURES,PERSONNEL COMPENSATION,DETAIL,   ,   ,   ,POLZIN SAVANNAH J,10/1/2017,12/31/2017,ASST TO THE EXECUTIVE OFFICE,16375,2017
,2017 OFFICE OF THE MINORITY LEADER,Q4,GENERAL EXPENDITURES,PERSONNEL COMPENSATION,DETAIL,   ,   ,   ,POLZIN SAVANNAH J,9/1/2017,11/30/2017,ASST TO THE EXECUTIVE OFFICE (OVERTIME),6133.89,2017
,2017 OFFICE OF THE MINORITY LEADER,Q4,GENERAL EXPENDITURES,PERSONNEL COMPENSATION,DETAIL,   ,   ,   ,POWELL LATRICE S,10/1/2017,12/31/2017,ASSISTANT CLOAKROOM MANAGER,33500.01,2017
,2017 OFFICE OF THE MINORITY LEADER,Q4,GENERAL EXPENDITURES,PERSONNEL COMPENSATION,DETAIL,   ,   ,   ,PRICE REVA B.,10/1/2017,12/31/2017,OUTREACH DIRECTOR & ADVISOR,37924.26,2017
,2017 OFFICE OF THE MINORITY LEADER,Q4,GENERAL EXPENDITURES,PERSONNEL COMPENSATION,DETAIL,   ,   ,   ,PRIMUS WENDELL E.,10/1/2017,12/31/2017,SENIOR POLICY ADVISOR,43125,2017
,2017 OFFICE OF THE MINORITY LEADER,Q4,GENERAL EXPENDITURES,PERSONNEL COMPENSATION,DETAIL,   ,   ,   ,SMITH KELSEY L,10/1/2017,12/31/2017,DIR. OF SCHEDULING & ADVANCE,31999.99,2017
,2017 OFFICE OF THE MINORITY LEADER,Q4,GENERAL EXPENDITURES,PERSONNEL COMPENSATION,DETAIL,   ,   ,   ,STERN KEITH L.,10/1/2017,12/31/2017,DIRECTOR OF FLOOR OPERATIONS,41782.67,2017
,2017 OFFICE OF THE MINORITY LEADER,Q4,GENERAL EXPENDITURES,PERSONNEL COMPENSATION,DETAIL,   ,   ,   ,SURGEON BINA G,10/1/2017,12/31/2017,SPECIAL ASST TO THE LEADER,35500.01,2017
,2017 OFFICE OF THE MINORITY LEADER,Q4,GENERAL EXPENDITURES,PERSONNEL COMPENSATION,DETAIL,   ,   ,   ,TECKLENBURG MICHAEL H.,10/1/2017,12/31/2017,COUNSEL,38499.99,2017
,2017 OFFICE OF THE MINORITY LEADER,Q4,GENERAL EXPENDITURES,PERSONNEL COMPENSATION,DETAIL,   ,   ,   ,WATKINS YELBERTON R.,10/1/2017,12/31/2017,CHIEF OF STAFF,42500,2017
,2017 OFFICE OF THE MINORITY LEADER,Q4,GENERAL EXPENDITURES,PERSONNEL COMPENSATION,DETAIL,   ,   ,   ,WEISS DANIEL,10/1/2017,12/31/2017,CHIEF OF STAFF,43125,2017
,2017 OFFICE OF THE MINORITY LEADER,Q4,GENERAL EXPENDITURES,PERSONNEL COMPENSATION,DETAIL,   ,   ,   ,WEST JULIUS L,10/1/2017,12/31/2017,SENIOR ADVISOR,28250.01,2017
,2017 OFFICE OF THE MINORITY LEADER,Q4,GENERAL EXPENDITURES,PERSONNEL COMPENSATION,DETAIL,   ,   ,   ,WILKES CHRISTINA E,10/1/2017,12/31/2017,PRESS ASSISTANT,15000.01,2017
,2017 OFFICE OF THE MINORITY LEADER,Q4,GENERAL EXPENDITURES,PERSONNEL COMPENSATION,DETAIL,   ,   ,   ,WILKES CHRISTINA E,9/1/2017,11/30/2017,PRESS ASSISTANT (OVERTIME),4694.67,2017
,2017 OFFICE OF THE MINORITY LEADER,Q4,GENERAL EXPENDITURES,PERSONNEL COMPENSATION,DETAIL,   ,   ,   ,WOLTERS KATE,10/1/2017,12/31/2017,DIRECTOR OF PROTOCOL,40696.5,2017
,2017 OFFICE OF THE MINORITY LEADER,Q4,GENERAL EXPENDITURES,PERSONNEL COMPENSATION,DETAIL,   ,   ,   ,YORK JEMMA D,10/1/2017,12/31/2017,PRESS ADVISOR/SENIOR WRITER,21000,2017
,2017 OFFICE OF THE MINORITY LEADER,Q4,GENERAL EXPENDITURES,PERSONNEL COMPENSATION,SUBTOTAL,   ,   ,   ,   ,   ,   ,PERSONNEL COMPENSATION TOTALS:,1629123.12,2017
,2017 OFFICE OF THE MINORITY LEADER,Q4,GENERAL EXPENDITURES,TRAVEL,DETAIL,10/13/2017,AP,E0559606,POLZIN SAVANNAH J.,9/19/2017,10/2/2017,TAXI/PARKING/TOLLS,73.81,2017
,2017 OFFICE OF THE MINORITY LEADER,Q4,GENERAL EXPENDITURES,TRAVEL,DETAIL,10/13/2017,AP,E0559623,LA ALISA M.,9/13/2017,10/2/2017,TAXI/PARKING/TOLLS,46.13,2017
,2017 OFFICE OF THE MINORITY LEADER,Q4,GENERAL EXPENDITURES,TRAVEL,DETAIL,10/13/2017,AP,E0559678,GRIFFIN TAYLOR T.,9/17/2017,9/19/2017,MEALS,114.98,2017
,2017 OFFICE OF THE MINORITY LEADER,Q4,GENERAL EXPENDITURES,TRAVEL,DETAIL,10/13/2017,AP,E0559678,GRIFFIN TAYLOR T.,9/17/2017,9/19/2017,PRIVATE AUTO MILEAGE,41.62,2017
,2017 OFFICE OF THE MINORITY LEADER,Q4,GENERAL EXPENDITURES,TRAVEL,DETAIL,10/13/2017,AP,E0559680,CITIBANK GOV CARD SERVICE,8/31/2017,8/31/2017,COMMERCIAL TRANSPORTATION,25,2017
,2017 OFFICE OF THE MINORITY LEADER,Q4,GENERAL EXPENDITURES,TRAVEL,DETAIL,10/13/2017,AP,E0559680,CITIBANK GOV CARD SERVICE,9/17/2017,9/19/2017,COMMERCIAL TRANSPORTATION,899.5,2017
,2017 OFFICE OF THE MINORITY LEADER,Q4,GENERAL EXPENDITURES,TRAVEL,DETAIL,10/13/2017,AP,E0559680,CITIBANK GOV CARD SERVICE,8/28/2017,9/19/2017,TAXI/PARKING/TOLLS,154.12,2017
,2017 OFFICE OF THE MINORITY LEADER,Q4,GENERAL EXPENDITURES,TRAVEL,DETAIL,10/27/2017,AP,E0555685,ANDROFF BLAKE J.,7/24/2017,7/24/2017,PRIVATE AUTO MILEAGE,-74.9,2017
,2017 OFFICE OF THE MINORITY LEADER,Q4,GENERAL EXPENDITURES,TRAVEL,DETAIL,10/27/2017,AP,E0555685,ANDROFF BLAKE J.,7/24/2017,7/24/2017,TAXI/PARKING/TOLLS,-18,2017
,2017 OFFICE OF THE MINORITY LEADER,Q4,GENERAL EXPENDITURES,TRAVEL,DETAIL,10/27/2017,AP,E0563850,HAMMILL ANDREW T.,10/15/2017,10/15/2017,COMMERCIAL TRANSPORTATION,289,2017
,2017 OFFICE OF THE MINORITY LEADER,Q4,GENERAL EXPENDITURES,TRAVEL,DETAIL,10/27/2017,AP,E0563850,HAMMILL ANDREW T.,10/14/2017,10/15/2017,LODGING,495.77,2017
,2017 OFFICE OF THE MINORITY LEADER,Q4,GENERAL EXPENDITURES,TRAVEL,DETAIL,10/27/2017,AP,E0563850,HAMMILL ANDREW T.,10/14/2017,10/15/2017,MEALS,94.24,2017
,2017 OFFICE OF THE MINORITY LEADER,Q4,GENERAL EXPENDITURES,TRAVEL,DETAIL,10/27/2017,AP,E0563850,HAMMILL ANDREW T.,10/15/2017,10/15/2017,TAXI/PARKING/TOLLS,43.33,2017
,2017 OFFICE OF THE MINORITY LEADER,Q4,GENERAL EXPENDITURES,TRAVEL,DETAIL,10/29/2017,AP,E0563848,POLZIN SAVANNAH J.,10/10/2017,10/10/2017,TAXI/PARKING/TOLLS,22.52,2017
,2017 OFFICE OF THE MINORITY LEADER,Q4,GENERAL EXPENDITURES,TRAVEL,DETAIL,11/2/2017,AP,E0566395,POLZIN SAVANNAH J.,10/23/2017,10/23/2017,TAXI/PARKING/TOLLS,55.04,2017
,2017 OFFICE OF THE MINORITY LEADER,Q4,GENERAL EXPENDITURES,TRAVEL,DETAIL,11/8/2017,AP,E0567937,POLZIN SAVANNAH J.,10/24/2017,11/1/2017,TAXI/PARKING/TOLLS,56.34,2017
,2017 OFFICE OF THE MINORITY LEADER,Q4,GENERAL EXPENDITURES,TRAVEL,DETAIL,11/16/2017,AP,E0570212,LIZARRAGA JAIME E.,10/18/2017,10/18/2017,LODGING,12,2017
,2017 OFFICE OF THE MINORITY LEADER,Q4,GENERAL EXPENDITURES,TRAVEL,DETAIL,11/16/2017,AP,E0570212,LIZARRAGA JAIME E.,10/14/2017,10/18/2017,MEALS,100.01,2017
,2017 OFFICE OF THE MINORITY LEADER,Q4,GENERAL EXPENDITURES,TRAVEL,DETAIL,11/16/2017,AP,E0570212,LIZARRAGA JAIME E.,10/17/2017,10/18/2017,CAR RENTAL,96.47,2017
,2017 OFFICE OF THE MINORITY LEADER,Q4,GENERAL EXPENDITURES,TRAVEL,DETAIL,11/16/2017,AP,E0570212,LIZARRAGA JAIME E.,10/18/2017,10/18/2017,GASOLINE,6.38,2017
,2017 OFFICE OF THE MINORITY LEADER,Q4,GENERAL EXPENDITURES,TRAVEL,DETAIL,11/16/2017,AP,E0570212,LIZARRAGA JAIME E.,10/17/2017,10/19/2017,TAXI/PARKING/TOLLS,74.83,2017
,2017 OFFICE OF THE MINORITY LEADER,Q4,GENERAL EXPENDITURES,TRAVEL,DETAIL,11/16/2017,AP,E0570213,SMITH KELSEY L.,8/16/2017,8/16/2017,MEALS,23.56,2017
,2017 OFFICE OF THE MINORITY LEADER,Q4,GENERAL EXPENDITURES,TRAVEL,DETAIL,11/16/2017,AP,E0570213,SMITH KELSEY L.,9/13/2017,9/13/2017,TAXI/PARKING/TOLLS,19.73,2017
,2017 OFFICE OF THE MINORITY LEADER,Q4,GENERAL EXPENDITURES,TRAVEL,DETAIL,11/16/2017,AP,E0570213,SMITH KELSEY L.,10/15/2017,10/18/2017,TAXI/PARKING/TOLLS,30.57,2017
,2017 OFFICE OF THE MINORITY LEADER,Q4,GENERAL EXPENDITURES,TRAVEL,DETAIL,11/16/2017,AP,E0570214,CITIBANK GOV CARD SERVICE,10/16/2017,10/27/2017,COMMERCIAL TRANSPORTATION,846.8,2017
,2017 OFFICE OF THE MINORITY LEADER,Q4,GENERAL EXPENDITURES,TRAVEL,DETAIL,11/16/2017,AP,E0570214,CITIBANK GOV CARD SERVICE,10/17/2017,10/17/2017,MEALS,24.79,2017
,2017 OFFICE OF THE MINORITY LEADER,Q4,GENERAL EXPENDITURES,TRAVEL,DETAIL,11/16/2017,AP,E0570214,CITIBANK GOV CARD SERVICE,10/4/2017,10/26/2017,TAXI/PARKING/TOLLS,364.32,2017
,2017 OFFICE OF THE MINORITY LEADER,Q4,GENERAL EXPENDITURES,TRAVEL,DETAIL,11/16/2017,AP,E0570492,HIDALGO ADRIANA N.,10/26/2017,11/1/2017,TAXI/PARKING/TOLLS,73.02,2017
,2017 OFFICE OF THE MINORITY LEADER,Q4,GENERAL EXPENDITURES,TRAVEL,DETAIL,11/20/2017,AP,E0570216,CITIBANK GOV CARD SERVICE,10/21/2017,10/21/2017,TAXI/PARKING/TOLLS,27.6,2017
,2017 OFFICE OF THE MINORITY LEADER,Q4,GENERAL EXPENDITURES,TRAVEL,DETAIL,11/28/2017,AP,E0570215,CITIBANK GOV CARD SERVICE,10/14/2017,10/19/2017,COMMERCIAL TRANSPORTATION,1974.38,2017
,2017 OFFICE OF THE MINORITY LEADER,Q4,GENERAL EXPENDITURES,TRAVEL,DETAIL,11/28/2017,AP,E0570215,CITIBANK GOV CARD SERVICE,10/16/2017,10/22/2017,LODGING,2916.7,2017
,2017 OFFICE OF THE MINORITY LEADER,Q4,GENERAL EXPENDITURES,TRAVEL,DETAIL,11/28/2017,AP,E0570215,CITIBANK GOV CARD SERVICE,10/16/2017,10/19/2017,MEALS,456.61,2017
,2017 OFFICE OF THE MINORITY LEADER,Q4,GENERAL EXPENDITURES,TRAVEL,DETAIL,11/28/2017,AP,E0570215,CITIBANK GOV CARD SERVICE,10/16/2017,10/16/2017,TAXI/PARKING/TOLLS,111.22,2017
,2017 OFFICE OF THE MINORITY LEADER,Q4,GENERAL EXPENDITURES,TRAVEL,DETAIL,11/28/2017,AP,E0570215,CITIBANK GOV CARD SERVICE,10/17/2017,10/17/2017,TAXI/PARKING/TOLLS,41.8,2017
,2017 OFFICE OF THE MINORITY LEADER,Q4,GENERAL EXPENDITURES,TRAVEL,DETAIL,11/29/2017,AP,E0573129,CONNELLY HENRY V.,10/17/2017,10/19/2017,LODGING,604.56,2017
,2017 OFFICE OF THE MINORITY LEADER,Q4,GENERAL EXPENDITURES,TRAVEL,DETAIL,11/29/2017,AP,E0573129,CONNELLY HENRY V.,10/16/2017,10/19/2017,MEALS,122.9,2017
,2017 OFFICE OF THE MINORITY LEADER,Q4,GENERAL EXPENDITURES,TRAVEL,DETAIL,11/29/2017,AP,E0573129,CONNELLY HENRY V.,10/14/2017,10/19/2017,TAXI/PARKING/TOLLS,216.25,2017
,2017 OFFICE OF THE MINORITY LEADER,Q4,GENERAL EXPENDITURES,TRAVEL,DETAIL,11/29/2017,AP,E0573142,POLZIN SAVANNAH J.,11/1/2017,11/8/2017,TAXI/PARKING/TOLLS,48.72,2017
,2017 OFFICE OF THE MINORITY LEADER,Q4,GENERAL EXPENDITURES,TRAVEL,DETAIL,11/29/2017,AP,E0573143,HIDALGO ADRIANA N.,10/11/2017,10/29/2017,MEALS,28.9,2017
,2017 OFFICE OF THE MINORITY LEADER,Q4,GENERAL EXPENDITURES,TRAVEL,DETAIL,11/29/2017,AP,E0573275,CITIBANK GOV CARD SERVICE,10/17/2017,10/27/2017,COMMERCIAL TRANSPORTATION,743,2017
,2017 OFFICE OF THE MINORITY LEADER,Q4,GENERAL EXPENDITURES,TRAVEL,DETAIL,11/29/2017,AP,E0573275,CITIBANK GOV CARD SERVICE,10/17/2017,10/26/2017,MEALS,79.27,2017
,2017 OFFICE OF THE MINORITY LEADER,Q4,GENERAL EXPENDITURES,TRAVEL,DETAIL,11/29/2017,AP,E0573275,CITIBANK GOV CARD SERVICE,10/26/2017,10/26/2017,TAXI/PARKING/TOLLS,50.1,2017
,2017 OFFICE OF THE MINORITY LEADER,Q4,GENERAL EXPENDITURES,TRAVEL,DETAIL,12/1/2017,AP,E0573145,CITIBANK GOV CARD SERVICE,10/21/2017,10/27/2017,COMMERCIAL TRANSPORTATION,1087.6,2017
,2017 OFFICE OF THE MINORITY LEADER,Q4,GENERAL EXPENDITURES,TRAVEL,DETAIL,12/1/2017,AP,E0573145,CITIBANK GOV CARD SERVICE,10/21/2017,10/22/2017,LODGING,805.61,2017
,2017 OFFICE OF THE MINORITY LEADER,Q4,GENERAL EXPENDITURES,TRAVEL,DETAIL,12/1/2017,AP,E0573145,CITIBANK GOV CARD SERVICE,10/21/2017,10/26/2017,TAXI/PARKING/TOLLS,69.22,2017
,2017 OFFICE OF THE MINORITY LEADER,Q4,GENERAL EXPENDITURES,TRAVEL,DETAIL,12/6/2017,AP,E0575610,GRIFFIN TAYLOR T.,10/19/2017,11/9/2017,MEALS,251.14,2017
,2017 OFFICE OF THE MINORITY LEADER,Q4,GENERAL EXPENDITURES,TRAVEL,DETAIL,12/6/2017,AP,E0575610,GRIFFIN TAYLOR T.,10/29/2017,10/29/2017,PRIVATE AUTO MILEAGE,15.3,2017
,2017 OFFICE OF THE MINORITY LEADER,Q4,GENERAL EXPENDITURES,TRAVEL,DETAIL,12/6/2017,AP,E0575610,GRIFFIN TAYLOR T.,10/27/2017,10/27/2017,TAXI/PARKING/TOLLS,25,2017
,2017 OFFICE OF THE MINORITY LEADER,Q4,GENERAL EXPENDITURES,TRAVEL,DETAIL,12/6/2017,AP,E0575619,CONNELLY HENRY V.,11/16/2017,11/18/2017,COMMERCIAL TRANSPORTATION,320,2017
,2017 OFFICE OF THE MINORITY LEADER,Q4,GENERAL EXPENDITURES,TRAVEL,DETAIL,12/6/2017,AP,E0575619,CONNELLY HENRY V.,11/16/2017,11/17/2017,MEALS,17.36,2017
,2017 OFFICE OF THE MINORITY LEADER,Q4,GENERAL EXPENDITURES,TRAVEL,DETAIL,12/6/2017,AP,E0575619,CONNELLY HENRY V.,11/16/2017,11/18/2017,TAXI/PARKING/TOLLS,143.65,2017
,2017 OFFICE OF THE MINORITY LEADER,Q4,GENERAL EXPENDITURES,TRAVEL,DETAIL,12/14/2017,AP,E0577743,POLZIN SAVANNAH J.,11/15/2017,12/1/2017,TAXI/PARKING/TOLLS,61.85,2017
,2017 OFFICE OF THE MINORITY LEADER,Q4,GENERAL EXPENDITURES,TRAVEL,DETAIL,12/14/2017,AP,E0577744,BERRET EMILY C.,11/5/2017,11/5/2017,TAXI/PARKING/TOLLS,16.92,2017
,2017 OFFICE OF THE MINORITY LEADER,Q4,GENERAL EXPENDITURES,TRAVEL,DETAIL,12/14/2017,AP,E0577745,SMITH KELSEY L.,11/8/2017,11/29/2017,TAXI/PARKING/TOLLS,49.66,2017
,2017 OFFICE OF THE MINORITY LEADER,Q4,GENERAL EXPENDITURES,TRAVEL,DETAIL,12/17/2017,AP,E0580759,CITIBANK GOV CARD SERVICE,10/29/2017,11/1/2017,COMMERCIAL TRANSPORTATION,333.18,2017
,2017 OFFICE OF THE MINORITY LEADER,Q4,GENERAL EXPENDITURES,TRAVEL,DETAIL,12/17/2017,AP,E0580759,CITIBANK GOV CARD SERVICE,10/26/2017,11/1/2017,MEALS,76.7,2017
,2017 OFFICE OF THE MINORITY LEADER,Q4,GENERAL EXPENDITURES,TRAVEL,DETAIL,12/18/2017,AP,E0577747,CITIBANK GOV CARD SERVICE,10/29/2017,11/10/2017,COMMERCIAL TRANSPORTATION,1705.2,2017
,2017 OFFICE OF THE MINORITY LEADER,Q4,GENERAL EXPENDITURES,TRAVEL,DETAIL,12/18/2017,AP,E0577747,CITIBANK GOV CARD SERVICE,10/29/2017,10/30/2017,LODGING,311.84,2017
,2017 OFFICE OF THE MINORITY LEADER,Q4,GENERAL EXPENDITURES,TRAVEL,DETAIL,12/18/2017,AP,E0577747,CITIBANK GOV CARD SERVICE,10/27/2017,11/9/2017,MEALS,124.89,2017
,2017 OFFICE OF THE MINORITY LEADER,Q4,GENERAL EXPENDITURES,TRAVEL,DETAIL,12/18/2017,AP,E0577747,CITIBANK GOV CARD SERVICE,10/27/2017,11/11/2017,TAXI/PARKING/TOLLS,350.4,2017
,2017 OFFICE OF THE MINORITY LEADER,Q4,GENERAL EXPENDITURES,TRAVEL,DETAIL,12/18/2017,AP,E0577749,CITIBANK GOV CARD SERVICE,11/16/2017,11/19/2017,COMMERCIAL TRANSPORTATION,791.8,2017
,2017 OFFICE OF THE MINORITY LEADER,Q4,GENERAL EXPENDITURES,TRAVEL,DETAIL,12/18/2017,AP,E0577749,CITIBANK GOV CARD SERVICE,11/17/2017,11/17/2017,MEALS,25.13,2017
,2017 OFFICE OF THE MINORITY LEADER,Q4,GENERAL EXPENDITURES,TRAVEL,DETAIL,12/18/2017,AP,E0577749,CITIBANK GOV CARD SERVICE,11/17/2017,11/17/2017,TAXI/PARKING/TOLLS,31.16,2017
,2017 OFFICE OF THE MINORITY LEADER,Q4,GENERAL EXPENDITURES,TRAVEL,DETAIL,12/20/2017,AP,E0577748,CITIBANK GOV CARD SERVICE,11/5/2017,11/6/2017,COMMERCIAL TRANSPORTATION,494.4,2017
,2017 OFFICE OF THE MINORITY LEADER,Q4,GENERAL EXPENDITURES,TRAVEL,DETAIL,12/20/2017,AP,E0577748,CITIBANK GOV CARD SERVICE,11/5/2017,11/6/2017,LODGING,315.27,2017
,2017 OFFICE OF THE MINORITY LEADER,Q4,GENERAL EXPENDITURES,TRAVEL,DETAIL,12/20/2017,AP,E0577748,CITIBANK GOV CARD SERVICE,11/6/2017,11/6/2017,MEALS,27.11,2017
,2017 OFFICE OF THE MINORITY LEADER,Q4,GENERAL EXPENDITURES,TRAVEL,DETAIL,12/27/2017,AP,E0579607,CITIBANK GOV CARD SERVICE,11/17/2017,11/17/2017,COMMERCIAL TRANSPORTATION,62.2,2017
,2017 OFFICE OF THE MINORITY LEADER,Q4,GENERAL EXPENDITURES,TRAVEL,DETAIL,12/28/2017,AP,E0584425,MONGE KATHERINE S.,7/12/2017,7/24/2017,TAXI/PARKING/TOLLS,25,2017
,2017 OFFICE OF THE MINORITY LEADER,Q4,GENERAL EXPENDITURES,TRAVEL,DETAIL,12/28/2017,AP,E0584425,MONGE KATHERINE S.,10/3/2017,10/13/2017,TAXI/PARKING/TOLLS,23,2017
,2017 OFFICE OF THE MINORITY LEADER,Q4,GENERAL EXPENDITURES,TRAVEL,DETAIL,12/28/2017,AP,E0584428,POLZIN SAVANNAH J.,12/7/2017,12/18/2017,TAXI/PARKING/TOLLS,49.06,2017
,2017 OFFICE OF THE MINORITY LEADER,Q4,GENERAL EXPENDITURES,TRAVEL,DETAIL,12/28/2017,AP,E0584981,HOLMES NATHANIEL J.,11/16/2017,11/17/2017,LODGING,232.4,2017
,2017 OFFICE OF THE MINORITY LEADER,Q4,GENERAL EXPENDITURES,TRAVEL,DETAIL,12/28/2017,AP,E0584981,HOLMES NATHANIEL J.,11/16/2017,11/19/2017,TAXI/PARKING/TOLLS,123.93,2017
,2017 OFFICE OF THE MINORITY LEADER,Q4,GENERAL EXPENDITURES,TRAVEL,DETAIL,12/28/2017,AP,E0584981,HOLMES NATHANIEL J.,12/1/2017,12/20/2017,TAXI/PARKING/TOLLS,19.76,2017
,2017 OFFICE OF THE MINORITY LEADER,Q4,GENERAL EXPENDITURES,TRAVEL,SUBTOTAL,   ,   ,   ,   ,   ,   ,TRAVEL TOTALS:,19398.73,2017
,2017 OFFICE OF THE MINORITY LEADER,Q4,GENERAL EXPENDITURES,RENT  COMMUNICATION  UTILITIES,DETAIL,10/19/2017,AP,951470,CITI PCARD-USPS PO,8/29/2017,9/28/2017,POSTAGE / COURIER / BOX RENTAL,12.28,2017
,2017 OFFICE OF THE MINORITY LEADER,Q4,GENERAL EXPENDITURES,RENT  COMMUNICATION  UTILITIES,DETAIL,11/28/2017,GL,GRP0073473, ,11/1/2017,11/30/2017,HIR GRAPHICS (TRANSFER),107,2017
,2017 OFFICE OF THE MINORITY LEADER,Q4,GENERAL EXPENDITURES,RENT  COMMUNICATION  UTILITIES,DETAIL,11/29/2017,AP,E0573131,FEDEX,10/26/2017,10/26/2017,POSTAGE / COURIER / BOX RENTAL,40.16,2017
,2017 OFFICE OF THE MINORITY LEADER,Q4,GENERAL EXPENDITURES,RENT  COMMUNICATION  UTILITIES,DETAIL,11/29/2017,AP,E0573132,FEDEX,10/26/2017,10/26/2017,POSTAGE / COURIER / BOX RENTAL,72.52,2017
,2017 OFFICE OF THE MINORITY LEADER,Q4,GENERAL EXPENDITURES,RENT  COMMUNICATION  UTILITIES,DETAIL,11/30/2017,AP,958486,CITIBANK P CARD,8/29/2017,9/28/2017,POSTAGE / COURIER / BOX RENTAL,-12.28,2017
,2017 OFFICE OF THE MINORITY LEADER,Q4,GENERAL EXPENDITURES,RENT  COMMUNICATION  UTILITIES,DETAIL,12/17/2017,AP,E0580759,CITIBANK GOV CARD SERVICE,10/26/2017,10/26/2017,TELECOMSRV/EQ/TOLL CHARGE,8.99,2017
,2017 OFFICE OF THE MINORITY LEADER,Q4,GENERAL EXPENDITURES,RENT  COMMUNICATION  UTILITIES,DETAIL,12/18/2017,AP,E0577747,CITIBANK GOV CARD SERVICE,10/26/2017,11/9/2017,TELECOMSRV/EQ/TOLL CHARGE,28.98,2017
,2017 OFFICE OF THE MINORITY LEADER,Q4,GENERAL EXPENDITURES,RENT  COMMUNICATION  UTILITIES,DETAIL,12/29/2017,AP,E0584406,FEDEX,11/30/2017,11/30/2017,POSTAGE / COURIER / BOX RENTAL,19.9,2017
,2017 OFFICE OF THE MINORITY LEADER,Q4,GENERAL EXPENDITURES,RENT  COMMUNICATION  UTILITIES,SUBTOTAL,   ,   ,   ,   ,   ,   ,RENT  COMMUNICATION  UTILITIES TOTALS:,277.55,2017
,2017 OFFICE OF THE MINORITY LEADER,Q4,GENERAL EXPENDITURES,PRINTING AND REPRODUCTION,DETAIL,10/19/2017,AP,951470,CITI PCARD-TWITTER ONLINE ADS,8/29/2017,9/28/2017,ADVERTISEMENTS,8386.38,2017
,2017 OFFICE OF THE MINORITY LEADER,Q4,GENERAL EXPENDITURES,PRINTING AND REPRODUCTION,DETAIL,10/26/2017,GL,PIX0072695, ,10/1/2017,10/31/2017,PHOTOGRAPHIC (TRANSFER),201.1,2017
,2017 OFFICE OF THE MINORITY LEADER,Q4,GENERAL EXPENDITURES,PRINTING AND REPRODUCTION,DETAIL,11/20/2017,AP,957556,CITI PCARD-TWITTER ONLINE ADS,9/29/2017,10/27/2017,ADVERTISEMENTS,3011.55,2017
,2017 OFFICE OF THE MINORITY LEADER,Q4,GENERAL EXPENDITURES,PRINTING AND REPRODUCTION,DETAIL,11/28/2017,GL,PIX0073418, ,11/1/2017,11/30/2017,PHOTOGRAPHIC (TRANSFER),216.7,2017
,2017 OFFICE OF THE MINORITY LEADER,Q4,GENERAL EXPENDITURES,PRINTING AND REPRODUCTION,DETAIL,12/19/2017,AP,963392,CITI PCARD-FACEBK AW38AESZL,10/28/2017,11/28/2017,ADVERTISEMENTS,75.7,2017
,2017 OFFICE OF THE MINORITY LEADER,Q4,GENERAL EXPENDITURES,PRINTING AND REPRODUCTION,DETAIL,12/19/2017,AP,963392,CITI PCARD-FACEBK EBXD2EE2M,10/28/2017,11/28/2017,ADVERTISEMENTS,750.85,2017
,2017 OFFICE OF THE MINORITY LEADER,Q4,GENERAL EXPENDITURES,PRINTING AND REPRODUCTION,DETAIL,12/19/2017,AP,963392,CITI PCARD-FACEBK JTWV4ES2M,10/28/2017,11/28/2017,ADVERTISEMENTS,532.53,2017
,2017 OFFICE OF THE MINORITY LEADER,Q4,GENERAL EXPENDITURES,PRINTING AND REPRODUCTION,DETAIL,12/19/2017,AP,963392,CITI PCARD-FACEBK NY6KGESZL,10/28/2017,11/28/2017,ADVERTISEMENTS,751.5,2017
,2017 OFFICE OF THE MINORITY LEADER,Q4,GENERAL EXPENDITURES,PRINTING AND REPRODUCTION,DETAIL,12/19/2017,AP,963392,CITI PCARD-FACEBK Y64CEE62M,10/28/2017,11/28/2017,ADVERTISEMENTS,751.78,2017
,2017 OFFICE OF THE MINORITY LEADER,Q4,GENERAL EXPENDITURES,PRINTING AND REPRODUCTION,DETAIL,12/19/2017,AP,963392,CITI PCARD-FACEBK ZYCSAEN2M,10/28/2017,11/28/2017,ADVERTISEMENTS,124.3,2017
,2017 OFFICE OF THE MINORITY LEADER,Q4,GENERAL EXPENDITURES,PRINTING AND REPRODUCTION,DETAIL,12/19/2017,AP,963392,CITI PCARD-TWITTER ONLINE ADS,10/28/2017,11/28/2017,ADVERTISEMENTS,6241.77,2017
,2017 OFFICE OF THE MINORITY LEADER,Q4,GENERAL EXPENDITURES,PRINTING AND REPRODUCTION,DETAIL,12/22/2017,GL,PIX0074132, ,12/1/2017,12/31/2017,PHOTOGRAPHIC (TRANSFER),325.25,2017
,2017 OFFICE OF THE MINORITY LEADER,Q4,GENERAL EXPENDITURES,PRINTING AND REPRODUCTION,DETAIL,12/23/2017,AP,E0584396,DAVID L ANDRUKITIS INC,12/14/2017,12/14/2017,PRINTING & REPRODUCTION,622.5,2017
,2017 OFFICE OF THE MINORITY LEADER,Q4,GENERAL EXPENDITURES,PRINTING AND REPRODUCTION,SUBTOTAL,   ,   ,   ,   ,   ,   ,PRINTING AND REPRODUCTION TOTALS:,21991.91,2017
,2017 OFFICE OF THE MINORITY LEADER,Q4,GENERAL EXPENDITURES,OTHER SERVICES,DETAIL,10/27/2017,AP,E0563001,NEAL R GROSS & COMPANY INC,9/27/2017,9/27/2017,STENOGRAPHIC REPORTING,1500,2017
,2017 OFFICE OF THE MINORITY LEADER,Q4,GENERAL EXPENDITURES,OTHER SERVICES,DETAIL,11/3/2017,AP,E0566370,BERNARD RAIMO,10/1/2017,10/31/2017,CONSULTANT CONTRACT SERVICE,7628,2017
,2017 OFFICE OF THE MINORITY LEADER,Q4,GENERAL EXPENDITURES,OTHER SERVICES,DETAIL,12/7/2017,AP,E0575618,BERNARD RAIMO,11/1/2017,11/30/2017,CONSULTANT CONTRACT SERVICE,7628,2017
,2017 OFFICE OF THE MINORITY LEADER,Q4,GENERAL EXPENDITURES,OTHER SERVICES,DETAIL,12/29/2017,AP,E0584411,NEAL R GROSS & COMPANY INC,12/13/2017,12/13/2017,STENOGRAPHIC REPORTING,1500,2017
,2017 OFFICE OF THE MINORITY LEADER,Q4,GENERAL EXPENDITURES,OTHER SERVICES,SUBTOTAL,   ,   ,   ,   ,   ,   ,OTHER SERVICES TOTALS:,18256,2017
,2017 OFFICE OF THE MINORITY LEADER,Q4,GENERAL EXPENDITURES,SUPPLIES AND MATERIALS,DETAIL,10/5/2017,AP,E0557174,CAPITOL  HOST,9/13/2017,9/13/2017,FOOD & BEVERAGE,146.49,2017
,2017 OFFICE OF THE MINORITY LEADER,Q4,GENERAL EXPENDITURES,SUPPLIES AND MATERIALS,DETAIL,10/5/2017,AP,E0557175,CAPITOL  HOST,9/12/2017,9/12/2017,FOOD & BEVERAGE,30.76,2017
,2017 OFFICE OF THE MINORITY LEADER,Q4,GENERAL EXPENDITURES,SUPPLIES AND MATERIALS,DETAIL,10/6/2017,AP,E0557176,CAPITOL  HOST,9/13/2017,9/13/2017,FOOD & BEVERAGE,157.15,2017
,2017 OFFICE OF THE MINORITY LEADER,Q4,GENERAL EXPENDITURES,SUPPLIES AND MATERIALS,DETAIL,10/12/2017,AP,E0559612,CAPITOL  HOST,9/28/2017,9/28/2017,FOOD & BEVERAGE,143.1,2017
,2017 OFFICE OF THE MINORITY LEADER,Q4,GENERAL EXPENDITURES,SUPPLIES AND MATERIALS,DETAIL,10/12/2017,AP,E0559614,CAPITOL  HOST,9/27/2017,9/27/2017,FOOD & BEVERAGE,36.62,2017
,2017 OFFICE OF THE MINORITY LEADER,Q4,GENERAL EXPENDITURES,SUPPLIES AND MATERIALS,DETAIL,10/12/2017,AP,E0559618,CAPITOL  HOST,9/14/2017,9/14/2017,FOOD & BEVERAGE,67.48,2017
,2017 OFFICE OF THE MINORITY LEADER,Q4,GENERAL EXPENDITURES,SUPPLIES AND MATERIALS,DETAIL,10/12/2017,AP,E0559619,CAPITOL  HOST,9/27/2017,9/27/2017,FOOD & BEVERAGE,152.99,2017
,2017 OFFICE OF THE MINORITY LEADER,Q4,GENERAL EXPENDITURES,SUPPLIES AND MATERIALS,DETAIL,10/13/2017,AP,E0559622,CAPITOL  HOST,9/27/2017,9/27/2017,FOOD & BEVERAGE,362.19,2017
,2017 OFFICE OF THE MINORITY LEADER,Q4,GENERAL EXPENDITURES,SUPPLIES AND MATERIALS,DETAIL,10/13/2017,AP,E0559682,OCCASIONS CATERERS INC,9/14/2017,9/14/2017,FOOD & BEVERAGE,445,2017
,2017 OFFICE OF THE MINORITY LEADER,Q4,GENERAL EXPENDITURES,SUPPLIES AND MATERIALS,DETAIL,10/13/2017,AP,E0559684,MENUS CATERING INC,9/12/2017,9/12/2017,FOOD & BEVERAGE,3630,2017
,2017 OFFICE OF THE MINORITY LEADER,Q4,GENERAL EXPENDITURES,SUPPLIES AND MATERIALS,DETAIL,10/15/2017,AP,E0559683,MENUS CATERING INC,9/13/2017,9/13/2017,FOOD & BEVERAGE,12180,2017
,2017 OFFICE OF THE MINORITY LEADER,Q4,GENERAL EXPENDITURES,SUPPLIES AND MATERIALS,DETAIL,10/17/2017,AP,E0559616,CAPITOL  HOST,9/14/2017,9/14/2017,FOOD & BEVERAGE,157.15,2017
,2017 OFFICE OF THE MINORITY LEADER,Q4,GENERAL EXPENDITURES,SUPPLIES AND MATERIALS,DETAIL,10/19/2017,AP,951470,CITI PCARD-ADOBE  CREATIVE CLOUD,8/29/2017,9/28/2017,PUBLICATIONS/REFERENCE MAT'L,888.17,2017
,2017 OFFICE OF THE MINORITY LEADER,Q4,GENERAL EXPENDITURES,SUPPLIES AND MATERIALS,DETAIL,10/19/2017,AP,951470,CITI PCARD-AMAZON MKTPLACE PMTS,8/29/2017,9/28/2017,FOOD & BEVERAGE,217.91,2017
,2017 OFFICE OF THE MINORITY LEADER,Q4,GENERAL EXPENDITURES,SUPPLIES AND MATERIALS,DETAIL,10/19/2017,AP,951470,CITI PCARD-CAP MARKET CAF,8/29/2017,9/28/2017,FOOD & BEVERAGE,10,2017
,2017 OFFICE OF THE MINORITY LEADER,Q4,GENERAL EXPENDITURES,SUPPLIES AND MATERIALS,DETAIL,10/19/2017,AP,951470,CITI PCARD-FIREHOOK CAPITOL HILL,8/29/2017,9/28/2017,FOOD & BEVERAGE,38.52,2017
,2017 OFFICE OF THE MINORITY LEADER,Q4,GENERAL EXPENDITURES,SUPPLIES AND MATERIALS,DETAIL,10/19/2017,AP,951470,CITI PCARD-HARRISTEETER,8/29/2017,9/28/2017,FOOD & BEVERAGE,113.56,2017
,2017 OFFICE OF THE MINORITY LEADER,Q4,GENERAL EXPENDITURES,SUPPLIES AND MATERIALS,DETAIL,10/19/2017,AP,951470,CITI PCARD-HARRISTEETER,8/29/2017,9/28/2017,HABITATION EXPENSE,8.99,2017
,2017 OFFICE OF THE MINORITY LEADER,Q4,GENERAL EXPENDITURES,SUPPLIES AND MATERIALS,DETAIL,10/19/2017,AP,951470,CITI PCARD-HUNAN DYNASTY,8/29/2017,9/28/2017,FOOD & BEVERAGE,189.12,2017
,2017 OFFICE OF THE MINORITY LEADER,Q4,GENERAL EXPENDITURES,SUPPLIES AND MATERIALS,DETAIL,10/19/2017,AP,951470,CITI PCARD-SAINT ELMOS,8/29/2017,9/28/2017,FOOD & BEVERAGE,26.56,2017
,2017 OFFICE OF THE MINORITY LEADER,Q4,GENERAL EXPENDITURES,SUPPLIES AND MATERIALS,DETAIL,10/19/2017,AP,951470,CITI PCARD-TARGET,8/29/2017,9/28/2017,FOOD & BEVERAGE,543.36,2017
,2017 OFFICE OF THE MINORITY LEADER,Q4,GENERAL EXPENDITURES,SUPPLIES AND MATERIALS,DETAIL,10/19/2017,AP,951470,CITI PCARD-USHR LONGWORTH FOOD CT,8/29/2017,9/28/2017,FOOD & BEVERAGE,60.35,2017
,2017 OFFICE OF THE MINORITY LEADER,Q4,GENERAL EXPENDITURES,SUPPLIES AND MATERIALS,DETAIL,10/19/2017,AP,951470,CITI PCARD-WE THE PIZZA,8/29/2017,9/28/2017,FOOD & BEVERAGE,288.91,2017
,2017 OFFICE OF THE MINORITY LEADER,Q4,GENERAL EXPENDITURES,SUPPLIES AND MATERIALS,DETAIL,10/19/2017,AP,951470,CITI PCARD-WHOLEFDS HST,8/29/2017,9/28/2017,FOOD & BEVERAGE,24.49,2017
,2017 OFFICE OF THE MINORITY LEADER,Q4,GENERAL EXPENDITURES,SUPPLIES AND MATERIALS,DETAIL,10/19/2017,AP,951470,CITI PCARD-WHOLEFOODS.COM,8/29/2017,9/28/2017,FOOD & BEVERAGE,98.98,2017
,2017 OFFICE OF THE MINORITY LEADER,Q4,GENERAL EXPENDITURES,SUPPLIES AND MATERIALS,DETAIL,10/29/2017,AP,E0562985,LIZARRAGA JAIME E.,9/21/2017,9/21/2017,FOOD & BEVERAGE,51.44,2017
,2017 OFFICE OF THE MINORITY LEADER,Q4,GENERAL EXPENDITURES,SUPPLIES AND MATERIALS,DETAIL,11/2/2017,AP,E0566377,TOULIES EN FLEUR,10/2/2017,10/31/2017,HABITATION EXPENSE,1000,2017
,2017 OFFICE OF THE MINORITY LEADER,Q4,GENERAL EXPENDITURES,SUPPLIES AND MATERIALS,DETAIL,11/2/2017,AP,E0566379,TOULIES EN FLEUR,9/5/2017,9/25/2017,HABITATION EXPENSE,750,2017
,2017 OFFICE OF THE MINORITY LEADER,Q4,GENERAL EXPENDITURES,SUPPLIES AND MATERIALS,DETAIL,11/2/2017,AP,E0566381,CRYSTAL SPRINGS,10/1/2017,10/31/2017,FOOD & BEVERAGE,403.72,2017
,2017 OFFICE OF THE MINORITY LEADER,Q4,GENERAL EXPENDITURES,SUPPLIES AND MATERIALS,DETAIL,11/2/2017,AP,E0566382,CAPITOL  HOST,10/11/2017,10/11/2017,FOOD & BEVERAGE,327.19,2017
,2017 OFFICE OF THE MINORITY LEADER,Q4,GENERAL EXPENDITURES,SUPPLIES AND MATERIALS,DETAIL,11/2/2017,AP,E0566384,CAPITOL  HOST,10/10/2017,10/10/2017,FOOD & BEVERAGE,144.36,2017
,2017 OFFICE OF THE MINORITY LEADER,Q4,GENERAL EXPENDITURES,SUPPLIES AND MATERIALS,DETAIL,11/2/2017,AP,E0566386,CAPITOL  HOST,10/10/2017,10/10/2017,FOOD & BEVERAGE,73.25,2017
,2017 OFFICE OF THE MINORITY LEADER,Q4,GENERAL EXPENDITURES,SUPPLIES AND MATERIALS,DETAIL,11/2/2017,AP,E0566388,CAPITOL  HOST,10/5/2017,10/5/2017,FOOD & BEVERAGE,143.1,2017
,2017 OFFICE OF THE MINORITY LEADER,Q4,GENERAL EXPENDITURES,SUPPLIES AND MATERIALS,DETAIL,11/2/2017,AP,E0566389,CAPITOL  HOST,10/4/2017,10/4/2017,FOOD & BEVERAGE,145.08,2017
,2017 OFFICE OF THE MINORITY LEADER,Q4,GENERAL EXPENDITURES,SUPPLIES AND MATERIALS,DETAIL,11/2/2017,AP,E0566391,CAPITOL  HOST,10/2/2017,10/2/2017,FOOD & BEVERAGE,73.25,2017
,2017 OFFICE OF THE MINORITY LEADER,Q4,GENERAL EXPENDITURES,SUPPLIES AND MATERIALS,DETAIL,11/8/2017,AP,E0567928,CAPITOL  HOST,10/12/2017,10/12/2017,FOOD & BEVERAGE,158.04,2017
,2017 OFFICE OF THE MINORITY LEADER,Q4,GENERAL EXPENDITURES,SUPPLIES AND MATERIALS,DETAIL,11/16/2017,AP,E0570207,CAPITOL  HOST,10/31/2017,10/31/2017,FOOD & BEVERAGE,73.25,2017
,2017 OFFICE OF THE MINORITY LEADER,Q4,GENERAL EXPENDITURES,SUPPLIES AND MATERIALS,DETAIL,11/16/2017,AP,E0570208,CAPITOL  HOST,10/26/2017,10/26/2017,FOOD & BEVERAGE,158.04,2017
,2017 OFFICE OF THE MINORITY LEADER,Q4,GENERAL EXPENDITURES,SUPPLIES AND MATERIALS,DETAIL,11/16/2017,AP,E0570209,CAPITOL  HOST,10/25/2017,10/25/2017,FOOD & BEVERAGE,540.15,2017
,2017 OFFICE OF THE MINORITY LEADER,Q4,GENERAL EXPENDITURES,SUPPLIES AND MATERIALS,DETAIL,11/16/2017,AP,E0570210,MENUS CATERING INC,11/3/2017,11/3/2017,FOOD & BEVERAGE,748.9,2017
,2017 OFFICE OF THE MINORITY LEADER,Q4,GENERAL EXPENDITURES,SUPPLIES AND MATERIALS,DETAIL,11/16/2017,AP,E0570211,MENUS CATERING INC,10/25/2017,10/25/2017,FOOD & BEVERAGE,715.4,2017
,2017 OFFICE OF THE MINORITY LEADER,Q4,GENERAL EXPENDITURES,SUPPLIES AND MATERIALS,DETAIL,11/16/2017,AP,E0570212,LIZARRAGA JAIME E.,11/1/2017,11/1/2017,FOOD & BEVERAGE,67.61,2017
,2017 OFFICE OF THE MINORITY LEADER,Q4,GENERAL EXPENDITURES,SUPPLIES AND MATERIALS,DETAIL,11/16/2017,AP,E0570213,SMITH KELSEY L.,10/17/2017,10/17/2017,HABITATION EXPENSE,25.76,2017
,2017 OFFICE OF THE MINORITY LEADER,Q4,GENERAL EXPENDITURES,SUPPLIES AND MATERIALS,DETAIL,11/16/2017,AP,E0570214,CITIBANK GOV CARD SERVICE,10/17/2017,10/17/2017,PUBLICATIONS/REFERENCE MAT'L,1.62,2017
,2017 OFFICE OF THE MINORITY LEADER,Q4,GENERAL EXPENDITURES,SUPPLIES AND MATERIALS,DETAIL,11/20/2017,AP,957556,CITI PCARD-AMAZON MKTPLACE PMTS,9/29/2017,10/27/2017,FOOD & BEVERAGE,181.57,2017
,2017 OFFICE OF THE MINORITY LEADER,Q4,GENERAL EXPENDITURES,SUPPLIES AND MATERIALS,DETAIL,11/20/2017,AP,957556,CITI PCARD-GIANT,9/29/2017,10/27/2017,FOOD & BEVERAGE,46.97,2017
,2017 OFFICE OF THE MINORITY LEADER,Q4,GENERAL EXPENDITURES,SUPPLIES AND MATERIALS,DETAIL,11/20/2017,AP,957556,CITI PCARD-TARGET,9/29/2017,10/27/2017,FOOD & BEVERAGE,423.09,2017
,2017 OFFICE OF THE MINORITY LEADER,Q4,GENERAL EXPENDITURES,SUPPLIES AND MATERIALS,DETAIL,11/20/2017,AP,957556,CITI PCARD-USHR LONGWORTH FOOD CT,9/29/2017,10/27/2017,FOOD & BEVERAGE,87,2017
,2017 OFFICE OF THE MINORITY LEADER,Q4,GENERAL EXPENDITURES,SUPPLIES AND MATERIALS,DETAIL,11/20/2017,AP,957556,CITI PCARD-WHOLEFDS CYC,9/29/2017,10/27/2017,FOOD & BEVERAGE,42.98,2017
,2017 OFFICE OF THE MINORITY LEADER,Q4,GENERAL EXPENDITURES,SUPPLIES AND MATERIALS,DETAIL,11/20/2017,AP,957556,CITI PCARD-WHOLEFDS OTN,9/29/2017,10/27/2017,FOOD & BEVERAGE,139.81,2017
,2017 OFFICE OF THE MINORITY LEADER,Q4,GENERAL EXPENDITURES,SUPPLIES AND MATERIALS,DETAIL,11/28/2017,AP,E0573140,CAPITOL  HOST,11/1/2017,11/1/2017,FOOD & BEVERAGE,167.36,2017
,2017 OFFICE OF THE MINORITY LEADER,Q4,GENERAL EXPENDITURES,SUPPLIES AND MATERIALS,DETAIL,11/29/2017,AP,E0573134,CAPITOL  HOST,11/6/2017,11/6/2017,FOOD & BEVERAGE,73.25,2017
,2017 OFFICE OF THE MINORITY LEADER,Q4,GENERAL EXPENDITURES,SUPPLIES AND MATERIALS,DETAIL,11/29/2017,AP,E0573135,CAPITOL  HOST,11/2/2017,11/2/2017,FOOD & BEVERAGE,399.91,2017
,2017 OFFICE OF THE MINORITY LEADER,Q4,GENERAL EXPENDITURES,SUPPLIES AND MATERIALS,DETAIL,11/29/2017,AP,E0573136,CAPITOL  HOST,11/3/2017,11/3/2017,FOOD & BEVERAGE,480.92,2017
,2017 OFFICE OF THE MINORITY LEADER,Q4,GENERAL EXPENDITURES,SUPPLIES AND MATERIALS,DETAIL,11/29/2017,AP,E0573139,CAPITOL  HOST,11/2/2017,11/2/2017,FOOD & BEVERAGE,158.04,2017
,2017 OFFICE OF THE MINORITY LEADER,Q4,GENERAL EXPENDITURES,SUPPLIES AND MATERIALS,DETAIL,11/29/2017,AP,E0573141,CAPITOL  HOST,10/23/2017,10/23/2017,FOOD & BEVERAGE,73.25,2017
,2017 OFFICE OF THE MINORITY LEADER,Q4,GENERAL EXPENDITURES,SUPPLIES AND MATERIALS,DETAIL,12/5/2017,AP,E0575614,CAPITOL  HOST,11/13/2017,11/13/2017,FOOD & BEVERAGE,73.25,2017
,2017 OFFICE OF THE MINORITY LEADER,Q4,GENERAL EXPENDITURES,SUPPLIES AND MATERIALS,DETAIL,12/6/2017,AP,E0575613,TOULIES EN FLEUR,11/6/2017,11/28/2017,HABITATION EXPENSE,750,2017
,2017 OFFICE OF THE MINORITY LEADER,Q4,GENERAL EXPENDITURES,SUPPLIES AND MATERIALS,DETAIL,12/6/2017,AP,E0575615,CAPITOL  HOST,11/9/2017,11/9/2017,FOOD & BEVERAGE,158.04,2017
,2017 OFFICE OF THE MINORITY LEADER,Q4,GENERAL EXPENDITURES,SUPPLIES AND MATERIALS,DETAIL,12/6/2017,AP,E0575616,CAPITOL  HOST,11/8/2017,11/8/2017,FOOD & BEVERAGE,196.63,2017
,2017 OFFICE OF THE MINORITY LEADER,Q4,GENERAL EXPENDITURES,SUPPLIES AND MATERIALS,DETAIL,12/6/2017,AP,E0575619,CONNELLY HENRY V.,11/17/2017,11/17/2017,PUBLICATIONS/REFERENCE MAT'L,12.22,2017
,2017 OFFICE OF THE MINORITY LEADER,Q4,GENERAL EXPENDITURES,SUPPLIES AND MATERIALS,DETAIL,12/8/2017,AP,E0577739,CAPITOL  HOST,11/15/2017,11/15/2017,FOOD & BEVERAGE,901.06,2017
,2017 OFFICE OF THE MINORITY LEADER,Q4,GENERAL EXPENDITURES,SUPPLIES AND MATERIALS,DETAIL,12/8/2017,AP,E0577740,CAPITOL  HOST,11/15/2017,11/15/2017,FOOD & BEVERAGE,145.08,2017
,2017 OFFICE OF THE MINORITY LEADER,Q4,GENERAL EXPENDITURES,SUPPLIES AND MATERIALS,DETAIL,12/8/2017,AP,E0577741,CAPITOL  HOST,11/16/2017,11/16/2017,FOOD & BEVERAGE,158.04,2017
,2017 OFFICE OF THE MINORITY LEADER,Q4,GENERAL EXPENDITURES,SUPPLIES AND MATERIALS,DETAIL,12/11/2017,AP,E0575617,OCCASIONS CATERERS INC,11/15/2017,11/15/2017,FOOD & BEVERAGE,8725,2017
,2017 OFFICE OF THE MINORITY LEADER,Q4,GENERAL EXPENDITURES,SUPPLIES AND MATERIALS,DETAIL,12/15/2017,AP,E0577738,TOULIES EN FLEUR,12/4/2017,12/18/2017,HABITATION EXPENSE,750,2017
,2017 OFFICE OF THE MINORITY LEADER,Q4,GENERAL EXPENDITURES,SUPPLIES AND MATERIALS,DETAIL,12/18/2017,AP,E0577749,CITIBANK GOV CARD SERVICE,11/17/2017,11/17/2017,PUBLICATIONS/REFERENCE MAT'L,10.5,2017
,2017 OFFICE OF THE MINORITY LEADER,Q4,GENERAL EXPENDITURES,SUPPLIES AND MATERIALS,DETAIL,12/19/2017,AP,963392,CITI PCARD-AMAZON MKTPLACE PMTS,10/28/2017,11/28/2017,FOOD & BEVERAGE,114.97,2017
,2017 OFFICE OF THE MINORITY LEADER,Q4,GENERAL EXPENDITURES,SUPPLIES AND MATERIALS,DETAIL,12/19/2017,AP,963392,CITI PCARD-CAP MARKET CAF,10/28/2017,11/28/2017,FOOD & BEVERAGE,18.75,2017
,2017 OFFICE OF THE MINORITY LEADER,Q4,GENERAL EXPENDITURES,SUPPLIES AND MATERIALS,DETAIL,12/19/2017,AP,963392,CITI PCARD-CVS/PHARMACY,10/28/2017,11/28/2017,OFFICE SUPPLIES (OUTSIDE),16.5,2017
,2017 OFFICE OF THE MINORITY LEADER,Q4,GENERAL EXPENDITURES,SUPPLIES AND MATERIALS,DETAIL,12/19/2017,AP,963392,CITI PCARD-GIANT,10/28/2017,11/28/2017,FOOD & BEVERAGE,52.88,2017
,2017 OFFICE OF THE MINORITY LEADER,Q4,GENERAL EXPENDITURES,SUPPLIES AND MATERIALS,DETAIL,12/19/2017,AP,963392,CITI PCARD-TARGET,10/28/2017,11/28/2017,FOOD & BEVERAGE,561.92,2017
,2017 OFFICE OF THE MINORITY LEADER,Q4,GENERAL EXPENDITURES,SUPPLIES AND MATERIALS,DETAIL,12/19/2017,AP,963392,CITI PCARD-TARGET,10/28/2017,11/28/2017,OFFICE SUPPLIES (OUTSIDE),9.26,2017
,2017 OFFICE OF THE MINORITY LEADER,Q4,GENERAL EXPENDITURES,SUPPLIES AND MATERIALS,DETAIL,12/19/2017,AP,963392,CITI PCARD-USHR LONGWORTH FOOD CT,10/28/2017,11/28/2017,FOOD & BEVERAGE,124.35,2017
,2017 OFFICE OF THE MINORITY LEADER,Q4,GENERAL EXPENDITURES,SUPPLIES AND MATERIALS,DETAIL,12/23/2017,AP,E0584399,CONNECTION,10/27/2017,10/27/2017,OFFICE SUPPLIES (OUTSIDE),913,2017
,2017 OFFICE OF THE MINORITY LEADER,Q4,GENERAL EXPENDITURES,SUPPLIES AND MATERIALS,DETAIL,12/28/2017,AP,E0584413,CAPITOL  HOST,11/29/2017,11/29/2017,FOOD & BEVERAGE,69.75,2017
,2017 OFFICE OF THE MINORITY LEADER,Q4,GENERAL EXPENDITURES,SUPPLIES AND MATERIALS,DETAIL,12/28/2017,AP,E0584414,CAPITOL  HOST,11/30/2017,11/30/2017,FOOD & BEVERAGE,109.86,2017
,2017 OFFICE OF THE MINORITY LEADER,Q4,GENERAL EXPENDITURES,SUPPLIES AND MATERIALS,DETAIL,12/28/2017,AP,E0584417,CAPITOL  HOST,11/28/2017,11/28/2017,FOOD & BEVERAGE,73.25,2017
,2017 OFFICE OF THE MINORITY LEADER,Q4,GENERAL EXPENDITURES,SUPPLIES AND MATERIALS,DETAIL,12/28/2017,AP,E0584420,CAPITOL  HOST,12/4/2017,12/4/2017,FOOD & BEVERAGE,73.25,2017
,2017 OFFICE OF THE MINORITY LEADER,Q4,GENERAL EXPENDITURES,SUPPLIES AND MATERIALS,DETAIL,12/28/2017,AP,E0584421,MENUS CATERING INC,12/13/2017,12/13/2017,FOOD & BEVERAGE,613.9,2017
,2017 OFFICE OF THE MINORITY LEADER,Q4,GENERAL EXPENDITURES,SUPPLIES AND MATERIALS,DETAIL,12/28/2017,AP,E0584422,MENUS CATERING INC,12/6/2017,12/6/2017,FOOD & BEVERAGE,488,2017
,2017 OFFICE OF THE MINORITY LEADER,Q4,GENERAL EXPENDITURES,SUPPLIES AND MATERIALS,DETAIL,12/28/2017,AP,E0584426,WOLTERS KATE,12/15/2017,12/15/2017,FOOD & BEVERAGE,324.75,2017
,2017 OFFICE OF THE MINORITY LEADER,Q4,GENERAL EXPENDITURES,SUPPLIES AND MATERIALS,DETAIL,12/28/2017,AP,E0584431,LIZARRAGA JAIME E.,12/3/2017,12/3/2017,FOOD & BEVERAGE,61.44,2017
,2017 OFFICE OF THE MINORITY LEADER,Q4,GENERAL EXPENDITURES,SUPPLIES AND MATERIALS,DETAIL,12/28/2017,AP,E0584591,CAPITOL  HOST,12/1/2017,12/1/2017,FOOD & BEVERAGE,69.75,2017
,2017 OFFICE OF THE MINORITY LEADER,Q4,GENERAL EXPENDITURES,SUPPLIES AND MATERIALS,DETAIL,12/29/2017,AP,E0584394,CRYSTAL SPRINGS,11/1/2017,11/30/2017,FOOD & BEVERAGE,187.03,2017
,2017 OFFICE OF THE MINORITY LEADER,Q4,GENERAL EXPENDITURES,SUPPLIES AND MATERIALS,DETAIL,12/29/2017,AP,E0584412,CAPITOL  HOST,11/30/2017,11/30/2017,FOOD & BEVERAGE,158.04,2017
,2017 OFFICE OF THE MINORITY LEADER,Q4,GENERAL EXPENDITURES,SUPPLIES AND MATERIALS,DETAIL,12/29/2017,AP,E0584419,CAPITOL  HOST,11/29/2017,11/29/2017,FOOD & BEVERAGE,116.9,2017
,2017 OFFICE OF THE MINORITY LEADER,Q4,GENERAL EXPENDITURES,SUPPLIES AND MATERIALS,DETAIL,12/29/2017,AP,E0584423,OCCASIONS CATERERS INC,12/6/2017,12/6/2017,FOOD & BEVERAGE,6490,2017
,2017 OFFICE OF THE MINORITY LEADER,Q4,GENERAL EXPENDITURES,SUPPLIES AND MATERIALS,DETAIL,12/29/2017,AP,E0584424,MENUS CATERING INC,12/6/2017,12/6/2017,FOOD & BEVERAGE,11415,2017
,2017 OFFICE OF THE MINORITY LEADER,Q4,GENERAL EXPENDITURES,SUPPLIES AND MATERIALS,SUBTOTAL,   ,   ,   ,   ,   ,   ,SUPPLIES AND MATERIALS TOTALS:,61834.53,2017
,2017 OFFICE OF THE MINORITY LEADER,Q4,GENERAL EXPENDITURES,SUPPLIES AND MATERIALS,SUBTOTAL,   ,   ,   ,   ,   ,   ,GENERAL EXPENDITURES TOTALS:,1750881.84,2017
,2017 OFFICE OF THE MINORITY LEADER,Q4,GENERAL EXPENDITURES,SUPPLIES AND MATERIALS,GRAND TOTAL FOR ORGANIZATION,   ,   ,   ,   ,   ,   ,OFFICE TOTALS: ,1750881.84,2017
,2017 OFFICE OF THE MAJORITY WHIP,Q4,GENERAL EXPENDITURES,PERSONNEL COMPENSATION,DETAIL,   ,   ,   ,ACORNLEY MARK A.,10/1/2017,12/31/2017,FINANCIAL ADMINISTRATOR,3750,2017
,2017 OFFICE OF THE MAJORITY WHIP,Q4,GENERAL EXPENDITURES,PERSONNEL COMPENSATION,DETAIL,   ,   ,   ,BAILEY LUCAS J,9/30/2017,12/31/2017,STAFF ASSISTANT,9116.67,2017
,2017 OFFICE OF THE MAJORITY WHIP,Q4,GENERAL EXPENDITURES,PERSONNEL COMPENSATION,DETAIL,   ,   ,   ,BOND CHRISTOPHER J,10/1/2017,12/31/2017,COMMUNICATIONS DIRECTOR,38401.83,2017
,2017 OFFICE OF THE MAJORITY WHIP,Q4,GENERAL EXPENDITURES,PERSONNEL COMPENSATION,DETAIL,   ,   ,   ,BRAVO MATTHEW,10/1/2017,12/31/2017,DEPUTY DIRECTOR OF FLOOR OPERA,34897.98,2017
,2017 OFFICE OF THE MAJORITY WHIP,Q4,GENERAL EXPENDITURES,PERSONNEL COMPENSATION,DETAIL,   ,   ,   ,DEASE ALEXANDRA E,10/1/2017,12/31/2017,STAFF ASSISTANT,12750.01,2017
,2017 OFFICE OF THE MAJORITY WHIP,Q4,GENERAL EXPENDITURES,PERSONNEL COMPENSATION,DETAIL,   ,   ,   ,FINE LAUREN R,10/1/2017,12/31/2017,PRESS SECRETARY,22499.99,2017
,2017 OFFICE OF THE MAJORITY WHIP,Q4,GENERAL EXPENDITURES,PERSONNEL COMPENSATION,DETAIL,   ,   ,   ,GOSNELL ELLEN C,10/1/2017,12/31/2017,SCHEDULE COORDINATOR,9999.99,2017
,2017 OFFICE OF THE MAJORITY WHIP,Q4,GENERAL EXPENDITURES,PERSONNEL COMPENSATION,DETAIL,   ,   ,   ,HAMILTON PARKER,10/1/2017,12/31/2017,COS TO THE CHIEF DEP WHIP,30000,2017
,2017 OFFICE OF THE MAJORITY WHIP,Q4,GENERAL EXPENDITURES,PERSONNEL COMPENSATION,DETAIL,   ,   ,   ,HODGSON CHRISTOPHER M,10/1/2017,10/29/2017,DEPUTY FLOOR DIRECTOR,13211.11,2017
,2017 OFFICE OF THE MAJORITY WHIP,Q4,GENERAL EXPENDITURES,PERSONNEL COMPENSATION,DETAIL,   ,   ,   ,HORTON BRETT H.,10/1/2017,12/31/2017,CHIEF OF STAFF,42825,2017
,2017 OFFICE OF THE MAJORITY WHIP,Q4,GENERAL EXPENDITURES,PERSONNEL COMPENSATION,DETAIL,   ,   ,   ,HUDAK KELLEY K,10/1/2017,12/31/2017,BUSINESS COALITIONS COORD,27625,2017
,2017 OFFICE OF THE MAJORITY WHIP,Q4,GENERAL EXPENDITURES,PERSONNEL COMPENSATION,DETAIL,   ,   ,   ,HUGHES WILLIAM J,10/1/2017,12/31/2017,POLICY DIRECTOR,42674.01,2017
,2017 OFFICE OF THE MAJORITY WHIP,Q4,GENERAL EXPENDITURES,PERSONNEL COMPENSATION,DETAIL,   ,   ,   ,LEWIS WILLIAM M,10/1/2017,12/31/2017,STAFF ASSISTANT,12000,2017
,2017 OFFICE OF THE MAJORITY WHIP,Q4,GENERAL EXPENDITURES,PERSONNEL COMPENSATION,DETAIL,   ,   ,   ,NALLS DENNIS A,10/1/2017,12/31/2017,STAFF ASSISTANT,12000,2017
,2017 OFFICE OF THE MAJORITY WHIP,Q4,GENERAL EXPENDITURES,PERSONNEL COMPENSATION,DETAIL,   ,   ,   ,NAPIER BENJAMIN W,10/1/2017,10/31/2017,FLOOR ASSISTANT,10416.67,2017
,2017 OFFICE OF THE MAJORITY WHIP,Q4,GENERAL EXPENDITURES,PERSONNEL COMPENSATION,DETAIL,   ,   ,   ,NAPIER BENJAMIN W,11/1/2017,12/31/2017,DEPUTY FLOOR DIRECTOR,12833.34,2017
,2017 OFFICE OF THE MAJORITY WHIP,Q4,GENERAL EXPENDITURES,PERSONNEL COMPENSATION,DETAIL,   ,   ,   ,PLANNING DAVID M,10/1/2017,12/31/2017,SPECIAL ASST TO CHIEF DEP WHIP,7500,2017
,2017 OFFICE OF THE MAJORITY WHIP,Q4,GENERAL EXPENDITURES,PERSONNEL COMPENSATION,DETAIL,   ,   ,   ,REISER MARTIN G,10/1/2017,12/31/2017,LEGISLATIVE COUNSEL,42674.01,2017
,2017 OFFICE OF THE MAJORITY WHIP,Q4,GENERAL EXPENDITURES,PERSONNEL COMPENSATION,DETAIL,   ,   ,   ,REISING JOHN B,10/1/2017,12/31/2017,DIRECTOR OF OPERATIONS,15904.59,2017
,2017 OFFICE OF THE MAJORITY WHIP,Q4,GENERAL EXPENDITURES,PERSONNEL COMPENSATION,DETAIL,   ,   ,   ,SADLOSKY DANIEL J,10/1/2017,12/31/2017,POLICY ASSISTANT,24000,2017
,2017 OFFICE OF THE MAJORITY WHIP,Q4,GENERAL EXPENDITURES,PERSONNEL COMPENSATION,DETAIL,   ,   ,   ,WELKER RYLEE M,10/30/2017,12/31/2017,SPECIAL ASSISTANT TO THE CHIEF,8133.33,2017
,2017 OFFICE OF THE MAJORITY WHIP,Q4,GENERAL EXPENDITURES,PERSONNEL COMPENSATION,DETAIL,   ,   ,   ,WIEAND JR JEFFREY L,10/1/2017,12/31/2017,COUNSEL,30917.26,2017
,2017 OFFICE OF THE MAJORITY WHIP,Q4,GENERAL EXPENDITURES,PERSONNEL COMPENSATION,SUBTOTAL,   ,   ,   ,   ,   ,   ,PERSONNEL COMPENSATION TOTALS:,464130.79,2017
,2017 OFFICE OF THE MAJORITY WHIP,Q4,GENERAL EXPENDITURES,TRAVEL,DETAIL,10/13/2017,AP,E0559433,NALLS DENNIS A.,9/5/2017,9/27/2017,PRIVATE AUTO MILEAGE,106.47,2017
,2017 OFFICE OF THE MAJORITY WHIP,Q4,GENERAL EXPENDITURES,TRAVEL,DETAIL,10/27/2017,AP,E0562959,FINE LAUREN R.,9/30/2017,9/30/2017,MEALS,5.99,2017
,2017 OFFICE OF THE MAJORITY WHIP,Q4,GENERAL EXPENDITURES,TRAVEL,DETAIL,10/27/2017,AP,E0562959,FINE LAUREN R.,10/1/2017,10/2/2017,MEALS,45.06,2017
,2017 OFFICE OF THE MAJORITY WHIP,Q4,GENERAL EXPENDITURES,TRAVEL,DETAIL,10/27/2017,AP,E0562959,FINE LAUREN R.,9/30/2017,9/30/2017,TAXI/PARKING/TOLLS,15.86,2017
,2017 OFFICE OF THE MAJORITY WHIP,Q4,GENERAL EXPENDITURES,TRAVEL,DETAIL,10/27/2017,AP,E0563852,FINE LAUREN R.,10/13/2017,10/13/2017,TAXI/PARKING/TOLLS,10.27,2017
,2017 OFFICE OF THE MAJORITY WHIP,Q4,GENERAL EXPENDITURES,TRAVEL,DETAIL,10/27/2017,AP,E0563856,LEWIS WILLIAM M.,9/7/2017,9/29/2017,PRIVATE AUTO MILEAGE,41.73,2017
,2017 OFFICE OF THE MAJORITY WHIP,Q4,GENERAL EXPENDITURES,TRAVEL,DETAIL,10/27/2017,AP,E0563856,LEWIS WILLIAM M.,10/2/2017,10/6/2017,PRIVATE AUTO MILEAGE,24.61,2017
,2017 OFFICE OF THE MAJORITY WHIP,Q4,GENERAL EXPENDITURES,TRAVEL,DETAIL,10/27/2017,AP,E0563856,LEWIS WILLIAM M.,10/6/2017,10/16/2017,PRIVATE AUTO MILEAGE,13.91,2017
,2017 OFFICE OF THE MAJORITY WHIP,Q4,GENERAL EXPENDITURES,TRAVEL,DETAIL,11/2/2017,AP,E0566168,CITIBANK GOV CARD SERVICE,9/24/2017,10/2/2017,COMMERCIAL TRANSPORTATION,674.2,2017
,2017 OFFICE OF THE MAJORITY WHIP,Q4,GENERAL EXPENDITURES,TRAVEL,DETAIL,11/2/2017,AP,E0566168,CITIBANK GOV CARD SERVICE,9/27/2017,10/2/2017,LODGING,138.74,2017
,2017 OFFICE OF THE MAJORITY WHIP,Q4,GENERAL EXPENDITURES,TRAVEL,DETAIL,11/2/2017,AP,E0567015,HORTON BRETT H.,9/21/2017,9/27/2017,PRIVATE AUTO MILEAGE,8.35,2017
,2017 OFFICE OF THE MAJORITY WHIP,Q4,GENERAL EXPENDITURES,TRAVEL,DETAIL,11/2/2017,AP,E0567015,HORTON BRETT H.,10/4/2017,10/4/2017,PRIVATE AUTO MILEAGE,1.28,2017
,2017 OFFICE OF THE MAJORITY WHIP,Q4,GENERAL EXPENDITURES,TRAVEL,DETAIL,11/2/2017,AP,E0567015,HORTON BRETT H.,9/21/2017,10/4/2017,TAXI/PARKING/TOLLS,71,2017
,2017 OFFICE OF THE MAJORITY WHIP,Q4,GENERAL EXPENDITURES,TRAVEL,DETAIL,11/2/2017,AP,E0567016,HORTON BRETT H.,9/26/2017,9/26/2017,TAXI/PARKING/TOLLS,22.9,2017
,2017 OFFICE OF THE MAJORITY WHIP,Q4,GENERAL EXPENDITURES,TRAVEL,DETAIL,11/2/2017,AP,E0567016,HORTON BRETT H.,10/4/2017,10/4/2017,TAXI/PARKING/TOLLS,13,2017
,2017 OFFICE OF THE MAJORITY WHIP,Q4,GENERAL EXPENDITURES,TRAVEL,DETAIL,11/2/2017,AP,E0567024,HORTON BRETT H.,9/23/2017,9/24/2017,LODGING,210.19,2017
,2017 OFFICE OF THE MAJORITY WHIP,Q4,GENERAL EXPENDITURES,TRAVEL,DETAIL,11/2/2017,AP,E0567024,HORTON BRETT H.,9/24/2017,9/24/2017,MEALS,35.49,2017
,2017 OFFICE OF THE MAJORITY WHIP,Q4,GENERAL EXPENDITURES,TRAVEL,DETAIL,11/2/2017,AP,E0567024,HORTON BRETT H.,8/18/2017,8/30/2017,PRIVATE AUTO MILEAGE,9.63,2017
,2017 OFFICE OF THE MAJORITY WHIP,Q4,GENERAL EXPENDITURES,TRAVEL,DETAIL,11/2/2017,AP,E0567024,HORTON BRETT H.,9/6/2017,9/8/2017,PRIVATE AUTO MILEAGE,9.63,2017
,2017 OFFICE OF THE MAJORITY WHIP,Q4,GENERAL EXPENDITURES,TRAVEL,DETAIL,11/2/2017,AP,E0567024,HORTON BRETT H.,8/18/2017,8/30/2017,TAXI/PARKING/TOLLS,89.74,2017
,2017 OFFICE OF THE MAJORITY WHIP,Q4,GENERAL EXPENDITURES,TRAVEL,DETAIL,11/2/2017,AP,E0567029,HORTON BRETT H.,7/13/2017,7/13/2017,TAXI/PARKING/TOLLS,27.31,2017
,2017 OFFICE OF THE MAJORITY WHIP,Q4,GENERAL EXPENDITURES,TRAVEL,DETAIL,12/6/2017,AP,E0575214,HORTON BRETT H.,10/26/2017,11/5/2017,LODGING,1065.37,2017
,2017 OFFICE OF THE MAJORITY WHIP,Q4,GENERAL EXPENDITURES,TRAVEL,DETAIL,12/6/2017,AP,E0575214,HORTON BRETT H.,10/26/2017,11/5/2017,CAR RENTAL,401.31,2017
,2017 OFFICE OF THE MAJORITY WHIP,Q4,GENERAL EXPENDITURES,TRAVEL,DETAIL,12/6/2017,AP,E0575214,HORTON BRETT H.,10/28/2017,10/28/2017,GASOLINE,48.2,2017
,2017 OFFICE OF THE MAJORITY WHIP,Q4,GENERAL EXPENDITURES,TRAVEL,DETAIL,12/6/2017,AP,E0575214,HORTON BRETT H.,10/26/2017,11/5/2017,TAXI/PARKING/TOLLS,192,2017
,2017 OFFICE OF THE MAJORITY WHIP,Q4,GENERAL EXPENDITURES,TRAVEL,DETAIL,12/8/2017,AP,E0576254,GOSNELL ELLEN C.,9/22/2017,9/22/2017,LODGING,241.72,2017
,2017 OFFICE OF THE MAJORITY WHIP,Q4,GENERAL EXPENDITURES,TRAVEL,DETAIL,12/8/2017,AP,E0576254,GOSNELL ELLEN C.,9/22/2017,9/22/2017,PRIVATE AUTO MILEAGE,3.21,2017
,2017 OFFICE OF THE MAJORITY WHIP,Q4,GENERAL EXPENDITURES,TRAVEL,DETAIL,12/8/2017,AP,E0576254,GOSNELL ELLEN C.,9/23/2017,9/23/2017,TAXI/PARKING/TOLLS,88.43,2017
,2017 OFFICE OF THE MAJORITY WHIP,Q4,GENERAL EXPENDITURES,TRAVEL,DETAIL,12/19/2017,AP,E0581564,CITIBANK GOV CARD SERVICE,9/30/2017,11/3/2017,COMMERCIAL TRANSPORTATION,2748.6,2017
,2017 OFFICE OF THE MAJORITY WHIP,Q4,GENERAL EXPENDITURES,TRAVEL,DETAIL,12/19/2017,AP,E0581564,CITIBANK GOV CARD SERVICE,9/29/2017,9/30/2017,LODGING,577.94,2017
,2017 OFFICE OF THE MAJORITY WHIP,Q4,GENERAL EXPENDITURES,TRAVEL,DETAIL,12/19/2017,AP,E0581565,CITIBANK GOV CARD SERVICE,11/17/2017,11/17/2017,COMMERCIAL TRANSPORTATION,1175.6,2017
,2017 OFFICE OF THE MAJORITY WHIP,Q4,GENERAL EXPENDITURES,TRAVEL,DETAIL,12/22/2017,AP,E0584493,HUGHES WILLIAM J.,6/14/2017,6/14/2017,TAXI/PARKING/TOLLS,15,2017
,2017 OFFICE OF THE MAJORITY WHIP,Q4,GENERAL EXPENDITURES,TRAVEL,DETAIL,12/22/2017,AP,E0584493,HUGHES WILLIAM J.,9/12/2017,9/27/2017,TAXI/PARKING/TOLLS,47,2017
,2017 OFFICE OF THE MAJORITY WHIP,Q4,GENERAL EXPENDITURES,TRAVEL,DETAIL,12/28/2017,AP,E0584526,REISING JOHN BART,7/20/2017,7/20/2017,TAXI/PARKING/TOLLS,47,2017
,2017 OFFICE OF THE MAJORITY WHIP,Q4,GENERAL EXPENDITURES,TRAVEL,DETAIL,12/28/2017,AP,E0584526,REISING JOHN BART,8/1/2017,8/22/2017,TAXI/PARKING/TOLLS,15,2017
,2017 OFFICE OF THE MAJORITY WHIP,Q4,GENERAL EXPENDITURES,TRAVEL,SUBTOTAL,   ,   ,   ,   ,   ,   ,TRAVEL TOTALS:,8241.74,2017
,2017 OFFICE OF THE MAJORITY WHIP,Q4,GENERAL EXPENDITURES,RENT  COMMUNICATION  UTILITIES,DETAIL,12/6/2017,AP,E0575214,HORTON BRETT H.,11/9/2017,11/12/2017,UTILITIES,45.98,2017
,2017 OFFICE OF THE MAJORITY WHIP,Q4,GENERAL EXPENDITURES,RENT  COMMUNICATION  UTILITIES,SUBTOTAL,   ,   ,   ,   ,   ,   ,RENT  COMMUNICATION  UTILITIES TOTALS:,45.98,2017
,2017 OFFICE OF THE MAJORITY WHIP,Q4,GENERAL EXPENDITURES,PRINTING AND REPRODUCTION,DETAIL,10/26/2017,GL,PIX0072695, ,10/1/2017,10/31/2017,PHOTOGRAPHIC (TRANSFER),6.5,2017
,2017 OFFICE OF THE MAJORITY WHIP,Q4,GENERAL EXPENDITURES,PRINTING AND REPRODUCTION,DETAIL,11/28/2017,GL,PIX0073418, ,11/1/2017,11/30/2017,PHOTOGRAPHIC (TRANSFER),6.5,2017
,2017 OFFICE OF THE MAJORITY WHIP,Q4,GENERAL EXPENDITURES,PRINTING AND REPRODUCTION,SUBTOTAL,   ,   ,   ,   ,   ,   ,PRINTING AND REPRODUCTION TOTALS:,13,2017
,2017 OFFICE OF THE MAJORITY WHIP,Q4,GENERAL EXPENDITURES,SUPPLIES AND MATERIALS,DETAIL,10/15/2017,AP,E0559436,ICONSTITUENT LLC,10/1/2017,10/31/2017,PUBLICATIONS/REFERENCE MAT'L,500,2017
,2017 OFFICE OF THE MAJORITY WHIP,Q4,GENERAL EXPENDITURES,SUPPLIES AND MATERIALS,DETAIL,10/27/2017,AP,E0562959,FINE LAUREN R.,9/30/2017,9/30/2017,PUBLICATIONS/REFERENCE MAT'L,6.35,2017
,2017 OFFICE OF THE MAJORITY WHIP,Q4,GENERAL EXPENDITURES,SUPPLIES AND MATERIALS,DETAIL,10/27/2017,AP,E0562960,QUENCH,10/1/2017,10/31/2017,WATER,46.53,2017
,2017 OFFICE OF THE MAJORITY WHIP,Q4,GENERAL EXPENDITURES,SUPPLIES AND MATERIALS,DETAIL,11/16/2017,AP,E0570988,ICONSTITUENT LLC,11/1/2017,11/30/2017,PUBLICATIONS/REFERENCE MAT'L,500,2017
,2017 OFFICE OF THE MAJORITY WHIP,Q4,GENERAL EXPENDITURES,SUPPLIES AND MATERIALS,DETAIL,12/18/2017,AP,E0577380,ICONSTITUENT LLC,12/1/2017,12/31/2017,PUBLICATIONS/REFERENCE MAT'L,500,2017
,2017 OFFICE OF THE MAJORITY WHIP,Q4,GENERAL EXPENDITURES,SUPPLIES AND MATERIALS,DETAIL,12/28/2017,AP,E0584507,IMPACTOFFICE,8/24/2017,8/24/2017,OFFICE SUPPLIES (OUTSIDE),138.3,2017
,2017 OFFICE OF THE MAJORITY WHIP,Q4,GENERAL EXPENDITURES,SUPPLIES AND MATERIALS,SUBTOTAL,   ,   ,   ,   ,   ,   ,SUPPLIES AND MATERIALS TOTALS:,1691.18,2017
,2017 OFFICE OF THE MAJORITY WHIP,Q4,GENERAL EXPENDITURES,SUPPLIES AND MATERIALS,SUBTOTAL,   ,   ,   ,   ,   ,   ,GENERAL EXPENDITURES TOTALS:,474122.69,2017
,2017 OFFICE OF THE MAJORITY WHIP,Q4,GENERAL EXPENDITURES,SUPPLIES AND MATERIALS,GRAND TOTAL FOR ORGANIZATION,   ,   ,   ,   ,   ,   ,OFFICE TOTALS: ,474122.69,2017
,2017 OFFICE OF THE MINORITY WHIP,Q4,GENERAL EXPENDITURES,PERSONNEL COMPENSATION,DETAIL,   ,   ,   ,ABOUCHAR KEITH S.,10/1/2017,12/31/2017,SENIOR POLICY ADVISOR,35000.01,2017
,2017 OFFICE OF THE MINORITY WHIP,Q4,GENERAL EXPENDITURES,PERSONNEL COMPENSATION,DETAIL,   ,   ,   ,ABOUCHAR KEITH S.,10/1/2017,10/31/2017,SENIOR POLICY ADVISOR (OTHER COMPENSATION),2367,2017
,2017 OFFICE OF THE MINORITY WHIP,Q4,GENERAL EXPENDITURES,PERSONNEL COMPENSATION,DETAIL,   ,   ,   ,AVILES DANIELLE R,10/1/2017,12/31/2017,DEPUTY FLOOR DIRECTOR,18750,2017
,2017 OFFICE OF THE MINORITY WHIP,Q4,GENERAL EXPENDITURES,PERSONNEL COMPENSATION,DETAIL,   ,   ,   ,AVILES DANIELLE R,12/1/2017,12/31/2017,DEPUTY FLOOR DIRECTOR (OTHER COMPENSATION),4000,2017
,2017 OFFICE OF THE MINORITY WHIP,Q4,GENERAL EXPENDITURES,PERSONNEL COMPENSATION,DETAIL,   ,   ,   ,BAUSERMAN TRENTON D,10/1/2017,12/31/2017,SENIOR POLICY ADVISOR,30000,2017
,2017 OFFICE OF THE MINORITY WHIP,Q4,GENERAL EXPENDITURES,PERSONNEL COMPENSATION,DETAIL,   ,   ,   ,BAUSERMAN TRENTON D,12/1/2017,12/31/2017,SENIOR POLICY ADVISOR (OTHER COMPENSATION),4000,2017
,2017 OFFICE OF THE MINORITY WHIP,Q4,GENERAL EXPENDITURES,PERSONNEL COMPENSATION,DETAIL,   ,   ,   ,BAYER JOHN S,10/1/2017,12/31/2017,STAFF ASSISTANT,6249.99,2017
,2017 OFFICE OF THE MINORITY WHIP,Q4,GENERAL EXPENDITURES,PERSONNEL COMPENSATION,DETAIL,   ,   ,   ,BAYER JOHN S,9/1/2017,11/30/2017,STAFF ASSISTANT (OVERTIME),3641.78,2017
,2017 OFFICE OF THE MINORITY WHIP,Q4,GENERAL EXPENDITURES,PERSONNEL COMPENSATION,DETAIL,   ,   ,   ,BAYER JOHN S,11/1/2017,11/1/2017,STAFF ASSISTANT (OTHER COMPENSATION),2501,2017
,2017 OFFICE OF THE MINORITY WHIP,Q4,GENERAL EXPENDITURES,PERSONNEL COMPENSATION,DETAIL,   ,   ,   ,COLLINS MICHAEL E.,10/1/2017,12/31/2017,CHIEF DEPUTY WHIP,10625.01,2017
,2017 OFFICE OF THE MINORITY WHIP,Q4,GENERAL EXPENDITURES,PERSONNEL COMPENSATION,DETAIL,   ,   ,   ,CORTINA JOSEPH B,10/1/2017,12/31/2017,SPECIAL ASSISTANT,7250.01,2017
,2017 OFFICE OF THE MINORITY WHIP,Q4,GENERAL EXPENDITURES,PERSONNEL COMPENSATION,DETAIL,   ,   ,   ,CORTINA JOSEPH B,9/1/2017,11/30/2017,SPECIAL ASSISTANT (OVERTIME),2112.23,2017
,2017 OFFICE OF THE MINORITY WHIP,Q4,GENERAL EXPENDITURES,PERSONNEL COMPENSATION,DETAIL,   ,   ,   ,CORTINA JOSEPH B,12/1/2017,12/31/2017,SPECIAL ASSISTANT (OTHER COMPENSATION),2000,2017
,2017 OFFICE OF THE MINORITY WHIP,Q4,GENERAL EXPENDITURES,PERSONNEL COMPENSATION,DETAIL,   ,   ,   ,COVEY-BRANDT ALEXIS,10/1/2017,12/31/2017,CHIEF OF STAFF,43125,2017
,2017 OFFICE OF THE MINORITY WHIP,Q4,GENERAL EXPENDITURES,PERSONNEL COMPENSATION,DETAIL,   ,   ,   ,DWYER STEPHEN,10/1/2017,12/31/2017,DIGITAL DIR & POLICY ADV,17250,2017
,2017 OFFICE OF THE MINORITY WHIP,Q4,GENERAL EXPENDITURES,PERSONNEL COMPENSATION,DETAIL,   ,   ,   ,DWYER STEPHEN,10/1/2017,10/31/2017,DIGITAL DIR & POLICY ADV (OTHER COMPENSATION),2367,2017
,2017 OFFICE OF THE MINORITY WHIP,Q4,GENERAL EXPENDITURES,PERSONNEL COMPENSATION,DETAIL,   ,   ,   ,FRY COURTNEY,10/1/2017,12/31/2017,DEP OUTREACH DIR & MEM SER ADV,31250.01,2017
,2017 OFFICE OF THE MINORITY WHIP,Q4,GENERAL EXPENDITURES,PERSONNEL COMPENSATION,DETAIL,   ,   ,   ,FRY COURTNEY,12/1/2017,12/31/2017,DEP OUTREACH DIR & MEM SER ADV (OTHER COMPENSATION),2383,2017
,2017 OFFICE OF THE MINORITY WHIP,Q4,GENERAL EXPENDITURES,PERSONNEL COMPENSATION,DETAIL,   ,   ,   ,GOFF SHUWANZA R,10/1/2017,12/31/2017,FLOOR DIRECTOR,31250.01,2017
,2017 OFFICE OF THE MINORITY WHIP,Q4,GENERAL EXPENDITURES,PERSONNEL COMPENSATION,DETAIL,   ,   ,   ,GOFF SHUWANZA R,12/1/2017,12/31/2017,FLOOR DIRECTOR (OTHER COMPENSATION),2383,2017
,2017 OFFICE OF THE MINORITY WHIP,Q4,GENERAL EXPENDITURES,PERSONNEL COMPENSATION,DETAIL,   ,   ,   ,GRANT KATHRYN L,10/1/2017,12/31/2017,COMM DIR AND SR ADVISOR,33750,2017
,2017 OFFICE OF THE MINORITY WHIP,Q4,GENERAL EXPENDITURES,PERSONNEL COMPENSATION,DETAIL,   ,   ,   ,GRANT KATHRYN L,12/1/2017,12/31/2017,COMM DIR AND SR ADVISOR (OTHER COMPENSATION),2784,2017
,2017 OFFICE OF THE MINORITY WHIP,Q4,GENERAL EXPENDITURES,PERSONNEL COMPENSATION,DETAIL,   ,   ,   ,LEUSCHEN JAMES P.,10/1/2017,12/31/2017,SENIOR POLICY ADVISOR,35000.01,2017
,2017 OFFICE OF THE MINORITY WHIP,Q4,GENERAL EXPENDITURES,PERSONNEL COMPENSATION,DETAIL,   ,   ,   ,MACDONALD CHARLENE,10/1/2017,12/31/2017,SENIOR POLICY ADVISOR,31250.01,2017
,2017 OFFICE OF THE MINORITY WHIP,Q4,GENERAL EXPENDITURES,PERSONNEL COMPENSATION,DETAIL,   ,   ,   ,MAHR THOMAS,10/1/2017,12/31/2017,POLICY DIRECTOR,39999.99,2017
,2017 OFFICE OF THE MINORITY WHIP,Q4,GENERAL EXPENDITURES,PERSONNEL COMPENSATION,DETAIL,   ,   ,   ,MARGOLIS SARA I,10/1/2017,12/31/2017,STAFF ASSISTANT,6249.99,2017
,2017 OFFICE OF THE MINORITY WHIP,Q4,GENERAL EXPENDITURES,PERSONNEL COMPENSATION,DETAIL,   ,   ,   ,MARGOLIS SARA I,9/1/2017,11/30/2017,STAFF ASSISTANT (OVERTIME),3010.78,2017
,2017 OFFICE OF THE MINORITY WHIP,Q4,GENERAL EXPENDITURES,PERSONNEL COMPENSATION,DETAIL,   ,   ,   ,MARGOLIS SARA I,12/1/2017,12/31/2017,STAFF ASSISTANT (OTHER COMPENSATION),2000,2017
,2017 OFFICE OF THE MINORITY WHIP,Q4,GENERAL EXPENDITURES,PERSONNEL COMPENSATION,DETAIL,   ,   ,   ,MULKERRIN MARGARET A,10/1/2017,12/31/2017,PRESS AND RESEARCH ASSISTANT,12609.99,2017
,2017 OFFICE OF THE MINORITY WHIP,Q4,GENERAL EXPENDITURES,PERSONNEL COMPENSATION,DETAIL,   ,   ,   ,MULKERRIN MARGARET A,12/1/2017,12/31/2017,PRESS AND RESEARCH ASSISTANT (OTHER COMPENSATION),3000,2017
,2017 OFFICE OF THE MINORITY WHIP,Q4,GENERAL EXPENDITURES,PERSONNEL COMPENSATION,DETAIL,   ,   ,   ,ROMICK BRIAN,10/1/2017,12/31/2017,DEPUTY CHIEF OF STAFF,42500.01,2017
,2017 OFFICE OF THE MINORITY WHIP,Q4,GENERAL EXPENDITURES,PERSONNEL COMPENSATION,DETAIL,   ,   ,   ,ROWE DEBORAH M,10/1/2017,12/31/2017,EXECUTIVE ASSISTANT/OFC MGR,13333.33,2017
,2017 OFFICE OF THE MINORITY WHIP,Q4,GENERAL EXPENDITURES,PERSONNEL COMPENSATION,DETAIL,   ,   ,   ,ROWE DEBORAH M,12/1/2017,12/31/2017,EXECUTIVE ASSISTANT/OFC MGR (OTHER COMPENSATION),5000,2017
,2017 OFFICE OF THE MINORITY WHIP,Q4,GENERAL EXPENDITURES,PERSONNEL COMPENSATION,DETAIL,   ,   ,   ,SAEZ MARIEL S,10/1/2017,12/31/2017,PRESS SECRETARY,2499.99,2017
,2017 OFFICE OF THE MINORITY WHIP,Q4,GENERAL EXPENDITURES,PERSONNEL COMPENSATION,DETAIL,   ,   ,   ,SALAZAR RAYMOND J.,10/1/2017,12/31/2017,FLOOR ASSISTANT,13749.99,2017
,2017 OFFICE OF THE MINORITY WHIP,Q4,GENERAL EXPENDITURES,PERSONNEL COMPENSATION,DETAIL,   ,   ,   ,SALAZAR RAYMOND J.,12/1/2017,12/31/2017,FLOOR ASSISTANT (OTHER COMPENSATION),4000,2017
,2017 OFFICE OF THE MINORITY WHIP,Q4,GENERAL EXPENDITURES,PERSONNEL COMPENSATION,DETAIL,   ,   ,   ,SILVERBERG DANIEL I,10/1/2017,12/31/2017,SENIOR POLICY ADVISOR,17750.01,2017
,2017 OFFICE OF THE MINORITY WHIP,Q4,GENERAL EXPENDITURES,PERSONNEL COMPENSATION,DETAIL,   ,   ,   ,SILVERBERG DANIEL I,10/1/2017,10/31/2017,SENIOR POLICY ADVISOR (OTHER COMPENSATION),1867,2017
,2017 OFFICE OF THE MINORITY WHIP,Q4,GENERAL EXPENDITURES,PERSONNEL COMPENSATION,DETAIL,   ,   ,   ,SUGAR-CARLSGAARD JORDAN,10/1/2017,12/31/2017,DIR OF SCHED & SPECIAL EVENTS,20499.99,2017
,2017 OFFICE OF THE MINORITY WHIP,Q4,GENERAL EXPENDITURES,PERSONNEL COMPENSATION,DETAIL,   ,   ,   ,SUGAR-CARLSGAARD JORDAN,12/1/2017,12/31/2017,DIR OF SCHED & SPECIAL EVENTS (OTHER COMPENSATION),3500,2017
,2017 OFFICE OF THE MINORITY WHIP,Q4,GENERAL EXPENDITURES,PERSONNEL COMPENSATION,DETAIL,   ,   ,   ,URRABAZO CLAUDIA,10/1/2017,12/31/2017,DEP. DIR OF MBR SER & OUTR ADV,23000.01,2017
,2017 OFFICE OF THE MINORITY WHIP,Q4,GENERAL EXPENDITURES,PERSONNEL COMPENSATION,DETAIL,   ,   ,   ,URRABAZO CLAUDIA,11/1/2017,11/1/2017,DEP. DIR OF MBR SER & OUTR ADV (OTHER COMPENSATION),8000,2017
,2017 OFFICE OF THE MINORITY WHIP,Q4,GENERAL EXPENDITURES,PERSONNEL COMPENSATION,DETAIL,   ,   ,   ,WEISSMANN ADAM,10/1/2017,12/31/2017,SPEECHWRITER,18750,2017
,2017 OFFICE OF THE MINORITY WHIP,Q4,GENERAL EXPENDITURES,PERSONNEL COMPENSATION,DETAIL,   ,   ,   ,WEISSMANN ADAM,12/1/2017,12/31/2017,SPEECHWRITER (OTHER COMPENSATION),4000,2017
,2017 OFFICE OF THE MINORITY WHIP,Q4,GENERAL EXPENDITURES,PERSONNEL COMPENSATION,SUBTOTAL,   ,   ,   ,   ,   ,   ,PERSONNEL COMPENSATION TOTALS:,606610.15,2017
,2017 OFFICE OF THE MINORITY WHIP,Q4,GENERAL EXPENDITURES,RENT  COMMUNICATION  UTILITIES,DETAIL,10/19/2017,AP,951470,CITI PCARD-SWA INFLIGHT WIFI,8/29/2017,9/28/2017,UTILITIES,8,2017
,2017 OFFICE OF THE MINORITY WHIP,Q4,GENERAL EXPENDITURES,RENT  COMMUNICATION  UTILITIES,DETAIL,10/19/2017,AP,951470,CITI PCARD-SXM SIRIUSXM.COM/ACCT,8/29/2017,9/28/2017,UTILITIES,240.41,2017
,2017 OFFICE OF THE MINORITY WHIP,Q4,GENERAL EXPENDITURES,RENT  COMMUNICATION  UTILITIES,DETAIL,11/30/2017,AP,958754,CITIBANK P CARD,8/29/2017,9/28/2017,UTILITIES,-248.41,2017
,2017 OFFICE OF THE MINORITY WHIP,Q4,GENERAL EXPENDITURES,RENT  COMMUNICATION  UTILITIES,DETAIL,12/19/2017,AP,963392,CITI PCARD-METROCAST MARYLAND VIR,10/28/2017,11/28/2017,UTILITIES,97.9,2017
,2017 OFFICE OF THE MINORITY WHIP,Q4,GENERAL EXPENDITURES,RENT  COMMUNICATION  UTILITIES,DETAIL,12/19/2017,AP,963392,CITI PCARD-USPS PO,10/28/2017,11/28/2017,POSTAGE / COURIER / BOX RENTAL,6.65,2017
,2017 OFFICE OF THE MINORITY WHIP,Q4,GENERAL EXPENDITURES,RENT  COMMUNICATION  UTILITIES,SUBTOTAL,   ,   ,   ,   ,   ,   ,RENT  COMMUNICATION  UTILITIES TOTALS:,104.55,2017
,2017 OFFICE OF THE MINORITY WHIP,Q4,GENERAL EXPENDITURES,PRINTING AND REPRODUCTION,DETAIL,10/19/2017,AP,951470,CITI PCARD-CANVA FOR WORK MONTHLY,8/29/2017,9/28/2017,PRINTING & REPRODUCTION,12.95,2017
,2017 OFFICE OF THE MINORITY WHIP,Q4,GENERAL EXPENDITURES,PRINTING AND REPRODUCTION,DETAIL,10/19/2017,AP,951470,CITI PCARD-GRAPHICSTOCK,8/29/2017,9/28/2017,PRINTING & REPRODUCTION,89,2017
,2017 OFFICE OF THE MINORITY WHIP,Q4,GENERAL EXPENDITURES,PRINTING AND REPRODUCTION,DETAIL,11/20/2017,AP,957556,CITI PCARD-CANVA FOR WORK MONTHLY,9/29/2017,10/27/2017,PRINTING & REPRODUCTION,12.95,2017
,2017 OFFICE OF THE MINORITY WHIP,Q4,GENERAL EXPENDITURES,PRINTING AND REPRODUCTION,DETAIL,11/20/2017,AP,957556,CITI PCARD-GOOGLE  SVCSAPPS_00ED,9/29/2017,10/27/2017,ADVERTISEMENTS,98.37,2017
,2017 OFFICE OF THE MINORITY WHIP,Q4,GENERAL EXPENDITURES,PRINTING AND REPRODUCTION,DETAIL,11/30/2017,AP,958760,CITIBANK P CARD,8/29/2017,9/28/2017,PRINTING & REPRODUCTION,-101.95,2017
,2017 OFFICE OF THE MINORITY WHIP,Q4,GENERAL EXPENDITURES,PRINTING AND REPRODUCTION,DETAIL,12/19/2017,AP,963392,CITI PCARD-CANVA FOR WORK MONTHLY,10/28/2017,11/28/2017,PRINTING & REPRODUCTION,12.95,2017
,2017 OFFICE OF THE MINORITY WHIP,Q4,GENERAL EXPENDITURES,PRINTING AND REPRODUCTION,DETAIL,12/19/2017,AP,963392,CITI PCARD-GOOGLE  CLOUD_00ED7D-A,10/28/2017,11/28/2017,ADVERTISEMENTS,113.16,2017
,2017 OFFICE OF THE MINORITY WHIP,Q4,GENERAL EXPENDITURES,PRINTING AND REPRODUCTION,DETAIL,12/19/2017,AP,963392,CITI PCARD-WPY BELTRAN DESIGN LLC,10/28/2017,11/28/2017,PRINTING & REPRODUCTION,663.91,2017
,2017 OFFICE OF THE MINORITY WHIP,Q4,GENERAL EXPENDITURES,PRINTING AND REPRODUCTION,SUBTOTAL,   ,   ,   ,   ,   ,   ,PRINTING AND REPRODUCTION TOTALS:,901.34,2017
,2017 OFFICE OF THE MINORITY WHIP,Q4,GENERAL EXPENDITURES,OTHER SERVICES,DETAIL,11/20/2017,AP,957556,CITI PCARD-DROPBOX 5G3HBP1XK,9/29/2017,10/27/2017,NON-TECHNOLOGY SERVICE CONTR,99,2017
,2017 OFFICE OF THE MINORITY WHIP,Q4,GENERAL EXPENDITURES,OTHER SERVICES,DETAIL,11/20/2017,AP,957556,CITI PCARD-WWW.1AND1.COM,9/29/2017,10/27/2017,NON-TECHNOLOGY SERVICE CONTR,68.87,2017
,2017 OFFICE OF THE MINORITY WHIP,Q4,GENERAL EXPENDITURES,OTHER SERVICES,DETAIL,12/19/2017,AP,963392,CITI PCARD-WWW.1AND1.COM,10/28/2017,11/28/2017,NON-TECHNOLOGY SERVICE CONTR,53.9,2017
,2017 OFFICE OF THE MINORITY WHIP,Q4,GENERAL EXPENDITURES,OTHER SERVICES,SUBTOTAL,   ,   ,   ,   ,   ,   ,OTHER SERVICES TOTALS:,221.77,2017
,2017 OFFICE OF THE MINORITY WHIP,Q4,GENERAL EXPENDITURES,SUPPLIES AND MATERIALS,DETAIL,10/19/2017,AP,951470,CITI PCARD-HAUPPAUGE COMPUTER WOR,8/29/2017,9/28/2017,OFFICE SUPPLIES (OUTSIDE),9.95,2017
,2017 OFFICE OF THE MINORITY WHIP,Q4,GENERAL EXPENDITURES,SUPPLIES AND MATERIALS,DETAIL,10/19/2017,AP,951470,CITI PCARD-MAILCHIMP    MISC,8/29/2017,9/28/2017,PUBLICATIONS/REFERENCE MAT'L,9,2017
,2017 OFFICE OF THE MINORITY WHIP,Q4,GENERAL EXPENDITURES,SUPPLIES AND MATERIALS,DETAIL,10/19/2017,AP,951470,CITI PCARD-MAILCHIMP    MONTHLY,8/29/2017,9/28/2017,PUBLICATIONS/REFERENCE MAT'L,205,2017
,2017 OFFICE OF THE MINORITY WHIP,Q4,GENERAL EXPENDITURES,SUPPLIES AND MATERIALS,DETAIL,11/20/2017,AP,957556,CITI PCARD-ADOBE,9/29/2017,10/27/2017,SOFTWARE  LESS THAN  $500,253.67,2017
,2017 OFFICE OF THE MINORITY WHIP,Q4,GENERAL EXPENDITURES,SUPPLIES AND MATERIALS,DETAIL,11/20/2017,AP,957556,CITI PCARD-AMAZON DIGITAL SVCS,9/29/2017,10/27/2017,PUBLICATIONS/REFERENCE MAT'L,5.99,2017
,2017 OFFICE OF THE MINORITY WHIP,Q4,GENERAL EXPENDITURES,SUPPLIES AND MATERIALS,DETAIL,11/20/2017,AP,957556,CITI PCARD-AMAZON MKTPLACE PMTS,9/29/2017,10/27/2017,OFFICE SUPPLIES (OUTSIDE),1171.6,2017
,2017 OFFICE OF THE MINORITY WHIP,Q4,GENERAL EXPENDITURES,SUPPLIES AND MATERIALS,DETAIL,11/20/2017,AP,957556,CITI PCARD-AMAZON WEB SERVICES,9/29/2017,10/27/2017,OFFICE SUPPLIES (OUTSIDE),20.64,2017
,2017 OFFICE OF THE MINORITY WHIP,Q4,GENERAL EXPENDITURES,SUPPLIES AND MATERIALS,DETAIL,11/20/2017,AP,957556,CITI PCARD-AMAZON.COM AMZN.COM/BI,9/29/2017,10/27/2017,OFFICE SUPPLIES (OUTSIDE),299.98,2017
,2017 OFFICE OF THE MINORITY WHIP,Q4,GENERAL EXPENDITURES,SUPPLIES AND MATERIALS,DETAIL,11/20/2017,AP,957556,CITI PCARD-MAILCHIMP    MISC,9/29/2017,10/27/2017,PUBLICATIONS/REFERENCE MAT'L,12,2017
,2017 OFFICE OF THE MINORITY WHIP,Q4,GENERAL EXPENDITURES,SUPPLIES AND MATERIALS,DETAIL,11/20/2017,AP,957556,CITI PCARD-MAILCHIMP    MONTHLY,9/29/2017,10/27/2017,PUBLICATIONS/REFERENCE MAT'L,205,2017
,2017 OFFICE OF THE MINORITY WHIP,Q4,GENERAL EXPENDITURES,SUPPLIES AND MATERIALS,DETAIL,11/30/2017,AP,958757,CITIBANK P CARD,8/29/2017,9/28/2017,PUBLICATIONS/REFERENCE MAT'L,-214,2017
,2017 OFFICE OF THE MINORITY WHIP,Q4,GENERAL EXPENDITURES,SUPPLIES AND MATERIALS,DETAIL,11/30/2017,AP,958759,CITIBANK P CARD,8/29/2017,9/28/2017,OFFICE SUPPLIES (OUTSIDE),-9.95,2017
,2017 OFFICE OF THE MINORITY WHIP,Q4,GENERAL EXPENDITURES,SUPPLIES AND MATERIALS,DETAIL,12/14/2017,AP,959176,CITIBANK P CARD,9/29/2017,10/27/2017,OFFICE SUPPLIES (OUTSIDE),-1492.22,2017
,2017 OFFICE OF THE MINORITY WHIP,Q4,GENERAL EXPENDITURES,SUPPLIES AND MATERIALS,DETAIL,12/19/2017,AP,963392,CITI PCARD-AMAZON DIGITAL SVCS,10/28/2017,11/28/2017,MISC. SUPPLIES & MATERIALS,-5.99,2017
,2017 OFFICE OF THE MINORITY WHIP,Q4,GENERAL EXPENDITURES,SUPPLIES AND MATERIALS,DETAIL,12/19/2017,AP,963392,CITI PCARD-AMAZON MKTPLACE PMTS,10/28/2017,11/28/2017,OFFICE SUPPLIES (OUTSIDE),9,2017
,2017 OFFICE OF THE MINORITY WHIP,Q4,GENERAL EXPENDITURES,SUPPLIES AND MATERIALS,DETAIL,12/19/2017,AP,963392,CITI PCARD-AMAZON WEB SERVICES,10/28/2017,11/28/2017,OFFICE SUPPLIES (OUTSIDE),72.75,2017
,2017 OFFICE OF THE MINORITY WHIP,Q4,GENERAL EXPENDITURES,SUPPLIES AND MATERIALS,DETAIL,12/19/2017,AP,963392,CITI PCARD-AMAZON.COM AMZN.COM/BI,10/28/2017,11/28/2017,OFFICE SUPPLIES (OUTSIDE),209.97,2017
,2017 OFFICE OF THE MINORITY WHIP,Q4,GENERAL EXPENDITURES,SUPPLIES AND MATERIALS,DETAIL,12/19/2017,AP,963392,CITI PCARD-MAILCHIMP    MISC,10/28/2017,11/28/2017,PUBLICATIONS/REFERENCE MAT'L,3,2017
,2017 OFFICE OF THE MINORITY WHIP,Q4,GENERAL EXPENDITURES,SUPPLIES AND MATERIALS,DETAIL,12/19/2017,AP,963392,CITI PCARD-MAILCHIMP    MONTHLY,10/28/2017,11/28/2017,PUBLICATIONS/REFERENCE MAT'L,150,2017
,2017 OFFICE OF THE MINORITY WHIP,Q4,GENERAL EXPENDITURES,SUPPLIES AND MATERIALS,DETAIL,12/19/2017,AP,963392,CITI PCARD-MATT PARRILLO,10/28/2017,11/28/2017,OFFICE SUPPLIES (OUTSIDE),486.38,2017
,2017 OFFICE OF THE MINORITY WHIP,Q4,GENERAL EXPENDITURES,SUPPLIES AND MATERIALS,SUBTOTAL,   ,   ,   ,   ,   ,   ,SUPPLIES AND MATERIALS TOTALS:,1401.77,2017
,2017 OFFICE OF THE MINORITY WHIP,Q4,GENERAL EXPENDITURES,SUPPLIES AND MATERIALS,SUBTOTAL,   ,   ,   ,   ,   ,   ,GENERAL EXPENDITURES TOTALS:,609239.58,2017
,2017 OFFICE OF THE MINORITY WHIP,Q4,GENERAL EXPENDITURES,SUPPLIES AND MATERIALS,GRAND TOTAL FOR ORGANIZATION,   ,   ,   ,   ,   ,   ,OFFICE TOTALS: ,609239.58,2017
,2017 DEMOCRATIC CAUCUS,Q4,GENERAL EXPENDITURES,PERSONNEL COMPENSATION,DETAIL,   ,   ,   ,ASSIM ANISAH,9/1/2017,9/30/2017,STAFF ASSISTANT (OVERTIME),1319.15,2017
,2017 DEMOCRATIC CAUCUS,Q4,GENERAL EXPENDITURES,PERSONNEL COMPENSATION,DETAIL,   ,   ,   ,BACKEMEYER COURTNEY G,10/1/2017,12/31/2017,DIR OF STARTEGIC COMM,32500,2017
,2017 DEMOCRATIC CAUCUS,Q4,GENERAL EXPENDITURES,PERSONNEL COMPENSATION,DETAIL,   ,   ,   ,BERNER ALAINA L,10/1/2017,12/31/2017,PRESS ASSISTANT,12250.01,2017
,2017 DEMOCRATIC CAUCUS,Q4,GENERAL EXPENDITURES,PERSONNEL COMPENSATION,DETAIL,   ,   ,   ,CARRILLO MANUEL J,10/1/2017,12/31/2017,DIRECTOR OF OPERATIONS,25499.99,2017
,2017 DEMOCRATIC CAUCUS,Q4,GENERAL EXPENDITURES,PERSONNEL COMPENSATION,DETAIL,   ,   ,   ,CASEY KEVIN,10/1/2017,12/31/2017,DIRECTOR OF POLICY,40500,2017
,2017 DEMOCRATIC CAUCUS,Q4,GENERAL EXPENDITURES,PERSONNEL COMPENSATION,DETAIL,   ,   ,   ,ELLISON MELISSA J,10/1/2017,12/31/2017,LEGISLATIVE DIR./VICE CHAIR,20000.01,2017
,2017 DEMOCRATIC CAUCUS,Q4,GENERAL EXPENDITURES,PERSONNEL COMPENSATION,DETAIL,   ,   ,   ,FISHER SULKALA MARGARET L,10/1/2017,12/31/2017,CHIEF OF STAFF/VICE CHAIR,39999.99,2017
,2017 DEMOCRATIC CAUCUS,Q4,GENERAL EXPENDITURES,PERSONNEL COMPENSATION,DETAIL,   ,   ,   ,FRENCH LAUREN N,10/1/2017,12/31/2017,COMMUNICATIONS DIRECTOR,21250,2017
,2017 DEMOCRATIC CAUCUS,Q4,GENERAL EXPENDITURES,PERSONNEL COMPENSATION,DETAIL,   ,   ,   ,GOLDBERG NICOLE E.,10/1/2017,12/31/2017,SR. CAUCUS POLICY ADVISOR,32000.01,2017
,2017 DEMOCRATIC CAUCUS,Q4,GENERAL EXPENDITURES,PERSONNEL COMPENSATION,DETAIL,   ,   ,   ,HORTA CHRISTOFER,10/1/2017,12/31/2017,STAFF ASSISTANT,10500,2017
,2017 DEMOCRATIC CAUCUS,Q4,GENERAL EXPENDITURES,PERSONNEL COMPENSATION,DETAIL,   ,   ,   ,HORTA CHRISTOFER,9/1/2017,11/30/2017,STAFF ASSISTANT (OVERTIME),4024.86,2017
,2017 DEMOCRATIC CAUCUS,Q4,GENERAL EXPENDITURES,PERSONNEL COMPENSATION,DETAIL,   ,   ,   ,KEATING KATHERINE E.,10/1/2017,12/31/2017,CHIEF OF STAFF,22395.83,2017
,2017 DEMOCRATIC CAUCUS,Q4,GENERAL EXPENDITURES,PERSONNEL COMPENSATION,DETAIL,   ,   ,   ,KELLEY PATRICK R,9/1/2017,12/31/2017,SENIOR ADVISOR/VICE CHAIR,31350.01,2017
,2017 DEMOCRATIC CAUCUS,Q4,GENERAL EXPENDITURES,PERSONNEL COMPENSATION,DETAIL,   ,   ,   ,LOPEZ-SANDOVAL ELIZABETH,10/1/2017,12/31/2017,PRESS SEC&DIR OF HISPANIC MEDI,16500.01,2017
,2017 DEMOCRATIC CAUCUS,Q4,GENERAL EXPENDITURES,PERSONNEL COMPENSATION,DETAIL,   ,   ,   ,MARTINEZ ANTHONY M,10/1/2017,11/10/2017,DIGITAL DIRECTOR,7222.23,2017
,2017 DEMOCRATIC CAUCUS,Q4,GENERAL EXPENDITURES,PERSONNEL COMPENSATION,DETAIL,   ,   ,   ,NGUYEN ALEXANDER D,10/1/2017,12/31/2017,COMMUNICATIONS DIRECTOR/VICE C,15000,2017
,2017 DEMOCRATIC CAUCUS,Q4,GENERAL EXPENDITURES,PERSONNEL COMPENSATION,DETAIL,   ,   ,   ,PERRY TROY A,10/1/2017,12/31/2017,DIR. OF MEMBER SERVICES & OUTR,25249.99,2017
,2017 DEMOCRATIC CAUCUS,Q4,GENERAL EXPENDITURES,PERSONNEL COMPENSATION,DETAIL,   ,   ,   ,SACHSE ANDREW M,10/1/2017,12/31/2017,OUTREACH AND MEMBER SERVICES,18000.01,2017
,2017 DEMOCRATIC CAUCUS,Q4,GENERAL EXPENDITURES,PERSONNEL COMPENSATION,DETAIL,   ,   ,   ,SANCHEZ CARLOS S.,9/1/2017,11/30/2017,EXECUTIVE DIRECTOR,30208.33,2017
,2017 DEMOCRATIC CAUCUS,Q4,GENERAL EXPENDITURES,PERSONNEL COMPENSATION,DETAIL,   ,   ,   ,SANCHEZ CARLOS S.,12/1/2017,12/31/2017,CHIEF OF STAFF,12916.67,2017
,2017 DEMOCRATIC CAUCUS,Q4,GENERAL EXPENDITURES,PERSONNEL COMPENSATION,DETAIL,   ,   ,   ,SCHUMACHER MATTHEW J,10/16/2017,12/31/2017,DIGITAL DIRECTOR,11479.17,2017
,2017 DEMOCRATIC CAUCUS,Q4,GENERAL EXPENDITURES,PERSONNEL COMPENSATION,DETAIL,   ,   ,   ,SMITH SHANE T,10/1/2017,12/31/2017,OUTREACH & MEMBERS SVCS. ASST,15749.99,2017
,2017 DEMOCRATIC CAUCUS,Q4,GENERAL EXPENDITURES,PERSONNEL COMPENSATION,SUBTOTAL,   ,   ,   ,   ,   ,   ,PERSONNEL COMPENSATION TOTALS:,445916.26,2017
,2017 DEMOCRATIC CAUCUS,Q4,GENERAL EXPENDITURES,TRAVEL,DETAIL,10/10/2017,AP,E0557989,CITIBANK GOV CARD SERVICE,9/20/2017,9/20/2017,COMMERCIAL TRANSPORTATION,940,2017
,2017 DEMOCRATIC CAUCUS,Q4,GENERAL EXPENDITURES,TRAVEL,DETAIL,10/10/2017,AP,E0557991,CITIBANK GOV CARD SERVICE,9/20/2017,9/20/2017,COMMERCIAL TRANSPORTATION,315,2017
,2017 DEMOCRATIC CAUCUS,Q4,GENERAL EXPENDITURES,TRAVEL,DETAIL,10/10/2017,AP,E0557992,CITIBANK GOV CARD SERVICE,9/21/2017,9/21/2017,GASOLINE,33.39,2017
,2017 DEMOCRATIC CAUCUS,Q4,GENERAL EXPENDITURES,TRAVEL,DETAIL,10/10/2017,AP,E0557993,CITIBANK GOV CARD SERVICE,9/22/2017,9/22/2017,GASOLINE,58.41,2017
,2017 DEMOCRATIC CAUCUS,Q4,GENERAL EXPENDITURES,TRAVEL,DETAIL,10/10/2017,AP,E0558006,CARRILLO MANUEL J.,10/1/2017,10/1/2017,TAXI/PARKING/TOLLS,17.71,2017
,2017 DEMOCRATIC CAUCUS,Q4,GENERAL EXPENDITURES,TRAVEL,DETAIL,10/17/2017,AP,E0561122,CARRILLO MANUEL J.,10/10/2017,10/10/2017,TAXI/PARKING/TOLLS,6.29,2017
,2017 DEMOCRATIC CAUCUS,Q4,GENERAL EXPENDITURES,TRAVEL,DETAIL,10/25/2017,AP,E0563309,FRENCH LAUREN N.,7/15/2017,7/15/2017,TAXI/PARKING/TOLLS,7.53,2017
,2017 DEMOCRATIC CAUCUS,Q4,GENERAL EXPENDITURES,TRAVEL,DETAIL,11/8/2017,AP,E0567853,MARTINEZ ANTHONY M.,10/4/2017,10/13/2017,TAXI/PARKING/TOLLS,27.82,2017
,2017 DEMOCRATIC CAUCUS,Q4,GENERAL EXPENDITURES,TRAVEL,DETAIL,11/8/2017,AP,E0567854,CARRILLO MANUEL J.,10/23/2017,10/31/2017,TAXI/PARKING/TOLLS,10.55,2017
,2017 DEMOCRATIC CAUCUS,Q4,GENERAL EXPENDITURES,TRAVEL,DETAIL,11/16/2017,AP,E0570528,CITIBANK GOV CARD SERVICE,10/1/2017,10/2/2017,CAR RENTAL,385.04,2017
,2017 DEMOCRATIC CAUCUS,Q4,GENERAL EXPENDITURES,TRAVEL,DETAIL,11/16/2017,AP,E0570530,CITIBANK GOV CARD SERVICE,10/5/2017,10/5/2017,GASOLINE,45.63,2017
,2017 DEMOCRATIC CAUCUS,Q4,GENERAL EXPENDITURES,TRAVEL,DETAIL,11/16/2017,AP,E0570661,CARRILLO MANUEL J.,11/6/2017,11/6/2017,TAXI/PARKING/TOLLS,9,2017
,2017 DEMOCRATIC CAUCUS,Q4,GENERAL EXPENDITURES,TRAVEL,DETAIL,11/29/2017,AP,E0573181,CARRILLO MANUEL J.,11/13/2017,11/13/2017,TAXI/PARKING/TOLLS,6.54,2017
,2017 DEMOCRATIC CAUCUS,Q4,GENERAL EXPENDITURES,TRAVEL,DETAIL,12/7/2017,AP,E0576484,CITIBANK GOV CARD SERVICE,11/17/2017,11/17/2017,COMMERCIAL TRANSPORTATION,25,2017
,2017 DEMOCRATIC CAUCUS,Q4,GENERAL EXPENDITURES,TRAVEL,DETAIL,12/11/2017,AP,E0578600,CITIBANK GOV CARD SERVICE,11/17/2017,11/17/2017,COMMERCIAL TRANSPORTATION,25,2017
,2017 DEMOCRATIC CAUCUS,Q4,GENERAL EXPENDITURES,TRAVEL,DETAIL,12/12/2017,AP,E0576485,CITIBANK GOV CARD SERVICE,11/17/2017,11/17/2017,COMMERCIAL TRANSPORTATION,25,2017
,2017 DEMOCRATIC CAUCUS,Q4,GENERAL EXPENDITURES,TRAVEL,DETAIL,12/12/2017,AP,E0576486,CITIBANK GOV CARD SERVICE,11/17/2017,11/17/2017,COMMERCIAL TRANSPORTATION,148.4,2017
,2017 DEMOCRATIC CAUCUS,Q4,GENERAL EXPENDITURES,TRAVEL,DETAIL,12/12/2017,AP,E0576487,CITIBANK GOV CARD SERVICE,10/29/2017,11/27/2017,MEALS,8.76,2017
,2017 DEMOCRATIC CAUCUS,Q4,GENERAL EXPENDITURES,TRAVEL,DETAIL,12/14/2017,AP,E0576556,CARRILLO MANUEL J.,11/29/2017,11/30/2017,TAXI/PARKING/TOLLS,40.37,2017
,2017 DEMOCRATIC CAUCUS,Q4,GENERAL EXPENDITURES,TRAVEL,DETAIL,12/15/2017,AP,E0576557,BERNER ALAINA L.,11/17/2017,11/17/2017,CAR RENTAL,255.14,2017
,2017 DEMOCRATIC CAUCUS,Q4,GENERAL EXPENDITURES,TRAVEL,DETAIL,12/15/2017,AP,E0576557,BERNER ALAINA L.,11/17/2017,11/17/2017,TAXI/PARKING/TOLLS,68.11,2017
,2017 DEMOCRATIC CAUCUS,Q4,GENERAL EXPENDITURES,TRAVEL,DETAIL,12/23/2017,AP,E0584180,SCHUMACHER MATTHEW J.,12/4/2017,12/4/2017,COMMERCIAL TRANSPORTATION,25,2017
,2017 DEMOCRATIC CAUCUS,Q4,GENERAL EXPENDITURES,TRAVEL,DETAIL,12/23/2017,AP,E0584180,SCHUMACHER MATTHEW J.,12/4/2017,12/4/2017,TAXI/PARKING/TOLLS,35,2017
,2017 DEMOCRATIC CAUCUS,Q4,GENERAL EXPENDITURES,TRAVEL,SUBTOTAL,   ,   ,   ,   ,   ,   ,TRAVEL TOTALS:,2518.69,2017
,2017 DEMOCRATIC CAUCUS,Q4,GENERAL EXPENDITURES,RENT  COMMUNICATION  UTILITIES,DETAIL,10/10/2017,AP,E0558007,HORTA CHRISTOFER,10/2/2017,10/2/2017,POSTAGE / COURIER / BOX RENTAL,119,2017
,2017 DEMOCRATIC CAUCUS,Q4,GENERAL EXPENDITURES,RENT  COMMUNICATION  UTILITIES,DETAIL,10/19/2017,AP,951470,CITI PCARD-USPS PO,8/29/2017,9/28/2017,POSTAGE / COURIER / BOX RENTAL,26.79,2017
,2017 DEMOCRATIC CAUCUS,Q4,GENERAL EXPENDITURES,RENT  COMMUNICATION  UTILITIES,DETAIL,12/19/2017,AP,963392,CITI PCARD-CAPITOL HOST (RIDGEWEL,10/28/2017,11/28/2017,TEMPORARY SPACE RENTAL,500,2017
,2017 DEMOCRATIC CAUCUS,Q4,GENERAL EXPENDITURES,RENT  COMMUNICATION  UTILITIES,DETAIL,12/19/2017,AP,963392,CITI PCARD-USPS PO,10/28/2017,11/28/2017,POSTAGE / COURIER / BOX RENTAL,26.33,2017
,2017 DEMOCRATIC CAUCUS,Q4,GENERAL EXPENDITURES,RENT  COMMUNICATION  UTILITIES,SUBTOTAL,   ,   ,   ,   ,   ,   ,RENT  COMMUNICATION  UTILITIES TOTALS:,672.12,2017
,2017 DEMOCRATIC CAUCUS,Q4,GENERAL EXPENDITURES,OTHER SERVICES,DETAIL,10/19/2017,AP,951470,CITI PCARD-CLASSICLEANERS-LONGWOR,8/29/2017,9/28/2017,LAUNDRY SERVICES,113.94,2017
,2017 DEMOCRATIC CAUCUS,Q4,GENERAL EXPENDITURES,OTHER SERVICES,SUBTOTAL,   ,   ,   ,   ,   ,   ,OTHER SERVICES TOTALS:,113.94,2017
,2017 DEMOCRATIC CAUCUS,Q4,GENERAL EXPENDITURES,SUPPLIES AND MATERIALS,DETAIL,10/10/2017,AP,E0557990,CITIBANK GOV CARD SERVICE,9/20/2017,9/20/2017,FOOD & BEVERAGE,11.2,2017
,2017 DEMOCRATIC CAUCUS,Q4,GENERAL EXPENDITURES,SUPPLIES AND MATERIALS,DETAIL,10/19/2017,AP,951470,CITI PCARD-AMAZON MKTPLACE PMTS,8/29/2017,9/28/2017,FOOD & BEVERAGE,102.75,2017
,2017 DEMOCRATIC CAUCUS,Q4,GENERAL EXPENDITURES,SUPPLIES AND MATERIALS,DETAIL,10/19/2017,AP,951470,CITI PCARD-AMAZON.COM,8/29/2017,9/28/2017,FOOD & BEVERAGE,35.86,2017
,2017 DEMOCRATIC CAUCUS,Q4,GENERAL EXPENDITURES,SUPPLIES AND MATERIALS,DETAIL,10/19/2017,AP,951470,CITI PCARD-BETHESDA BAGELS OF DUP,8/29/2017,9/28/2017,FOOD & BEVERAGE,917.79,2017
,2017 DEMOCRATIC CAUCUS,Q4,GENERAL EXPENDITURES,SUPPLIES AND MATERIALS,DETAIL,10/19/2017,AP,951470,CITI PCARD-CARMINE'S- DC,8/29/2017,9/28/2017,FOOD & BEVERAGE,800,2017
,2017 DEMOCRATIC CAUCUS,Q4,GENERAL EXPENDITURES,SUPPLIES AND MATERIALS,DETAIL,10/19/2017,AP,951470,CITI PCARD-HARRIS TEETER,8/29/2017,9/28/2017,FOOD & BEVERAGE,1288.58,2017
,2017 DEMOCRATIC CAUCUS,Q4,GENERAL EXPENDITURES,SUPPLIES AND MATERIALS,DETAIL,10/19/2017,AP,951470,CITI PCARD-SAINT GERMAIN CATERING,8/29/2017,9/28/2017,FOOD & BEVERAGE,1535.49,2017
,2017 DEMOCRATIC CAUCUS,Q4,GENERAL EXPENDITURES,SUPPLIES AND MATERIALS,DETAIL,10/24/2017,AP,E0562165,CONGRESS CATERING LLC,10/11/2017,10/11/2017,FOOD & BEVERAGE,1221.5,2017
,2017 DEMOCRATIC CAUCUS,Q4,GENERAL EXPENDITURES,SUPPLIES AND MATERIALS,DETAIL,10/29/2017,AP,E0562496,ASC SERVICES LLC,1/1/2018,12/31/2018,PUBLICATIONS/REFERENCE MAT'L,9998,2017
,2017 DEMOCRATIC CAUCUS,Q4,GENERAL EXPENDITURES,SUPPLIES AND MATERIALS,DETAIL,10/31/2017,AP,952238,DEER PARK,9/30/2017,9/30/2017,WATER,29.99,2017
,2017 DEMOCRATIC CAUCUS,Q4,GENERAL EXPENDITURES,SUPPLIES AND MATERIALS,DETAIL,11/8/2017,AP,E0567851,CONGRESS CATERING LLC,10/24/2017,10/24/2017,FOOD & BEVERAGE,1419.5,2017
,2017 DEMOCRATIC CAUCUS,Q4,GENERAL EXPENDITURES,SUPPLIES AND MATERIALS,DETAIL,11/16/2017,AP,E0570527,CITIBANK GOV CARD SERVICE,10/2/2017,10/2/2017,FOOD & BEVERAGE,16.49,2017
,2017 DEMOCRATIC CAUCUS,Q4,GENERAL EXPENDITURES,SUPPLIES AND MATERIALS,DETAIL,11/16/2017,AP,E0570529,CITIBANK GOV CARD SERVICE,10/2/2017,10/17/2017,FOOD & BEVERAGE,14.7,2017
,2017 DEMOCRATIC CAUCUS,Q4,GENERAL EXPENDITURES,SUPPLIES AND MATERIALS,DETAIL,11/16/2017,AP,E0570531,CITIBANK GOV CARD SERVICE,10/17/2017,10/17/2017,FOOD & BEVERAGE,31.37,2017
,2017 DEMOCRATIC CAUCUS,Q4,GENERAL EXPENDITURES,SUPPLIES AND MATERIALS,DETAIL,11/16/2017,AP,E0570532,CITIBANK GOV CARD SERVICE,10/17/2017,10/17/2017,FOOD & BEVERAGE,1.89,2017
,2017 DEMOCRATIC CAUCUS,Q4,GENERAL EXPENDITURES,SUPPLIES AND MATERIALS,DETAIL,11/16/2017,AP,E0570662,CONGRESS CATERING LLC,11/6/2017,11/6/2017,FOOD & BEVERAGE,3885,2017
,2017 DEMOCRATIC CAUCUS,Q4,GENERAL EXPENDITURES,SUPPLIES AND MATERIALS,DETAIL,11/20/2017,AP,957556,CITI PCARD-ADOBE,9/29/2017,10/27/2017,SOFTWARE  LESS THAN  $500,369.31,2017
,2017 DEMOCRATIC CAUCUS,Q4,GENERAL EXPENDITURES,SUPPLIES AND MATERIALS,DETAIL,11/20/2017,AP,957556,CITI PCARD-AMAZON MKTPLACE PMTS,9/29/2017,10/27/2017,FOOD & BEVERAGE,250.14,2017
,2017 DEMOCRATIC CAUCUS,Q4,GENERAL EXPENDITURES,SUPPLIES AND MATERIALS,DETAIL,11/20/2017,AP,957556,CITI PCARD-AMAZON MKTPLACE PMTS,9/29/2017,10/27/2017,OFFICE SUPPLIES (OUTSIDE),247.08,2017
,2017 DEMOCRATIC CAUCUS,Q4,GENERAL EXPENDITURES,SUPPLIES AND MATERIALS,DETAIL,11/20/2017,AP,957556,CITI PCARD-AMAZON.COM AMZN.COM/BI,9/29/2017,10/27/2017,FOOD & BEVERAGE,61.72,2017
,2017 DEMOCRATIC CAUCUS,Q4,GENERAL EXPENDITURES,SUPPLIES AND MATERIALS,DETAIL,11/20/2017,AP,957556,CITI PCARD-AMAZON.COM AMZN.COM/BI,9/29/2017,10/27/2017,OFFICE SUPPLIES (OUTSIDE),29.93,2017
,2017 DEMOCRATIC CAUCUS,Q4,GENERAL EXPENDITURES,SUPPLIES AND MATERIALS,DETAIL,11/20/2017,AP,957556,CITI PCARD-APL APPLE ONLINE STORE,9/29/2017,10/27/2017,OFFICE SUPPLIES (OUTSIDE),628.15,2017
,2017 DEMOCRATIC CAUCUS,Q4,GENERAL EXPENDITURES,SUPPLIES AND MATERIALS,DETAIL,11/20/2017,AP,957556,CITI PCARD-AUDIOBLOCKS,9/29/2017,10/27/2017,SOFTWARE  LESS THAN  $500,149,2017
,2017 DEMOCRATIC CAUCUS,Q4,GENERAL EXPENDITURES,SUPPLIES AND MATERIALS,DETAIL,11/20/2017,AP,957556,CITI PCARD-B&H PHOTO 800-606-,9/29/2017,10/27/2017,OFFICE SUPPLIES (OUTSIDE),396.74,2017
,2017 DEMOCRATIC CAUCUS,Q4,GENERAL EXPENDITURES,SUPPLIES AND MATERIALS,DETAIL,11/20/2017,AP,957556,CITI PCARD-BETHESDA BAGELS OF DUP,9/29/2017,10/27/2017,FOOD & BEVERAGE,1037.89,2017
,2017 DEMOCRATIC CAUCUS,Q4,GENERAL EXPENDITURES,SUPPLIES AND MATERIALS,DETAIL,11/20/2017,AP,957556,CITI PCARD-D J WALL-ST-JOURNAL,9/29/2017,10/27/2017,PUBLICATIONS/REFERENCE MAT'L,469.41,2017
,2017 DEMOCRATIC CAUCUS,Q4,GENERAL EXPENDITURES,SUPPLIES AND MATERIALS,DETAIL,11/20/2017,AP,957556,CITI PCARD-HARRIS TEETER,9/29/2017,10/27/2017,FOOD & BEVERAGE,1017.52,2017
,2017 DEMOCRATIC CAUCUS,Q4,GENERAL EXPENDITURES,SUPPLIES AND MATERIALS,DETAIL,11/20/2017,AP,957556,CITI PCARD-LONGWORTH FC,9/29/2017,10/27/2017,FOOD & BEVERAGE,15.29,2017
,2017 DEMOCRATIC CAUCUS,Q4,GENERAL EXPENDITURES,SUPPLIES AND MATERIALS,DETAIL,11/20/2017,AP,957556,CITI PCARD-NYT NY TIMES SUBS,9/29/2017,10/27/2017,PUBLICATIONS/REFERENCE MAT'L,1272.1,2017
,2017 DEMOCRATIC CAUCUS,Q4,GENERAL EXPENDITURES,SUPPLIES AND MATERIALS,DETAIL,11/20/2017,AP,957556,CITI PCARD-SQ  SQ  LABELOGIX TECH,9/29/2017,10/27/2017,OFFICE SUPPLIES (OUTSIDE),125.99,2017
,2017 DEMOCRATIC CAUCUS,Q4,GENERAL EXPENDITURES,SUPPLIES AND MATERIALS,DETAIL,11/20/2017,AP,957556,CITI PCARD-TVEYES INC.,9/29/2017,10/27/2017,PUBLICATIONS/REFERENCE MAT'L,1200,2017
,2017 DEMOCRATIC CAUCUS,Q4,GENERAL EXPENDITURES,SUPPLIES AND MATERIALS,DETAIL,11/20/2017,AP,957556,CITI PCARD-USPS PO,9/29/2017,10/27/2017,OFFICE SUPPLIES (OUTSIDE),142.8,2017
,2017 DEMOCRATIC CAUCUS,Q4,GENERAL EXPENDITURES,SUPPLIES AND MATERIALS,DETAIL,11/20/2017,AP,957556,CITI PCARD-WE THE PIZZA,9/29/2017,10/27/2017,FOOD & BEVERAGE,369.88,2017
,2017 DEMOCRATIC CAUCUS,Q4,GENERAL EXPENDITURES,SUPPLIES AND MATERIALS,DETAIL,11/20/2017,AP,957556,CITI PCARD-WM SUPERCENTER,9/29/2017,10/27/2017,OFFICE SUPPLIES (OUTSIDE),156.8,2017
,2017 DEMOCRATIC CAUCUS,Q4,GENERAL EXPENDITURES,SUPPLIES AND MATERIALS,DETAIL,11/29/2017,AP,E0573182,CONGRESS CATERING LLC,11/14/2017,11/14/2017,FOOD & BEVERAGE,1420.5,2017
,2017 DEMOCRATIC CAUCUS,Q4,GENERAL EXPENDITURES,SUPPLIES AND MATERIALS,DETAIL,11/29/2017,AP,E0573183,CONGRESS CATERING LLC,11/13/2017,11/13/2017,FOOD & BEVERAGE,3685,2017
,2017 DEMOCRATIC CAUCUS,Q4,GENERAL EXPENDITURES,SUPPLIES AND MATERIALS,DETAIL,11/30/2017,AP,958043,DEER PARK,10/31/2017,10/31/2017,WATER,29.99,2017
,2017 DEMOCRATIC CAUCUS,Q4,GENERAL EXPENDITURES,SUPPLIES AND MATERIALS,DETAIL,11/30/2017,AP,958473,CITIBANK P CARD,9/29/2017,10/27/2017,OFFICE SUPPLIES (OUTSIDE),-1727.49,2017
,2017 DEMOCRATIC CAUCUS,Q4,GENERAL EXPENDITURES,SUPPLIES AND MATERIALS,DETAIL,11/30/2017,AP,958473,CITIBANK P CARD,9/29/2017,10/27/2017,SOFTWARE  LESS THAN  $500,-518.31,2017
,2017 DEMOCRATIC CAUCUS,Q4,GENERAL EXPENDITURES,SUPPLIES AND MATERIALS,DETAIL,12/8/2017,AP,E0576558,CONGRESS CATERING LLC,11/29/2017,11/29/2017,FOOD & BEVERAGE,3860,2017
,2017 DEMOCRATIC CAUCUS,Q4,GENERAL EXPENDITURES,SUPPLIES AND MATERIALS,DETAIL,12/8/2017,AP,E0576559,CONGRESS CATERING LLC,11/28/2017,11/28/2017,FOOD & BEVERAGE,2685,2017
,2017 DEMOCRATIC CAUCUS,Q4,GENERAL EXPENDITURES,SUPPLIES AND MATERIALS,DETAIL,12/8/2017,AP,E0578598,CITIBANK GOV CARD SERVICE,11/17/2017,11/17/2017,FOOD & BEVERAGE,8.45,2017
,2017 DEMOCRATIC CAUCUS,Q4,GENERAL EXPENDITURES,SUPPLIES AND MATERIALS,DETAIL,12/14/2017,AP,E0580973,CONGRESS CATERING LLC,12/11/2017,12/11/2017,FOOD & BEVERAGE,2170,2017
,2017 DEMOCRATIC CAUCUS,Q4,GENERAL EXPENDITURES,SUPPLIES AND MATERIALS,DETAIL,12/14/2017,AP,E0580974,CONGRESS CATERING LLC,12/12/2017,12/12/2017,FOOD & BEVERAGE,2350,2017
,2017 DEMOCRATIC CAUCUS,Q4,GENERAL EXPENDITURES,SUPPLIES AND MATERIALS,DETAIL,12/14/2017,AP,E0580975,CONGRESS CATERING LLC,12/12/2017,12/12/2017,FOOD & BEVERAGE,1474,2017
,2017 DEMOCRATIC CAUCUS,Q4,GENERAL EXPENDITURES,SUPPLIES AND MATERIALS,DETAIL,12/15/2017,AP,E0576557,BERNER ALAINA L.,11/17/2017,11/17/2017,OFFICE SUPPLIES (OUTSIDE),8.45,2017
,2017 DEMOCRATIC CAUCUS,Q4,GENERAL EXPENDITURES,SUPPLIES AND MATERIALS,DETAIL,12/19/2017,AP,963392,CITI PCARD-AMAZON MKTPLACE PMTS,10/28/2017,11/28/2017,FOOD & BEVERAGE,623.68,2017
,2017 DEMOCRATIC CAUCUS,Q4,GENERAL EXPENDITURES,SUPPLIES AND MATERIALS,DETAIL,12/19/2017,AP,963392,CITI PCARD-AMAZON.COM AMZN.COM/BI,10/28/2017,11/28/2017,FOOD & BEVERAGE,167.71,2017
,2017 DEMOCRATIC CAUCUS,Q4,GENERAL EXPENDITURES,SUPPLIES AND MATERIALS,DETAIL,12/19/2017,AP,963392,CITI PCARD-B&H PHOTO 800-606-,10/28/2017,11/28/2017,OFFICE SUPPLIES (OUTSIDE),-49.42,2017
,2017 DEMOCRATIC CAUCUS,Q4,GENERAL EXPENDITURES,SUPPLIES AND MATERIALS,DETAIL,12/19/2017,AP,963392,CITI PCARD-BETHESDA BAGELS OF DUP,10/28/2017,11/28/2017,FOOD & BEVERAGE,1057.79,2017
,2017 DEMOCRATIC CAUCUS,Q4,GENERAL EXPENDITURES,SUPPLIES AND MATERIALS,DETAIL,12/19/2017,AP,963392,CITI PCARD-CREAMERY DD,10/28/2017,11/28/2017,FOOD & BEVERAGE,12,2017
,2017 DEMOCRATIC CAUCUS,Q4,GENERAL EXPENDITURES,SUPPLIES AND MATERIALS,DETAIL,12/19/2017,AP,963392,CITI PCARD-DT,10/28/2017,11/28/2017,FOOD & BEVERAGE,671.5,2017
,2017 DEMOCRATIC CAUCUS,Q4,GENERAL EXPENDITURES,SUPPLIES AND MATERIALS,DETAIL,12/19/2017,AP,963392,CITI PCARD-FIREHOOK CAPITOL HILL,10/28/2017,11/28/2017,FOOD & BEVERAGE,64.05,2017
,2017 DEMOCRATIC CAUCUS,Q4,GENERAL EXPENDITURES,SUPPLIES AND MATERIALS,DETAIL,12/19/2017,AP,963392,CITI PCARD-HARRIS TEETER,10/28/2017,11/28/2017,FOOD & BEVERAGE,959.3,2017
,2017 DEMOCRATIC CAUCUS,Q4,GENERAL EXPENDITURES,SUPPLIES AND MATERIALS,DETAIL,12/19/2017,AP,963392,CITI PCARD-SAINT GERMAIN CATERING,10/28/2017,11/28/2017,FOOD & BEVERAGE,2689.62,2017
,2017 DEMOCRATIC CAUCUS,Q4,GENERAL EXPENDITURES,SUPPLIES AND MATERIALS,DETAIL,12/21/2017,AP,E0580970,HORTA CHRISTOFER,12/7/2017,12/7/2017,OFFICE SUPPLIES (OUTSIDE),29.18,2017
,2017 DEMOCRATIC CAUCUS,Q4,GENERAL EXPENDITURES,SUPPLIES AND MATERIALS,DETAIL,12/26/2017,AP,963618,DEER PARK,11/30/2017,11/30/2017,WATER,29.99,2017
,2017 DEMOCRATIC CAUCUS,Q4,GENERAL EXPENDITURES,SUPPLIES AND MATERIALS,SUBTOTAL,   ,   ,   ,   ,   ,   ,SUPPLIES AND MATERIALS TOTALS:,50950.85,2017
,2017 DEMOCRATIC CAUCUS,Q4,GENERAL EXPENDITURES,SUPPLIES AND MATERIALS,SUBTOTAL,   ,   ,   ,   ,   ,   ,GENERAL EXPENDITURES TOTALS:,500171.86,2017
,2017 DEMOCRATIC CAUCUS,Q4,GENERAL EXPENDITURES,SUPPLIES AND MATERIALS,GRAND TOTAL FOR ORGANIZATION,   ,   ,   ,   ,   ,   ,OFFICE TOTALS: ,500171.86,2017
,2017 REPUBLICAN CONFERENCE,Q4,GENERAL EXPENDITURES,PERSONNEL COMPENSATION,DETAIL,   ,   ,   ,BARKLEY RACHEL K,10/1/2017,12/31/2017,DIRECTOR OF OUTREACH,23124.99,2017
,2017 REPUBLICAN CONFERENCE,Q4,GENERAL EXPENDITURES,PERSONNEL COMPENSATION,DETAIL,   ,   ,   ,BRANTLEY KATELYN R,11/1/2017,12/31/2017,DIGITAL DIRECTOR,17500,2017
,2017 REPUBLICAN CONFERENCE,Q4,GENERAL EXPENDITURES,PERSONNEL COMPENSATION,DETAIL,   ,   ,   ,CROCKER NICHOLAS L,10/1/2017,12/31/2017,MEMBER SERVICES COORDINATOR,17000,2017
,2017 REPUBLICAN CONFERENCE,Q4,GENERAL EXPENDITURES,PERSONNEL COMPENSATION,DETAIL,   ,   ,   ,DEUTSCH JEREMY,10/1/2017,12/31/2017,CHIEF OF STAFF,42375,2017
,2017 REPUBLICAN CONFERENCE,Q4,GENERAL EXPENDITURES,PERSONNEL COMPENSATION,DETAIL,   ,   ,   ,FINE GAVRIELA R,10/1/2017,12/31/2017,STAFF ASSIST/EXC ASSIST TO COS,10937.51,2017
,2017 REPUBLICAN CONFERENCE,Q4,GENERAL EXPENDITURES,PERSONNEL COMPENSATION,DETAIL,   ,   ,   ,FUHS MOLLY B,10/1/2017,12/1/2017,CONFERENCE PRESS SECRETARY,14826.4,2017
,2017 REPUBLICAN CONFERENCE,Q4,GENERAL EXPENDITURES,PERSONNEL COMPENSATION,DETAIL,   ,   ,   ,HALL MIKAYLA M,10/1/2017,12/31/2017,SPEECH WRITER,15999.99,2017
,2017 REPUBLICAN CONFERENCE,Q4,GENERAL EXPENDITURES,PERSONNEL COMPENSATION,DETAIL,   ,   ,   ,HAUCK KARA,10/1/2017,12/31/2017,COMMUNICATIONS DIRECTOR,25749.99,2017
,2017 REPUBLICAN CONFERENCE,Q4,GENERAL EXPENDITURES,PERSONNEL COMPENSATION,DETAIL,   ,   ,   ,HNAT OLIVIA R,12/4/2017,12/4/2017,NATIONAL PRESS SECRETARY,6250,2017
,2017 REPUBLICAN CONFERENCE,Q4,GENERAL EXPENDITURES,PERSONNEL COMPENSATION,DETAIL,   ,   ,   ,HODSON NATHAN M,10/1/2017,12/31/2017,DEPUTY CHIEF OF STAFF,41250,2017
,2017 REPUBLICAN CONFERENCE,Q4,GENERAL EXPENDITURES,PERSONNEL COMPENSATION,DETAIL,   ,   ,   ,JOHNSON STEVEN R,10/1/2017,12/31/2017,STAFF ASSISTANT,10124.99,2017
,2017 REPUBLICAN CONFERENCE,Q4,GENERAL EXPENDITURES,PERSONNEL COMPENSATION,DETAIL,   ,   ,   ,KING EMILY P,10/1/2017,12/31/2017,SCHEDULER,15749.99,2017
,2017 REPUBLICAN CONFERENCE,Q4,GENERAL EXPENDITURES,PERSONNEL COMPENSATION,DETAIL,   ,   ,   ,MCQUADE KATHRYN E,10/1/2017,11/17/2017,MEDIA AFFAIRS AND EVENTS COORD,11097.22,2017
,2017 REPUBLICAN CONFERENCE,Q4,GENERAL EXPENDITURES,PERSONNEL COMPENSATION,DETAIL,   ,   ,   ,NAUGHTON ALEXANDRA K,8/21/2017,8/31/2017,DISTRICT LIAISON,-304.35,2017
,2017 REPUBLICAN CONFERENCE,Q4,GENERAL EXPENDITURES,PERSONNEL COMPENSATION,DETAIL,   ,   ,   ,ROGERS SARAH E,10/1/2017,12/31/2017,DIRECTOR OF MEMBER SERVICES,33125.01,2017
,2017 REPUBLICAN CONFERENCE,Q4,GENERAL EXPENDITURES,PERSONNEL COMPENSATION,DETAIL,   ,   ,   ,ROOS AMBER E,10/1/2017,12/31/2017,FINANCE ASSISTANT,1722.21,2017
,2017 REPUBLICAN CONFERENCE,Q4,GENERAL EXPENDITURES,PERSONNEL COMPENSATION,DETAIL,   ,   ,   ,ROSS JOHN E.,10/1/2017,12/31/2017,FINANCE DIRECTOR,2715.27,2017
,2017 REPUBLICAN CONFERENCE,Q4,GENERAL EXPENDITURES,PERSONNEL COMPENSATION,DETAIL,   ,   ,   ,SMENTEK DAVID,10/1/2017,12/31/2017,POLICY COORDINATOR,9500,2017
,2017 REPUBLICAN CONFERENCE,Q4,GENERAL EXPENDITURES,PERSONNEL COMPENSATION,DETAIL,   ,   ,   ,STEELE SOPHIA A,10/1/2017,12/31/2017,SPECIAL ASSISTANT,10124.99,2017
,2017 REPUBLICAN CONFERENCE,Q4,GENERAL EXPENDITURES,PERSONNEL COMPENSATION,DETAIL,   ,   ,   ,THORNE DRAY A,10/1/2017,12/31/2017,SYSTEMS ADMINISTRATOR,23500.01,2017
,2017 REPUBLICAN CONFERENCE,Q4,GENERAL EXPENDITURES,PERSONNEL COMPENSATION,DETAIL,   ,   ,   ,WHITE JERRY L,12/1/2017,12/31/2017,POLICY DIRECTOR,5000,2017
,2017 REPUBLICAN CONFERENCE,Q4,GENERAL EXPENDITURES,PERSONNEL COMPENSATION,SUBTOTAL,   ,   ,   ,   ,   ,   ,PERSONNEL COMPENSATION TOTALS:,337369.22,2017
,2017 REPUBLICAN CONFERENCE,Q4,GENERAL EXPENDITURES,TRAVEL,DETAIL,10/23/2017,AP,E0561817,CITIBANK GOV CARD SERVICE,8/2/2017,10/5/2017,TAXI/PARKING/TOLLS,105.82,2017
,2017 REPUBLICAN CONFERENCE,Q4,GENERAL EXPENDITURES,TRAVEL,DETAIL,11/9/2017,AP,E0568553,FUHS MOLLY B.,10/30/2017,10/31/2017,LODGING,139.32,2017
,2017 REPUBLICAN CONFERENCE,Q4,GENERAL EXPENDITURES,TRAVEL,DETAIL,11/9/2017,AP,E0568553,FUHS MOLLY B.,10/30/2017,10/31/2017,MEALS,38.05,2017
,2017 REPUBLICAN CONFERENCE,Q4,GENERAL EXPENDITURES,TRAVEL,DETAIL,11/9/2017,AP,E0568553,FUHS MOLLY B.,10/30/2017,10/30/2017,TAXI/PARKING/TOLLS,16.91,2017
,2017 REPUBLICAN CONFERENCE,Q4,GENERAL EXPENDITURES,TRAVEL,DETAIL,12/1/2017,AP,E0574151,CITIBANK GOV CARD SERVICE,10/18/2017,10/18/2017,COMMERCIAL TRANSPORTATION,266,2017
,2017 REPUBLICAN CONFERENCE,Q4,GENERAL EXPENDITURES,TRAVEL,DETAIL,12/1/2017,AP,E0574151,CITIBANK GOV CARD SERVICE,10/22/2017,10/22/2017,COMMERCIAL TRANSPORTATION,227,2017
,2017 REPUBLICAN CONFERENCE,Q4,GENERAL EXPENDITURES,TRAVEL,DETAIL,12/1/2017,AP,E0574151,CITIBANK GOV CARD SERVICE,10/18/2017,10/19/2017,LODGING,712.02,2017
,2017 REPUBLICAN CONFERENCE,Q4,GENERAL EXPENDITURES,TRAVEL,DETAIL,12/1/2017,AP,E0574151,CITIBANK GOV CARD SERVICE,9/29/2017,10/24/2017,TAXI/PARKING/TOLLS,694.02,2017
,2017 REPUBLICAN CONFERENCE,Q4,GENERAL EXPENDITURES,TRAVEL,DETAIL,12/1/2017,AP,E0574152,CITIBANK GOV CARD SERVICE,10/20/2017,10/20/2017,COMMERCIAL TRANSPORTATION,114.32,2017
,2017 REPUBLICAN CONFERENCE,Q4,GENERAL EXPENDITURES,TRAVEL,DETAIL,12/1/2017,AP,E0574152,CITIBANK GOV CARD SERVICE,10/27/2017,10/27/2017,COMMERCIAL TRANSPORTATION,1168.8,2017
,2017 REPUBLICAN CONFERENCE,Q4,GENERAL EXPENDITURES,TRAVEL,DETAIL,12/21/2017,AP,963667,HAYMARKET TRANSPORTATION INC,9/27/2017,9/27/2017,COMMERCIAL TRANSPORTATION,3620,2017
,2017 REPUBLICAN CONFERENCE,Q4,GENERAL EXPENDITURES,TRAVEL,DETAIL,12/26/2017,AP,E0582042,CITIBANK GOV CARD SERVICE,10/31/2017,10/31/2017,COMMERCIAL TRANSPORTATION,364.4,2017
,2017 REPUBLICAN CONFERENCE,Q4,GENERAL EXPENDITURES,TRAVEL,DETAIL,12/26/2017,AP,E0582042,CITIBANK GOV CARD SERVICE,10/30/2017,10/30/2017,TAXI/PARKING/TOLLS,314.83,2017
,2017 REPUBLICAN CONFERENCE,Q4,GENERAL EXPENDITURES,TRAVEL,DETAIL,12/26/2017,AP,E0582042,CITIBANK GOV CARD SERVICE,11/8/2017,11/16/2017,TAXI/PARKING/TOLLS,50.07,2017
,2017 REPUBLICAN CONFERENCE,Q4,GENERAL EXPENDITURES,TRAVEL,DETAIL,12/29/2017,AP,E0582806,CITIBANK GOV CARD SERVICE,10/27/2017,10/27/2017,TAXI/PARKING/TOLLS,417.5,2017
,2017 REPUBLICAN CONFERENCE,Q4,GENERAL EXPENDITURES,TRAVEL,SUBTOTAL,   ,   ,   ,   ,   ,   ,TRAVEL TOTALS:,8249.06,2017
,2017 REPUBLICAN CONFERENCE,Q4,GENERAL EXPENDITURES,RENT  COMMUNICATION  UTILITIES,DETAIL,10/19/2017,AP,951470,CITI PCARD-SPOTIFY USA,8/29/2017,9/28/2017,UTILITIES,9.99,2017
,2017 REPUBLICAN CONFERENCE,Q4,GENERAL EXPENDITURES,RENT  COMMUNICATION  UTILITIES,DETAIL,10/19/2017,AP,951470,CITI PCARD-VERIZON WRLS D6248-,8/29/2017,9/28/2017,TELECOMSRV/EQ/TOLL CHARGE,63.43,2017
,2017 REPUBLICAN CONFERENCE,Q4,GENERAL EXPENDITURES,RENT  COMMUNICATION  UTILITIES,DETAIL,11/20/2017,AP,957556,CITI PCARD-KING EQUIPMENT SALES &,9/29/2017,10/27/2017,EQUIP RENTAL (EFF 1/3/03),476.15,2017
,2017 REPUBLICAN CONFERENCE,Q4,GENERAL EXPENDITURES,RENT  COMMUNICATION  UTILITIES,DETAIL,11/20/2017,AP,957556,CITI PCARD-SPOTIFY USA,9/29/2017,10/27/2017,UTILITIES,9.99,2017
,2017 REPUBLICAN CONFERENCE,Q4,GENERAL EXPENDITURES,RENT  COMMUNICATION  UTILITIES,DETAIL,12/5/2017,AP,E0575384,FEDEX,10/30/2017,10/30/2017,POSTAGE / COURIER / BOX RENTAL,45.57,2017
,2017 REPUBLICAN CONFERENCE,Q4,GENERAL EXPENDITURES,RENT  COMMUNICATION  UTILITIES,DETAIL,12/19/2017,AP,963328,CITIBANK P CARD,8/29/2017,9/28/2017,TELECOMSRV/EQ/TOLL CHARGE,-63.43,2017
,2017 REPUBLICAN CONFERENCE,Q4,GENERAL EXPENDITURES,RENT  COMMUNICATION  UTILITIES,DETAIL,12/19/2017,AP,963328,CITIBANK P CARD,8/29/2017,9/28/2017,UTILITIES,-9.99,2017
,2017 REPUBLICAN CONFERENCE,Q4,GENERAL EXPENDITURES,RENT  COMMUNICATION  UTILITIES,DETAIL,12/19/2017,AP,963392,CITI PCARD-EAGLE RENTAL INC,10/28/2017,11/28/2017,EQUIP RENTAL (EFF 1/3/03),363.21,2017
,2017 REPUBLICAN CONFERENCE,Q4,GENERAL EXPENDITURES,RENT  COMMUNICATION  UTILITIES,DETAIL,12/19/2017,AP,963392,CITI PCARD-FREDERICKSBURG SUPPLIE,10/28/2017,11/28/2017,EQUIP RENTAL (EFF 1/3/03),285.09,2017
,2017 REPUBLICAN CONFERENCE,Q4,GENERAL EXPENDITURES,RENT  COMMUNICATION  UTILITIES,DETAIL,12/28/2017,GL,GRP0074260, ,12/1/2017,12/31/2017,HIR GRAPHICS (TRANSFER),10,2017
,2017 REPUBLICAN CONFERENCE,Q4,GENERAL EXPENDITURES,RENT  COMMUNICATION  UTILITIES,SUBTOTAL,   ,   ,   ,   ,   ,   ,RENT  COMMUNICATION  UTILITIES TOTALS:,1190.01,2017
,2017 REPUBLICAN CONFERENCE,Q4,GENERAL EXPENDITURES,PRINTING AND REPRODUCTION,DETAIL,10/19/2017,AP,951470,CITI PCARD-ACCURATE WORD LLC,8/29/2017,9/28/2017,PRINTING & REPRODUCTION,678,2017
,2017 REPUBLICAN CONFERENCE,Q4,GENERAL EXPENDITURES,PRINTING AND REPRODUCTION,DETAIL,10/19/2017,AP,951470,CITI PCARD-FACEBK,8/29/2017,9/28/2017,ADVERTISEMENTS,2546.83,2017
,2017 REPUBLICAN CONFERENCE,Q4,GENERAL EXPENDITURES,PRINTING AND REPRODUCTION,DETAIL,11/7/2017,AP,E0564965,CROCKER NICHOLAS L.,10/22/2017,10/22/2017,PRINTING & REPRODUCTION,680,2017
,2017 REPUBLICAN CONFERENCE,Q4,GENERAL EXPENDITURES,PRINTING AND REPRODUCTION,DETAIL,11/20/2017,AP,957556,CITI PCARD-DOLOFF PRINTING INC,9/29/2017,10/27/2017,PRINTING & REPRODUCTION,2120,2017
,2017 REPUBLICAN CONFERENCE,Q4,GENERAL EXPENDITURES,PRINTING AND REPRODUCTION,DETAIL,11/20/2017,AP,957556,CITI PCARD-FACEBK 7F4TYD62V,9/29/2017,10/27/2017,ADVERTISEMENTS,494.66,2017
,2017 REPUBLICAN CONFERENCE,Q4,GENERAL EXPENDITURES,PRINTING AND REPRODUCTION,DETAIL,11/20/2017,AP,957556,CITI PCARD-FACEBK F5YFXDW2V,9/29/2017,10/27/2017,ADVERTISEMENTS,750.05,2017
,2017 REPUBLICAN CONFERENCE,Q4,GENERAL EXPENDITURES,PRINTING AND REPRODUCTION,DETAIL,11/20/2017,AP,957556,CITI PCARD-FACEBK QLFPZDW2V,9/29/2017,10/27/2017,ADVERTISEMENTS,750,2017
,2017 REPUBLICAN CONFERENCE,Q4,GENERAL EXPENDITURES,PRINTING AND REPRODUCTION,DETAIL,11/20/2017,AP,957556,CITI PCARD-SQ  SQ  CAPITOL HILL F,9/29/2017,10/27/2017,PRINTING & REPRODUCTION,145,2017
,2017 REPUBLICAN CONFERENCE,Q4,GENERAL EXPENDITURES,PRINTING AND REPRODUCTION,DETAIL,11/20/2017,AP,957556,CITI PCARD-STK SHUTTERSTOCK INC.,9/29/2017,10/27/2017,PRINTING & REPRODUCTION,176,2017
,2017 REPUBLICAN CONFERENCE,Q4,GENERAL EXPENDITURES,PRINTING AND REPRODUCTION,DETAIL,12/19/2017,AP,963328,CITIBANK P CARD,8/29/2017,9/28/2017,PRINTING & REPRODUCTION,-678,2017
,2017 REPUBLICAN CONFERENCE,Q4,GENERAL EXPENDITURES,PRINTING AND REPRODUCTION,DETAIL,12/19/2017,AP,963392,CITI PCARD-AGILE PRINTING CO INC,10/28/2017,11/28/2017,PRINTING & REPRODUCTION,970,2017
,2017 REPUBLICAN CONFERENCE,Q4,GENERAL EXPENDITURES,PRINTING AND REPRODUCTION,DETAIL,12/19/2017,AP,963392,CITI PCARD-DOLOFF PRINTING INC,10/28/2017,11/28/2017,PRINTING & REPRODUCTION,2015,2017
,2017 REPUBLICAN CONFERENCE,Q4,GENERAL EXPENDITURES,PRINTING AND REPRODUCTION,DETAIL,12/19/2017,AP,963392,CITI PCARD-FACEBK 57WVXDS2V,10/28/2017,11/28/2017,ADVERTISEMENTS,750.01,2017
,2017 REPUBLICAN CONFERENCE,Q4,GENERAL EXPENDITURES,PRINTING AND REPRODUCTION,DETAIL,12/19/2017,AP,963392,CITI PCARD-FACEBK 5CX3WDE2V,10/28/2017,11/28/2017,ADVERTISEMENTS,531.55,2017
,2017 REPUBLICAN CONFERENCE,Q4,GENERAL EXPENDITURES,PRINTING AND REPRODUCTION,DETAIL,12/19/2017,AP,963392,CITI PCARD-FACEBK CFC24ES2V,10/28/2017,11/28/2017,ADVERTISEMENTS,750.38,2017
,2017 REPUBLICAN CONFERENCE,Q4,GENERAL EXPENDITURES,PRINTING AND REPRODUCTION,DETAIL,12/19/2017,AP,963392,CITI PCARD-FACEBK CVFGDEWZU,10/28/2017,11/28/2017,ADVERTISEMENTS,750.09,2017
,2017 REPUBLICAN CONFERENCE,Q4,GENERAL EXPENDITURES,PRINTING AND REPRODUCTION,SUBTOTAL,   ,   ,   ,   ,   ,   ,PRINTING AND REPRODUCTION TOTALS:,13429.57,2017
,2017 REPUBLICAN CONFERENCE,Q4,GENERAL EXPENDITURES,OTHER SERVICES,DETAIL,10/6/2017,AP,E0557881,LUMEN8 ADVISORS LLC,8/4/2017,8/4/2017,TRAINING,3000,2017
,2017 REPUBLICAN CONFERENCE,Q4,GENERAL EXPENDITURES,OTHER SERVICES,DETAIL,10/6/2017,AP,E0557882,LUMEN8 ADVISORS LLC,9/15/2017,9/15/2017,TRAINING,1800,2017
,2017 REPUBLICAN CONFERENCE,Q4,GENERAL EXPENDITURES,OTHER SERVICES,DETAIL,10/19/2017,AP,951470,CITI PCARD-PREMIUMBEAT.COM,8/29/2017,9/28/2017,MISCELLANEOUS OTHER SERVICES,147,2017
,2017 REPUBLICAN CONFERENCE,Q4,GENERAL EXPENDITURES,OTHER SERVICES,DETAIL,10/19/2017,AP,951470,CITI PCARD-SCREENCLOUD,8/29/2017,9/28/2017,TECHNOLOGY SERVICE CONTRACTS,100,2017
,2017 REPUBLICAN CONFERENCE,Q4,GENERAL EXPENDITURES,OTHER SERVICES,DETAIL,11/20/2017,AP,957556,CITI PCARD-PREMIUMBEAT.COM,9/29/2017,10/27/2017,MISCELLANEOUS OTHER SERVICES,49,2017
,2017 REPUBLICAN CONFERENCE,Q4,GENERAL EXPENDITURES,OTHER SERVICES,DETAIL,11/20/2017,AP,957556,CITI PCARD-SCREENCLOUD,9/29/2017,10/27/2017,TECHNOLOGY SERVICE CONTRACTS,100,2017
,2017 REPUBLICAN CONFERENCE,Q4,GENERAL EXPENDITURES,OTHER SERVICES,DETAIL,12/1/2017,AP,E0574150,LUMEN8 ADVISORS LLC,11/5/2017,11/5/2017,TRAINING,2450,2017
,2017 REPUBLICAN CONFERENCE,Q4,GENERAL EXPENDITURES,OTHER SERVICES,DETAIL,12/19/2017,AP,963328,CITIBANK P CARD,8/29/2017,9/28/2017,TECHNOLOGY SERVICE CONTRACTS,-100,2017
,2017 REPUBLICAN CONFERENCE,Q4,GENERAL EXPENDITURES,OTHER SERVICES,DETAIL,12/19/2017,AP,963328,CITIBANK P CARD,8/29/2017,9/28/2017,MISCELLANEOUS OTHER SERVICES,-147,2017
,2017 REPUBLICAN CONFERENCE,Q4,GENERAL EXPENDITURES,OTHER SERVICES,SUBTOTAL,   ,   ,   ,   ,   ,   ,OTHER SERVICES TOTALS:,7399,2017
,2017 REPUBLICAN CONFERENCE,Q4,GENERAL EXPENDITURES,SUPPLIES AND MATERIALS,DETAIL,10/11/2017,AP,E0558947,HAGUE QUALITY WATER OF MD INC,10/1/2017,10/31/2017,WATER,63,2017
,2017 REPUBLICAN CONFERENCE,Q4,GENERAL EXPENDITURES,SUPPLIES AND MATERIALS,DETAIL,10/19/2017,AP,951470,CITI PCARD-ADOBE  CREATIVE CLOUD,8/29/2017,9/28/2017,SOFTWARE  LESS THAN  $500,444.09,2017
,2017 REPUBLICAN CONFERENCE,Q4,GENERAL EXPENDITURES,SUPPLIES AND MATERIALS,DETAIL,10/19/2017,AP,951470,CITI PCARD-AMAZON MKTPLACE PMTS,8/29/2017,9/28/2017,OFFICE SUPPLIES (OUTSIDE),2453.31,2017
,2017 REPUBLICAN CONFERENCE,Q4,GENERAL EXPENDITURES,SUPPLIES AND MATERIALS,DETAIL,10/19/2017,AP,951470,CITI PCARD-AMAZON.COM,8/29/2017,9/28/2017,OFFICE SUPPLIES (OUTSIDE),812.35,2017
,2017 REPUBLICAN CONFERENCE,Q4,GENERAL EXPENDITURES,SUPPLIES AND MATERIALS,DETAIL,10/19/2017,AP,951470,CITI PCARD-ANAEK INC.,8/29/2017,9/28/2017,SOFTWARE  LESS THAN  $500,348,2017
,2017 REPUBLICAN CONFERENCE,Q4,GENERAL EXPENDITURES,SUPPLIES AND MATERIALS,DETAIL,10/19/2017,AP,951470,CITI PCARD-BOX BOX.NET BUS SRVCS,8/29/2017,9/28/2017,PUBLICATIONS/REFERENCE MAT'L,45,2017
,2017 REPUBLICAN CONFERENCE,Q4,GENERAL EXPENDITURES,SUPPLIES AND MATERIALS,DETAIL,10/19/2017,AP,951470,CITI PCARD-CAPITOLHOST - NDU,8/29/2017,9/28/2017,FOOD & BEVERAGE,7.43,2017
,2017 REPUBLICAN CONFERENCE,Q4,GENERAL EXPENDITURES,SUPPLIES AND MATERIALS,DETAIL,10/19/2017,AP,951470,CITI PCARD-CHICK-FIL-A,8/29/2017,9/28/2017,FOOD & BEVERAGE,2122,2017
,2017 REPUBLICAN CONFERENCE,Q4,GENERAL EXPENDITURES,SUPPLIES AND MATERIALS,DETAIL,10/19/2017,AP,951470,CITI PCARD-DT 656 CATERING,8/29/2017,9/28/2017,FOOD & BEVERAGE,1777.5,2017
,2017 REPUBLICAN CONFERENCE,Q4,GENERAL EXPENDITURES,SUPPLIES AND MATERIALS,DETAIL,10/19/2017,AP,951470,CITI PCARD-FIREHOOK BAKERY-WHOLES,8/29/2017,9/28/2017,FOOD & BEVERAGE,374.8,2017
,2017 REPUBLICAN CONFERENCE,Q4,GENERAL EXPENDITURES,SUPPLIES AND MATERIALS,DETAIL,10/19/2017,AP,951470,CITI PCARD-LEVELUP POTBELLY,8/29/2017,9/28/2017,FOOD & BEVERAGE,216.7,2017
,2017 REPUBLICAN CONFERENCE,Q4,GENERAL EXPENDITURES,SUPPLIES AND MATERIALS,DETAIL,10/19/2017,AP,951470,CITI PCARD-MAILCHIMP    MONTHLY,8/29/2017,9/28/2017,PUBLICATIONS/REFERENCE MAT'L,484.95,2017
,2017 REPUBLICAN CONFERENCE,Q4,GENERAL EXPENDITURES,SUPPLIES AND MATERIALS,DETAIL,10/19/2017,AP,951470,CITI PCARD-PANERA BREAD,8/29/2017,9/28/2017,FOOD & BEVERAGE,660.7,2017
,2017 REPUBLICAN CONFERENCE,Q4,GENERAL EXPENDITURES,SUPPLIES AND MATERIALS,DETAIL,10/19/2017,AP,951470,CITI PCARD-ROTI MEDITERRANEAN GRI,8/29/2017,9/28/2017,FOOD & BEVERAGE,251.5,2017
,2017 REPUBLICAN CONFERENCE,Q4,GENERAL EXPENDITURES,SUPPLIES AND MATERIALS,DETAIL,10/19/2017,AP,951470,CITI PCARD-SLACK,8/29/2017,9/28/2017,SOFTWARE  LESS THAN  $500,301.52,2017
,2017 REPUBLICAN CONFERENCE,Q4,GENERAL EXPENDITURES,SUPPLIES AND MATERIALS,DETAIL,10/19/2017,AP,951470,CITI PCARD-WE THE PIZZA,8/29/2017,9/28/2017,FOOD & BEVERAGE,83,2017
,2017 REPUBLICAN CONFERENCE,Q4,GENERAL EXPENDITURES,SUPPLIES AND MATERIALS,DETAIL,10/19/2017,AP,951470,CITI PCARD-ZAPIER.COM/CHARGE,8/29/2017,9/28/2017,SOFTWARE  LESS THAN  $500,84.44,2017
,2017 REPUBLICAN CONFERENCE,Q4,GENERAL EXPENDITURES,SUPPLIES AND MATERIALS,DETAIL,10/27/2017,AP,E0562447,ARAMARK REFRESHMENT SERVICES,9/20/2017,9/20/2017,FOOD & BEVERAGE,28.48,2017
,2017 REPUBLICAN CONFERENCE,Q4,GENERAL EXPENDITURES,SUPPLIES AND MATERIALS,DETAIL,10/27/2017,AP,E0562448,ARAMARK REFRESHMENT SERVICES,10/13/2017,10/13/2017,FOOD & BEVERAGE,612.79,2017
,2017 REPUBLICAN CONFERENCE,Q4,GENERAL EXPENDITURES,SUPPLIES AND MATERIALS,DETAIL,10/27/2017,AP,E0562449,ARAMARK REFRESHMENT SERVICES,10/13/2017,10/13/2017,FOOD & BEVERAGE,294.94,2017
,2017 REPUBLICAN CONFERENCE,Q4,GENERAL EXPENDITURES,SUPPLIES AND MATERIALS,DETAIL,10/27/2017,AP,E0562450,ARAMARK REFRESHMENT SERVICES,9/15/2017,9/15/2017,FOOD & BEVERAGE,594.8,2017
,2017 REPUBLICAN CONFERENCE,Q4,GENERAL EXPENDITURES,SUPPLIES AND MATERIALS,DETAIL,10/27/2017,AP,E0562452,ARAMARK REFRESHMENT SERVICES,9/13/2017,9/13/2017,WATER,66.49,2017
,2017 REPUBLICAN CONFERENCE,Q4,GENERAL EXPENDITURES,SUPPLIES AND MATERIALS,DETAIL,10/31/2017,AP,952238,DEER PARK,9/30/2017,9/30/2017,WATER,9.94,2017
,2017 REPUBLICAN CONFERENCE,Q4,GENERAL EXPENDITURES,SUPPLIES AND MATERIALS,DETAIL,11/6/2017,AP,E0567032,CROCKER NICHOLAS L.,10/26/2017,10/26/2017,OFFICE SUPPLIES (OUTSIDE),1083.26,2017
,2017 REPUBLICAN CONFERENCE,Q4,GENERAL EXPENDITURES,SUPPLIES AND MATERIALS,DETAIL,11/9/2017,AP,E0568552,HAGUE QUALITY WATER OF MD INC,11/1/2017,11/30/2017,WATER,63,2017
,2017 REPUBLICAN CONFERENCE,Q4,GENERAL EXPENDITURES,SUPPLIES AND MATERIALS,DETAIL,11/16/2017,AP,E0570761,ARAMARK REFRESHMENT SERVICES,11/3/2017,11/3/2017,FOOD & BEVERAGE,615.22,2017
,2017 REPUBLICAN CONFERENCE,Q4,GENERAL EXPENDITURES,SUPPLIES AND MATERIALS,DETAIL,11/20/2017,AP,957556,CITI PCARD-ADOBE  CREATIVE CLOUD,9/29/2017,10/27/2017,SOFTWARE  LESS THAN  $500,518.1,2017
,2017 REPUBLICAN CONFERENCE,Q4,GENERAL EXPENDITURES,SUPPLIES AND MATERIALS,DETAIL,11/20/2017,AP,957556,CITI PCARD-AGILE PRINTING CO INC,9/29/2017,10/27/2017,OFFICE SUPPLIES (OUTSIDE),2989.9,2017
,2017 REPUBLICAN CONFERENCE,Q4,GENERAL EXPENDITURES,SUPPLIES AND MATERIALS,DETAIL,11/20/2017,AP,957556,CITI PCARD-AMAZON MKTPLACE PMTS,9/29/2017,10/27/2017,OFFICE SUPPLIES (OUTSIDE),3234.18,2017
,2017 REPUBLICAN CONFERENCE,Q4,GENERAL EXPENDITURES,SUPPLIES AND MATERIALS,DETAIL,11/20/2017,AP,957556,CITI PCARD-AMAZON.COM,9/29/2017,10/27/2017,OFFICE SUPPLIES (OUTSIDE),65.56,2017
,2017 REPUBLICAN CONFERENCE,Q4,GENERAL EXPENDITURES,SUPPLIES AND MATERIALS,DETAIL,11/20/2017,AP,957556,CITI PCARD-BOX BOX.NET BUS SRVCS,9/29/2017,10/27/2017,PUBLICATIONS/REFERENCE MAT'L,45,2017
,2017 REPUBLICAN CONFERENCE,Q4,GENERAL EXPENDITURES,SUPPLIES AND MATERIALS,DETAIL,11/20/2017,AP,957556,CITI PCARD-BRUEGGER'S CATERIN,9/29/2017,10/27/2017,FOOD & BEVERAGE,465.39,2017
,2017 REPUBLICAN CONFERENCE,Q4,GENERAL EXPENDITURES,SUPPLIES AND MATERIALS,DETAIL,11/20/2017,AP,957556,CITI PCARD-CATERING AUBONPAIN,9/29/2017,10/27/2017,FOOD & BEVERAGE,1488.89,2017
,2017 REPUBLICAN CONFERENCE,Q4,GENERAL EXPENDITURES,SUPPLIES AND MATERIALS,DETAIL,11/20/2017,AP,957556,CITI PCARD-CHICK-FIL-A,9/29/2017,10/27/2017,FOOD & BEVERAGE,6145.5,2017
,2017 REPUBLICAN CONFERENCE,Q4,GENERAL EXPENDITURES,SUPPLIES AND MATERIALS,DETAIL,11/20/2017,AP,957556,CITI PCARD-CORNER BAKERY,9/29/2017,10/27/2017,FOOD & BEVERAGE,-263,2017
,2017 REPUBLICAN CONFERENCE,Q4,GENERAL EXPENDITURES,SUPPLIES AND MATERIALS,DETAIL,11/20/2017,AP,957556,CITI PCARD-DT 656 CATERING,9/29/2017,10/27/2017,FOOD & BEVERAGE,1638,2017
,2017 REPUBLICAN CONFERENCE,Q4,GENERAL EXPENDITURES,SUPPLIES AND MATERIALS,DETAIL,11/20/2017,AP,957556,CITI PCARD-FS  PIXELFILMSTUDIO,9/29/2017,10/27/2017,SOFTWARE  LESS THAN  $500,119.8,2017
,2017 REPUBLICAN CONFERENCE,Q4,GENERAL EXPENDITURES,SUPPLIES AND MATERIALS,DETAIL,11/20/2017,AP,957556,CITI PCARD-INT IN  SLOPPY MAMA'S ,9/29/2017,10/27/2017,FOOD & BEVERAGE,314,2017
,2017 REPUBLICAN CONFERENCE,Q4,GENERAL EXPENDITURES,SUPPLIES AND MATERIALS,DETAIL,11/20/2017,AP,957556,CITI PCARD-MAILCHIMP    MONTHLY,9/29/2017,10/27/2017,PUBLICATIONS/REFERENCE MAT'L,559.95,2017
,2017 REPUBLICAN CONFERENCE,Q4,GENERAL EXPENDITURES,SUPPLIES AND MATERIALS,DETAIL,11/20/2017,AP,957556,CITI PCARD-NPRINT GRAPHIX,9/29/2017,10/27/2017,OFFICE SUPPLIES (OUTSIDE),912.81,2017
,2017 REPUBLICAN CONFERENCE,Q4,GENERAL EXPENDITURES,SUPPLIES AND MATERIALS,DETAIL,11/20/2017,AP,957556,CITI PCARD-QDOBA MEXICAN GRIL,9/29/2017,10/27/2017,FOOD & BEVERAGE,391.56,2017
,2017 REPUBLICAN CONFERENCE,Q4,GENERAL EXPENDITURES,SUPPLIES AND MATERIALS,DETAIL,11/20/2017,AP,957556,CITI PCARD-ROTI MEDITERRANEAN GRI,9/29/2017,10/27/2017,FOOD & BEVERAGE,-21.5,2017
,2017 REPUBLICAN CONFERENCE,Q4,GENERAL EXPENDITURES,SUPPLIES AND MATERIALS,DETAIL,11/20/2017,AP,957556,CITI PCARD-SLACK,9/29/2017,10/27/2017,SOFTWARE  LESS THAN  $500,405.77,2017
,2017 REPUBLICAN CONFERENCE,Q4,GENERAL EXPENDITURES,SUPPLIES AND MATERIALS,DETAIL,11/20/2017,AP,957556,CITI PCARD-SQ  SQ  GREEK CATERING,9/29/2017,10/27/2017,FOOD & BEVERAGE,244.75,2017
,2017 REPUBLICAN CONFERENCE,Q4,GENERAL EXPENDITURES,SUPPLIES AND MATERIALS,DETAIL,11/20/2017,AP,957556,CITI PCARD-SQU SQ  GREEK CATERING,9/29/2017,10/27/2017,FOOD & BEVERAGE,281.6,2017
,2017 REPUBLICAN CONFERENCE,Q4,GENERAL EXPENDITURES,SUPPLIES AND MATERIALS,DETAIL,11/20/2017,AP,957556,CITI PCARD-TARGET,9/29/2017,10/27/2017,FOOD & BEVERAGE,210.55,2017
,2017 REPUBLICAN CONFERENCE,Q4,GENERAL EXPENDITURES,SUPPLIES AND MATERIALS,DETAIL,11/20/2017,AP,957556,CITI PCARD-TAYLOR GOURMET 1116H L,9/29/2017,10/27/2017,FOOD & BEVERAGE,230,2017
,2017 REPUBLICAN CONFERENCE,Q4,GENERAL EXPENDITURES,SUPPLIES AND MATERIALS,DETAIL,11/20/2017,AP,957556,CITI PCARD-TME TIME MAGAZINE,9/29/2017,10/27/2017,PUBLICATIONS/REFERENCE MAT'L,58.11,2017
,2017 REPUBLICAN CONFERENCE,Q4,GENERAL EXPENDITURES,SUPPLIES AND MATERIALS,DETAIL,11/20/2017,AP,957556,CITI PCARD-TRELLO,9/29/2017,10/27/2017,OFFICE SUPPLIES (OUTSIDE),177.54,2017
,2017 REPUBLICAN CONFERENCE,Q4,GENERAL EXPENDITURES,SUPPLIES AND MATERIALS,DETAIL,11/20/2017,AP,957556,CITI PCARD-WASH POST STORE SALES,9/29/2017,10/27/2017,PUBLICATIONS/REFERENCE MAT'L,65,2017
,2017 REPUBLICAN CONFERENCE,Q4,GENERAL EXPENDITURES,SUPPLIES AND MATERIALS,DETAIL,11/20/2017,AP,957556,CITI PCARD-ZAPIER.COM/CHARGE,9/29/2017,10/27/2017,SOFTWARE  LESS THAN  $500,75,2017
,2017 REPUBLICAN CONFERENCE,Q4,GENERAL EXPENDITURES,SUPPLIES AND MATERIALS,DETAIL,11/30/2017,AP,958043,DEER PARK,10/31/2017,10/31/2017,WATER,239.48,2017
,2017 REPUBLICAN CONFERENCE,Q4,GENERAL EXPENDITURES,SUPPLIES AND MATERIALS,DETAIL,12/12/2017,AP,958967,CROCKER NICHOLAS L.,10/26/2017,10/26/2017,FOOD & BEVERAGE,1083.26,2017
,2017 REPUBLICAN CONFERENCE,Q4,GENERAL EXPENDITURES,SUPPLIES AND MATERIALS,DETAIL,12/12/2017,AP,958967,CROCKER NICHOLAS L.,10/26/2017,10/26/2017,OFFICE SUPPLIES (OUTSIDE),-1083.26,2017
,2017 REPUBLICAN CONFERENCE,Q4,GENERAL EXPENDITURES,SUPPLIES AND MATERIALS,DETAIL,12/14/2017,AP,959191,CITIBANK P CARD,9/29/2017,10/27/2017,OFFICE SUPPLIES (OUTSIDE),-589.88,2017
,2017 REPUBLICAN CONFERENCE,Q4,GENERAL EXPENDITURES,SUPPLIES AND MATERIALS,DETAIL,12/19/2017,AP,963328,CITIBANK P CARD,8/29/2017,9/28/2017,OFFICE SUPPLIES (OUTSIDE),-3265.66,2017
,2017 REPUBLICAN CONFERENCE,Q4,GENERAL EXPENDITURES,SUPPLIES AND MATERIALS,DETAIL,12/19/2017,AP,963328,CITIBANK P CARD,8/29/2017,9/28/2017,SOFTWARE  LESS THAN  $500,-301.52,2017
,2017 REPUBLICAN CONFERENCE,Q4,GENERAL EXPENDITURES,SUPPLIES AND MATERIALS,DETAIL,12/19/2017,AP,963328,CITIBANK P CARD,8/29/2017,9/28/2017,PUBLICATIONS/REFERENCE MAT'L,-529.95,2017
,2017 REPUBLICAN CONFERENCE,Q4,GENERAL EXPENDITURES,SUPPLIES AND MATERIALS,DETAIL,12/19/2017,AP,963392,CITI PCARD-ADOBE  CREATIVE CLOUD,10/28/2017,11/28/2017,SOFTWARE  LESS THAN  $500,518.1,2017
,2017 REPUBLICAN CONFERENCE,Q4,GENERAL EXPENDITURES,SUPPLIES AND MATERIALS,DETAIL,12/19/2017,AP,963392,CITI PCARD-BOB EVANS REST,10/28/2017,11/28/2017,FOOD & BEVERAGE,1255.76,2017
,2017 REPUBLICAN CONFERENCE,Q4,GENERAL EXPENDITURES,SUPPLIES AND MATERIALS,DETAIL,12/19/2017,AP,963392,CITI PCARD-CAPITOL HOST (RIDGEWEL,10/28/2017,11/28/2017,FOOD & BEVERAGE,2739,2017
,2017 REPUBLICAN CONFERENCE,Q4,GENERAL EXPENDITURES,SUPPLIES AND MATERIALS,DETAIL,12/19/2017,AP,963392,CITI PCARD-CATERING AUBONPAIN,10/28/2017,11/28/2017,FOOD & BEVERAGE,2052.53,2017
,2017 REPUBLICAN CONFERENCE,Q4,GENERAL EXPENDITURES,SUPPLIES AND MATERIALS,DETAIL,12/19/2017,AP,963392,CITI PCARD-CHICK-FIL-A,10/28/2017,11/28/2017,FOOD & BEVERAGE,2530.25,2017
,2017 REPUBLICAN CONFERENCE,Q4,GENERAL EXPENDITURES,SUPPLIES AND MATERIALS,DETAIL,12/19/2017,AP,963392,CITI PCARD-CORNER BAKERY,10/28/2017,11/28/2017,FOOD & BEVERAGE,1014.39,2017
,2017 REPUBLICAN CONFERENCE,Q4,GENERAL EXPENDITURES,SUPPLIES AND MATERIALS,DETAIL,12/19/2017,AP,963392,CITI PCARD-CREAMERY DD,10/28/2017,11/28/2017,FOOD & BEVERAGE,85,2017
,2017 REPUBLICAN CONFERENCE,Q4,GENERAL EXPENDITURES,SUPPLIES AND MATERIALS,DETAIL,12/19/2017,AP,963392,CITI PCARD-DT 656 CATERING,10/28/2017,11/28/2017,FOOD & BEVERAGE,1782,2017
,2017 REPUBLICAN CONFERENCE,Q4,GENERAL EXPENDITURES,SUPPLIES AND MATERIALS,DETAIL,12/19/2017,AP,963392,CITI PCARD-PAUL BAKERY B,10/28/2017,11/28/2017,FOOD & BEVERAGE,337.2,2017
,2017 REPUBLICAN CONFERENCE,Q4,GENERAL EXPENDITURES,SUPPLIES AND MATERIALS,DETAIL,12/19/2017,AP,963392,CITI PCARD-QDOBA MEXICAN GRIL,10/28/2017,11/28/2017,FOOD & BEVERAGE,287.4,2017
,2017 REPUBLICAN CONFERENCE,Q4,GENERAL EXPENDITURES,SUPPLIES AND MATERIALS,DETAIL,12/19/2017,AP,963392,CITI PCARD-WE THE PIZZA,10/28/2017,11/28/2017,FOOD & BEVERAGE,68,2017
,2017 REPUBLICAN CONFERENCE,Q4,GENERAL EXPENDITURES,SUPPLIES AND MATERIALS,DETAIL,12/19/2017,AP,963392,CITI PCARD-ZAPIER.COM/CHARGE,10/28/2017,11/28/2017,SOFTWARE  LESS THAN  $500,75,2017
,2017 REPUBLICAN CONFERENCE,Q4,GENERAL EXPENDITURES,SUPPLIES AND MATERIALS,DETAIL,12/21/2017,AP,E0577292,HAGUE QUALITY WATER OF MD INC,12/1/2017,12/31/2017,WATER,63,2017
,2017 REPUBLICAN CONFERENCE,Q4,GENERAL EXPENDITURES,SUPPLIES AND MATERIALS,DETAIL,12/26/2017,AP,963618,DEER PARK,11/30/2017,11/30/2017,WATER,828.3,2017
,2017 REPUBLICAN CONFERENCE,Q4,GENERAL EXPENDITURES,SUPPLIES AND MATERIALS,SUBTOTAL,   ,   ,   ,   ,   ,   ,SUPPLIES AND MATERIALS TOTALS:,43440.07,2017
,2017 REPUBLICAN CONFERENCE,Q4,GENERAL EXPENDITURES,SUPPLIES AND MATERIALS,SUBTOTAL,   ,   ,   ,   ,   ,   ,GENERAL EXPENDITURES TOTALS:,411076.93,2017
,2017 REPUBLICAN CONFERENCE,Q4,GENERAL EXPENDITURES,SUPPLIES AND MATERIALS,GRAND TOTAL FOR ORGANIZATION,   ,   ,   ,   ,   ,   ,OFFICE TOTALS: ,411076.93,2017
,2016 REPUBLICAN CONFERENCE,Q4,GENERAL EXPENDITURES,SUPPLIES AND MATERIALS,DETAIL,10/24/2017,AR,AC-13467,ARAMARK GLOBAL  BUSINESS SERVICES,10/27/2016,10/27/2016,WATER,-60,2016
,2016 REPUBLICAN CONFERENCE,Q4,GENERAL EXPENDITURES,SUPPLIES AND MATERIALS,SUBTOTAL,   ,   ,   ,   ,   ,   ,SUPPLIES AND MATERIALS TOTALS:,-60,2017
,2016 REPUBLICAN CONFERENCE,Q4,GENERAL EXPENDITURES,SUPPLIES AND MATERIALS,SUBTOTAL,   ,   ,   ,   ,   ,   ,GENERAL EXPENDITURES TOTALS:,-60,2017
,2016 REPUBLICAN CONFERENCE,Q4,GENERAL EXPENDITURES,SUPPLIES AND MATERIALS,GRAND TOTAL FOR ORGANIZATION,   ,   ,   ,   ,   ,   ,OFFICE TOTALS: ,-60,2017
,FISCAL YEAR 2018 CHIEF ADMIN OFCR OF THE HOUSE,Q4,SALARIES  OFFICERS & EMPLOYEES,PERSONNEL COMPENSATION,DETAIL,   ,   ,   ,ABBOTT JESSICA A.,10/1/2017,11/30/2017,FINANCIAL ANALYST,23156.66,2017
,FISCAL YEAR 2018 CHIEF ADMIN OFCR OF THE HOUSE,Q4,SALARIES  OFFICERS & EMPLOYEES,PERSONNEL COMPENSATION,DETAIL,   ,   ,   ,ABBOTT JESSICA A.,12/1/2017,12/31/2017,WORKFORCE ANALYST,11578.33,2017
,FISCAL YEAR 2018 CHIEF ADMIN OFCR OF THE HOUSE,Q4,SALARIES  OFFICERS & EMPLOYEES,PERSONNEL COMPENSATION,DETAIL,   ,   ,   ,ABEL TIMOTHY,10/1/2017,12/31/2017,SR TECHNICAL SUPPORT REP (A),25751.75,2017
,FISCAL YEAR 2018 CHIEF ADMIN OFCR OF THE HOUSE,Q4,SALARIES  OFFICERS & EMPLOYEES,PERSONNEL COMPENSATION,DETAIL,   ,   ,   ,ABRAHAM JERMEL M,10/1/2017,12/31/2017,FINANCIAL ANALYST,18821.17,2017
,FISCAL YEAR 2018 CHIEF ADMIN OFCR OF THE HOUSE,Q4,SALARIES  OFFICERS & EMPLOYEES,PERSONNEL COMPENSATION,DETAIL,   ,   ,   ,ACUESTA JULY J,10/1/2017,12/31/2017,SENIOR SYSTEMS ENGINEER,29757.24,2017
,FISCAL YEAR 2018 CHIEF ADMIN OFCR OF THE HOUSE,Q4,SALARIES  OFFICERS & EMPLOYEES,PERSONNEL COMPENSATION,DETAIL,   ,   ,   ,ADDISON TRACY,10/4/2017,10/16/2017,LOGISTICS & DIST SPEC (A),2189.69,2017
,FISCAL YEAR 2018 CHIEF ADMIN OFCR OF THE HOUSE,Q4,SALARIES  OFFICERS & EMPLOYEES,PERSONNEL COMPENSATION,DETAIL,   ,   ,   ,ADDISON TRACY,10/1/2017,10/16/2017,LOGISTICS & DIST SPEC (A) (OTHER COMPENSATION),273.71,2017
,FISCAL YEAR 2018 CHIEF ADMIN OFCR OF THE HOUSE,Q4,SALARIES  OFFICERS & EMPLOYEES,PERSONNEL COMPENSATION,DETAIL,   ,   ,   ,ADELAKUN DEEN A.,10/1/2017,12/31/2017,SR TECH SOLUTIONS ENGINEER,24488.76,2017
,FISCAL YEAR 2018 CHIEF ADMIN OFCR OF THE HOUSE,Q4,SALARIES  OFFICERS & EMPLOYEES,PERSONNEL COMPENSATION,DETAIL,   ,   ,   ,ADENIJI ADERONKE F,10/1/2017,12/31/2017,DIRECTOR  INFORMATION ASSURANC,36786,2017
,FISCAL YEAR 2018 CHIEF ADMIN OFCR OF THE HOUSE,Q4,SALARIES  OFFICERS & EMPLOYEES,PERSONNEL COMPENSATION,DETAIL,   ,   ,   ,AGNEW ROSE M.,10/1/2017,12/31/2017,SR PAYROLL & BENS GENERALIST,22589.49,2017
,FISCAL YEAR 2018 CHIEF ADMIN OFCR OF THE HOUSE,Q4,SALARIES  OFFICERS & EMPLOYEES,PERSONNEL COMPENSATION,DETAIL,   ,   ,   ,AGNEW ROSE M.,10/1/2017,11/30/2017,SR PAYROLL & BENS GENERALIST (OVERTIME),1710.7,2017
,FISCAL YEAR 2018 CHIEF ADMIN OFCR OF THE HOUSE,Q4,SALARIES  OFFICERS & EMPLOYEES,PERSONNEL COMPENSATION,DETAIL,   ,   ,   ,AHMAD VIQUAR,10/1/2017,12/31/2017,ASSISTANT CAO,41090.49,2017
,FISCAL YEAR 2018 CHIEF ADMIN OFCR OF THE HOUSE,Q4,SALARIES  OFFICERS & EMPLOYEES,PERSONNEL COMPENSATION,DETAIL,   ,   ,   ,AHMED MUNEER,10/1/2017,12/31/2017,APPLICATION SYSTEMS ADMINISTRA,32375.25,2017
,FISCAL YEAR 2018 CHIEF ADMIN OFCR OF THE HOUSE,Q4,SALARIES  OFFICERS & EMPLOYEES,PERSONNEL COMPENSATION,DETAIL,   ,   ,   ,AHUJA KALPANA A.,10/1/2017,12/31/2017,DIRECTOR WEB SYSTEMS,36137.76,2017
,FISCAL YEAR 2018 CHIEF ADMIN OFCR OF THE HOUSE,Q4,SALARIES  OFFICERS & EMPLOYEES,PERSONNEL COMPENSATION,DETAIL,   ,   ,   ,AKULA MALLIKARJUNA R,10/1/2017,12/31/2017,SENIOR SOFTWARE SPECIALIST,34615.16,2017
,FISCAL YEAR 2018 CHIEF ADMIN OFCR OF THE HOUSE,Q4,SALARIES  OFFICERS & EMPLOYEES,PERSONNEL COMPENSATION,DETAIL,   ,   ,   ,ALEXANDER GORDON,10/1/2017,12/31/2017,TECH SOLUTIONS ENGINEER,19713,2017
,FISCAL YEAR 2018 CHIEF ADMIN OFCR OF THE HOUSE,Q4,SALARIES  OFFICERS & EMPLOYEES,PERSONNEL COMPENSATION,DETAIL,   ,   ,   ,ALLEN KEITH L,12/18/2017,12/31/2017,JOURNEYMAN CABINET MAKER,2227.37,2017
,FISCAL YEAR 2018 CHIEF ADMIN OFCR OF THE HOUSE,Q4,SALARIES  OFFICERS & EMPLOYEES,PERSONNEL COMPENSATION,DETAIL,   ,   ,   ,ALLEN PATRICK R,10/1/2017,12/31/2017,DIRECTOR BUSINESS CONTINUITY,37439.01,2017
,FISCAL YEAR 2018 CHIEF ADMIN OFCR OF THE HOUSE,Q4,SALARIES  OFFICERS & EMPLOYEES,PERSONNEL COMPENSATION,DETAIL,   ,   ,   ,ALLISON KEVIN M.,10/1/2017,12/31/2017,LOGISTICS & DIST SPEC (A),15003.99,2017
,FISCAL YEAR 2018 CHIEF ADMIN OFCR OF THE HOUSE,Q4,SALARIES  OFFICERS & EMPLOYEES,PERSONNEL COMPENSATION,DETAIL,   ,   ,   ,ALSTON MARK A,10/1/2017,12/31/2017,TECH SOLUTIONS ENGINEER,19298.01,2017
,FISCAL YEAR 2018 CHIEF ADMIN OFCR OF THE HOUSE,Q4,SALARIES  OFFICERS & EMPLOYEES,PERSONNEL COMPENSATION,DETAIL,   ,   ,   ,ALVEY LISA M.,10/1/2017,12/31/2017,FINANCIAL COUNSELOR,22435.26,2017
,FISCAL YEAR 2018 CHIEF ADMIN OFCR OF THE HOUSE,Q4,SALARIES  OFFICERS & EMPLOYEES,PERSONNEL COMPENSATION,DETAIL,   ,   ,   ,ALVEY LISA M.,11/1/2017,11/30/2017,FINANCIAL COUNSELOR (OVERTIME),86.29,2017
,FISCAL YEAR 2018 CHIEF ADMIN OFCR OF THE HOUSE,Q4,SALARIES  OFFICERS & EMPLOYEES,PERSONNEL COMPENSATION,DETAIL,   ,   ,   ,ANDERSEN FREDERIC E.,10/1/2017,12/31/2017,ASSISTANT DIRECTOR,24488.76,2017
,FISCAL YEAR 2018 CHIEF ADMIN OFCR OF THE HOUSE,Q4,SALARIES  OFFICERS & EMPLOYEES,PERSONNEL COMPENSATION,DETAIL,   ,   ,   ,ANDERSON DONTRELL,10/1/2017,12/31/2017,FINANCIAL COUNSELOR,18056.01,2017
,FISCAL YEAR 2018 CHIEF ADMIN OFCR OF THE HOUSE,Q4,SALARIES  OFFICERS & EMPLOYEES,PERSONNEL COMPENSATION,DETAIL,   ,   ,   ,ANDERSON DONTRELL,10/1/2017,10/31/2017,FINANCIAL COUNSELOR (OVERTIME),442.71,2017
,FISCAL YEAR 2018 CHIEF ADMIN OFCR OF THE HOUSE,Q4,SALARIES  OFFICERS & EMPLOYEES,PERSONNEL COMPENSATION,DETAIL,   ,   ,   ,ANDERSON TIARA S,12/4/2017,12/31/2017,EMPLOYEE ASSISTANCE COUNSELOR,5189.31,2017
,FISCAL YEAR 2018 CHIEF ADMIN OFCR OF THE HOUSE,Q4,SALARIES  OFFICERS & EMPLOYEES,PERSONNEL COMPENSATION,DETAIL,   ,   ,   ,ANDREWS THOMAS,10/1/2017,12/31/2017,VOICE & VIDEO BRANCH MGR (A),36786,2017
,FISCAL YEAR 2018 CHIEF ADMIN OFCR OF THE HOUSE,Q4,SALARIES  OFFICERS & EMPLOYEES,PERSONNEL COMPENSATION,DETAIL,   ,   ,   ,ANTHONY TONY,10/1/2017,12/31/2017,PROD/ENGINEER SPEC TEMP,11826.41,2017
,FISCAL YEAR 2018 CHIEF ADMIN OFCR OF THE HOUSE,Q4,SALARIES  OFFICERS & EMPLOYEES,PERSONNEL COMPENSATION,DETAIL,   ,   ,   ,APPIAH JOYCE S,10/1/2017,12/31/2017,SENIOR BENEFITS SPECIALIST,27620.76,2017
,FISCAL YEAR 2018 CHIEF ADMIN OFCR OF THE HOUSE,Q4,SALARIES  OFFICERS & EMPLOYEES,PERSONNEL COMPENSATION,DETAIL,   ,   ,   ,ARMSTRONG JANCIERA C,10/1/2017,12/31/2017,BUDGET ANALYST,29048.25,2017
,FISCAL YEAR 2018 CHIEF ADMIN OFCR OF THE HOUSE,Q4,SALARIES  OFFICERS & EMPLOYEES,PERSONNEL COMPENSATION,DETAIL,   ,   ,   ,ARTHUR CAMILLA S.,10/1/2017,12/31/2017,SENIOR ADVISOR,42102.75,2017
,FISCAL YEAR 2018 CHIEF ADMIN OFCR OF THE HOUSE,Q4,SALARIES  OFFICERS & EMPLOYEES,PERSONNEL COMPENSATION,DETAIL,   ,   ,   ,ASATA HEATHER O,10/1/2017,12/31/2017,EXECUTIVE ASSISTANT,18960.83,2017
,FISCAL YEAR 2018 CHIEF ADMIN OFCR OF THE HOUSE,Q4,SALARIES  OFFICERS & EMPLOYEES,PERSONNEL COMPENSATION,DETAIL,   ,   ,   ,ATCHISON DARRYL A.,10/1/2017,12/31/2017,DEPUTY CHIEF ENGINEER,34145.25,2017
,FISCAL YEAR 2018 CHIEF ADMIN OFCR OF THE HOUSE,Q4,SALARIES  OFFICERS & EMPLOYEES,PERSONNEL COMPENSATION,DETAIL,   ,   ,   ,AWAN OMAR,10/1/2017,12/31/2017,DIRECTOR OF STRATEGY,40050.99,2017
,FISCAL YEAR 2018 CHIEF ADMIN OFCR OF THE HOUSE,Q4,SALARIES  OFFICERS & EMPLOYEES,PERSONNEL COMPENSATION,DETAIL,   ,   ,   ,BAHAM TODD,10/1/2017,12/31/2017,BROADCAST PRODUCTION TECHNICIA,20766.24,2017
,FISCAL YEAR 2018 CHIEF ADMIN OFCR OF THE HOUSE,Q4,SALARIES  OFFICERS & EMPLOYEES,PERSONNEL COMPENSATION,DETAIL,   ,   ,   ,BAHAM TODD,10/1/2017,11/30/2017,BROADCAST PRODUCTION TECHNICIA (OVERTIME),1717.19,2017
,FISCAL YEAR 2018 CHIEF ADMIN OFCR OF THE HOUSE,Q4,SALARIES  OFFICERS & EMPLOYEES,PERSONNEL COMPENSATION,DETAIL,   ,   ,   ,BAILEY DAVID E.,10/1/2017,12/31/2017,SR TECHNICAL SUPPORT REP (A),26382.75,2017
,FISCAL YEAR 2018 CHIEF ADMIN OFCR OF THE HOUSE,Q4,SALARIES  OFFICERS & EMPLOYEES,PERSONNEL COMPENSATION,DETAIL,   ,   ,   ,BAKER DARRELL F.,10/1/2017,12/31/2017,SR NETWORK COMM SPEC,28673.49,2017
,FISCAL YEAR 2018 CHIEF ADMIN OFCR OF THE HOUSE,Q4,SALARIES  OFFICERS & EMPLOYEES,PERSONNEL COMPENSATION,DETAIL,   ,   ,   ,BANFIELD KELLI C,10/1/2017,12/31/2017,BROADCAST ENGINEER/PROD SPEC.,23539.5,2017
,FISCAL YEAR 2018 CHIEF ADMIN OFCR OF THE HOUSE,Q4,SALARIES  OFFICERS & EMPLOYEES,PERSONNEL COMPENSATION,DETAIL,   ,   ,   ,BANKS BIANCA N,10/1/2017,12/31/2017,MANAGER,21640.74,2017
,FISCAL YEAR 2018 CHIEF ADMIN OFCR OF THE HOUSE,Q4,SALARIES  OFFICERS & EMPLOYEES,PERSONNEL COMPENSATION,DETAIL,   ,   ,   ,BARBEE GLENN,10/1/2017,12/31/2017,NETWORK TECHNICIAN,24012.24,2017
,FISCAL YEAR 2018 CHIEF ADMIN OFCR OF THE HOUSE,Q4,SALARIES  OFFICERS & EMPLOYEES,PERSONNEL COMPENSATION,DETAIL,   ,   ,   ,BARBEE DONELL G,10/1/2017,12/31/2017,RETAIL INVENTORY SPECIALIST,11376.99,2017
,FISCAL YEAR 2018 CHIEF ADMIN OFCR OF THE HOUSE,Q4,SALARIES  OFFICERS & EMPLOYEES,PERSONNEL COMPENSATION,DETAIL,   ,   ,   ,BARBOUR JUNE M.,10/1/2017,12/31/2017,BROADCAST PRODUCTION TECHNICIA,20766.24,2017
,FISCAL YEAR 2018 CHIEF ADMIN OFCR OF THE HOUSE,Q4,SALARIES  OFFICERS & EMPLOYEES,PERSONNEL COMPENSATION,DETAIL,   ,   ,   ,BARBOUR JUNE M.,10/1/2017,10/31/2017,BROADCAST PRODUCTION TECHNICIA (OVERTIME),139.77,2017
,FISCAL YEAR 2018 CHIEF ADMIN OFCR OF THE HOUSE,Q4,SALARIES  OFFICERS & EMPLOYEES,PERSONNEL COMPENSATION,DETAIL,   ,   ,   ,BARCINIAK DANA L.,10/1/2017,12/31/2017,OFFICE MANAGER,24127.76,2017
,FISCAL YEAR 2018 CHIEF ADMIN OFCR OF THE HOUSE,Q4,SALARIES  OFFICERS & EMPLOYEES,PERSONNEL COMPENSATION,DETAIL,   ,   ,   ,BAREFOOT JEFFREY,10/1/2017,12/31/2017,BROADCAST ENGINEER/PROD SPEC.,22117.5,2017
,FISCAL YEAR 2018 CHIEF ADMIN OFCR OF THE HOUSE,Q4,SALARIES  OFFICERS & EMPLOYEES,PERSONNEL COMPENSATION,DETAIL,   ,   ,   ,BAREFOOT JEFFREY,11/1/2017,11/30/2017,BROADCAST ENGINEER/PROD SPEC. (OVERTIME),170.13,2017
,FISCAL YEAR 2018 CHIEF ADMIN OFCR OF THE HOUSE,Q4,SALARIES  OFFICERS & EMPLOYEES,PERSONNEL COMPENSATION,DETAIL,   ,   ,   ,BARNABAE MONICA M.,10/1/2017,12/31/2017,DIRECTOR-HOUSE CHILD CARE CNTR,29757.24,2017
,FISCAL YEAR 2018 CHIEF ADMIN OFCR OF THE HOUSE,Q4,SALARIES  OFFICERS & EMPLOYEES,PERSONNEL COMPENSATION,DETAIL,   ,   ,   ,BARR PAUL,10/1/2017,12/31/2017,SUPERVISOR LOGISTICS & DIST (A,16812.51,2017
,FISCAL YEAR 2018 CHIEF ADMIN OFCR OF THE HOUSE,Q4,SALARIES  OFFICERS & EMPLOYEES,PERSONNEL COMPENSATION,DETAIL,   ,   ,   ,BARRETT ROBERT R.,10/1/2017,12/31/2017,DIRECTOR  ENTERPRISE APPLICATI,41427.91,2017
,FISCAL YEAR 2018 CHIEF ADMIN OFCR OF THE HOUSE,Q4,SALARIES  OFFICERS & EMPLOYEES,PERSONNEL COMPENSATION,DETAIL,   ,   ,   ,BARTON TISHA R,10/1/2017,12/31/2017,SPECIAL ASSISTANT,22117.5,2017
,FISCAL YEAR 2018 CHIEF ADMIN OFCR OF THE HOUSE,Q4,SALARIES  OFFICERS & EMPLOYEES,PERSONNEL COMPENSATION,DETAIL,   ,   ,   ,BASILIO TYRONE A.,10/1/2017,12/31/2017,TECHNICAL SUPPORT REP,21183.99,2017
,FISCAL YEAR 2018 CHIEF ADMIN OFCR OF THE HOUSE,Q4,SALARIES  OFFICERS & EMPLOYEES,PERSONNEL COMPENSATION,DETAIL,   ,   ,   ,BATES DEBORAH A.,10/1/2017,12/31/2017,PRODUCTION/ENGINEER SPEC (TEMP,13247.46,2017
,FISCAL YEAR 2018 CHIEF ADMIN OFCR OF THE HOUSE,Q4,SALARIES  OFFICERS & EMPLOYEES,PERSONNEL COMPENSATION,DETAIL,   ,   ,   ,BATH GEORGE J,10/1/2017,12/31/2017,SENIOR ADVISOR,42102.75,2017
,FISCAL YEAR 2018 CHIEF ADMIN OFCR OF THE HOUSE,Q4,SALARIES  OFFICERS & EMPLOYEES,PERSONNEL COMPENSATION,DETAIL,   ,   ,   ,BEARDSLEE  LEAH,10/1/2017,12/15/2017,DIGITAL MEDIA COORDINATOR,13666.45,2017
,FISCAL YEAR 2018 CHIEF ADMIN OFCR OF THE HOUSE,Q4,SALARIES  OFFICERS & EMPLOYEES,PERSONNEL COMPENSATION,DETAIL,   ,   ,   ,BEARDSLEE  LEAH,12/1/2017,12/15/2017,DIGITAL MEDIA COORDINATOR (OTHER COMPENSATION),5466.58,2017
,FISCAL YEAR 2018 CHIEF ADMIN OFCR OF THE HOUSE,Q4,SALARIES  OFFICERS & EMPLOYEES,PERSONNEL COMPENSATION,DETAIL,   ,   ,   ,BEAUBIAN TRACI R.,10/1/2017,12/31/2017,CHIEF FINANCIAL OFFICER,42102.75,2017
,FISCAL YEAR 2018 CHIEF ADMIN OFCR OF THE HOUSE,Q4,SALARIES  OFFICERS & EMPLOYEES,PERSONNEL COMPENSATION,DETAIL,   ,   ,   ,BELL FRANK E,10/1/2017,12/31/2017,SENIOR TECHNICAL ADVISOR,36569.92,2017
,FISCAL YEAR 2018 CHIEF ADMIN OFCR OF THE HOUSE,Q4,SALARIES  OFFICERS & EMPLOYEES,PERSONNEL COMPENSATION,DETAIL,   ,   ,   ,BENN PHILLIP F.,10/1/2017,12/31/2017,ELECTRONICS TECHNICIAN (A),24963.99,2017
,FISCAL YEAR 2018 CHIEF ADMIN OFCR OF THE HOUSE,Q4,SALARIES  OFFICERS & EMPLOYEES,PERSONNEL COMPENSATION,DETAIL,   ,   ,   ,BENN PHILLIP F.,11/1/2017,11/30/2017,ELECTRONICS TECHNICIAN (A) (OVERTIME),468.07,2017
,FISCAL YEAR 2018 CHIEF ADMIN OFCR OF THE HOUSE,Q4,SALARIES  OFFICERS & EMPLOYEES,PERSONNEL COMPENSATION,DETAIL,   ,   ,   ,BERGER DONALD W.,10/1/2017,12/31/2017,TECHNICAL DIRECTOR (A),25240.5,2017
,FISCAL YEAR 2018 CHIEF ADMIN OFCR OF THE HOUSE,Q4,SALARIES  OFFICERS & EMPLOYEES,PERSONNEL COMPENSATION,DETAIL,   ,   ,   ,BERGER DONALD W.,10/1/2017,11/30/2017,TECHNICAL DIRECTOR (A) (OVERTIME),72.81,2017
,FISCAL YEAR 2018 CHIEF ADMIN OFCR OF THE HOUSE,Q4,SALARIES  OFFICERS & EMPLOYEES,PERSONNEL COMPENSATION,DETAIL,   ,   ,   ,BESSAHA NABIL,10/1/2017,12/31/2017,SR INFO SYS SEC ANALYST,27049.74,2017
,FISCAL YEAR 2018 CHIEF ADMIN OFCR OF THE HOUSE,Q4,SALARIES  OFFICERS & EMPLOYEES,PERSONNEL COMPENSATION,DETAIL,   ,   ,   ,BEST CHARLENE,10/1/2017,12/31/2017,MANAGER (HOUSE ASSET SERVICES),25715.76,2017
,FISCAL YEAR 2018 CHIEF ADMIN OFCR OF THE HOUSE,Q4,SALARIES  OFFICERS & EMPLOYEES,PERSONNEL COMPENSATION,DETAIL,   ,   ,   ,BETHEA LASHON L,10/1/2017,11/9/2017,TECHNICAL TRAINER,11762.18,2017
,FISCAL YEAR 2018 CHIEF ADMIN OFCR OF THE HOUSE,Q4,SALARIES  OFFICERS & EMPLOYEES,PERSONNEL COMPENSATION,DETAIL,   ,   ,   ,BETHEA LASHON L,11/1/2017,11/9/2017,TECHNICAL TRAINER (OTHER COMPENSATION),9047.83,2017
,FISCAL YEAR 2018 CHIEF ADMIN OFCR OF THE HOUSE,Q4,SALARIES  OFFICERS & EMPLOYEES,PERSONNEL COMPENSATION,DETAIL,   ,   ,   ,BICKHAM ANDREW J,11/14/2017,12/31/2017,BUSINESS PROCESS ANALYST,11301.28,2017
,FISCAL YEAR 2018 CHIEF ADMIN OFCR OF THE HOUSE,Q4,SALARIES  OFFICERS & EMPLOYEES,PERSONNEL COMPENSATION,DETAIL,   ,   ,   ,BILLARD MICHAEL A.,10/1/2017,12/31/2017,COMMUNICATIONS SPEC,27143.49,2017
,FISCAL YEAR 2018 CHIEF ADMIN OFCR OF THE HOUSE,Q4,SALARIES  OFFICERS & EMPLOYEES,PERSONNEL COMPENSATION,DETAIL,   ,   ,   ,BILLUPS BRIAN E.,10/1/2017,12/31/2017,NETWORK TECHNICIAN (A),21183.99,2017
,FISCAL YEAR 2018 CHIEF ADMIN OFCR OF THE HOUSE,Q4,SALARIES  OFFICERS & EMPLOYEES,PERSONNEL COMPENSATION,DETAIL,   ,   ,   ,BINSTED ANNE M,10/1/2017,12/31/2017,CHIEF OF STAFF,42102.75,2017
,FISCAL YEAR 2018 CHIEF ADMIN OFCR OF THE HOUSE,Q4,SALARIES  OFFICERS & EMPLOYEES,PERSONNEL COMPENSATION,DETAIL,   ,   ,   ,BLACKERBY BRUCE A,10/1/2017,12/31/2017,INFORMATION SYS SEC ANALYST,24762.99,2017
,FISCAL YEAR 2018 CHIEF ADMIN OFCR OF THE HOUSE,Q4,SALARIES  OFFICERS & EMPLOYEES,PERSONNEL COMPENSATION,DETAIL,   ,   ,   ,BLAKLEY JEFFREY S,10/1/2017,12/31/2017,DIRECTOR DIGITAL MEDIA SERVICE,30609.75,2017
,FISCAL YEAR 2018 CHIEF ADMIN OFCR OF THE HOUSE,Q4,SALARIES  OFFICERS & EMPLOYEES,PERSONNEL COMPENSATION,DETAIL,   ,   ,   ,BLAKNEY HAROLD,10/1/2017,12/31/2017,SENIOR SYSTEMS ENGINEER,40050.99,2017
,FISCAL YEAR 2018 CHIEF ADMIN OFCR OF THE HOUSE,Q4,SALARIES  OFFICERS & EMPLOYEES,PERSONNEL COMPENSATION,DETAIL,   ,   ,   ,BOB DARREL,10/1/2017,12/31/2017,PAYROLL & BENEFITS GENERALIST,18056.01,2017
,FISCAL YEAR 2018 CHIEF ADMIN OFCR OF THE HOUSE,Q4,SALARIES  OFFICERS & EMPLOYEES,PERSONNEL COMPENSATION,DETAIL,   ,   ,   ,BOGAN DAVID S.,10/1/2017,12/31/2017,SUPERVISOR  RETAIL INVENTORY,21183.99,2017
,FISCAL YEAR 2018 CHIEF ADMIN OFCR OF THE HOUSE,Q4,SALARIES  OFFICERS & EMPLOYEES,PERSONNEL COMPENSATION,DETAIL,   ,   ,   ,BOGER KELLY M.,10/1/2017,12/31/2017,SUPERVISOR  ASSET/INVENTORY,23539.5,2017
,FISCAL YEAR 2018 CHIEF ADMIN OFCR OF THE HOUSE,Q4,SALARIES  OFFICERS & EMPLOYEES,PERSONNEL COMPENSATION,DETAIL,   ,   ,   ,BOLDIG CHRISTOPHER R.,10/1/2017,12/31/2017,ASSOCIATE ADMIN. COUNSEL,32375.25,2017
,FISCAL YEAR 2018 CHIEF ADMIN OFCR OF THE HOUSE,Q4,SALARIES  OFFICERS & EMPLOYEES,PERSONNEL COMPENSATION,DETAIL,   ,   ,   ,BOOKER CARLOS,10/1/2017,12/31/2017,SALES SPECIALIST,11376.99,2017
,FISCAL YEAR 2018 CHIEF ADMIN OFCR OF THE HOUSE,Q4,SALARIES  OFFICERS & EMPLOYEES,PERSONNEL COMPENSATION,DETAIL,   ,   ,   ,BOONE RUSSELL,10/1/2017,12/31/2017,SR TECHNICAL SUPPORT REP,24287.01,2017
,FISCAL YEAR 2018 CHIEF ADMIN OFCR OF THE HOUSE,Q4,SALARIES  OFFICERS & EMPLOYEES,PERSONNEL COMPENSATION,DETAIL,   ,   ,   ,BOUNDS JAZMINE R,12/18/2017,12/31/2017,SALES SPECIALIST,1371.61,2017
,FISCAL YEAR 2018 CHIEF ADMIN OFCR OF THE HOUSE,Q4,SALARIES  OFFICERS & EMPLOYEES,PERSONNEL COMPENSATION,DETAIL,   ,   ,   ,BOWERS KAREN L,10/1/2017,12/31/2017,MANAGER,24287.01,2017
,FISCAL YEAR 2018 CHIEF ADMIN OFCR OF THE HOUSE,Q4,SALARIES  OFFICERS & EMPLOYEES,PERSONNEL COMPENSATION,DETAIL,   ,   ,   ,BOWLDING SONIA R.,10/1/2017,12/31/2017,REC/WAREHOUSE SPEC (A),12317.01,2017
,FISCAL YEAR 2018 CHIEF ADMIN OFCR OF THE HOUSE,Q4,SALARIES  OFFICERS & EMPLOYEES,PERSONNEL COMPENSATION,DETAIL,   ,   ,   ,BOWLING-STOKES CHAUNETTE L,10/1/2017,12/31/2017,MANAGEMENT ANALYST,25715.76,2017
,FISCAL YEAR 2018 CHIEF ADMIN OFCR OF THE HOUSE,Q4,SALARIES  OFFICERS & EMPLOYEES,PERSONNEL COMPENSATION,DETAIL,   ,   ,   ,BOWMAN SHELIA,10/1/2017,12/31/2017,FINANCIAL COUNSELOR,18056.01,2017
,FISCAL YEAR 2018 CHIEF ADMIN OFCR OF THE HOUSE,Q4,SALARIES  OFFICERS & EMPLOYEES,PERSONNEL COMPENSATION,DETAIL,   ,   ,   ,BOYD KRISTIE N.,10/1/2017,11/30/2017,PHOTOGRAPHER/LAB TECH (TEMP),8132.53,2017
,FISCAL YEAR 2018 CHIEF ADMIN OFCR OF THE HOUSE,Q4,SALARIES  OFFICERS & EMPLOYEES,PERSONNEL COMPENSATION,DETAIL,   ,   ,   ,BOYD PETRINA,10/1/2017,12/31/2017,SALES SPECIALIST,12809.01,2017
,FISCAL YEAR 2018 CHIEF ADMIN OFCR OF THE HOUSE,Q4,SALARIES  OFFICERS & EMPLOYEES,PERSONNEL COMPENSATION,DETAIL,   ,   ,   ,BOYLE KEVIN J.,10/1/2017,12/31/2017,SR BUSINESS  PROCESS APPL SPEC,41357.76,2017
,FISCAL YEAR 2018 CHIEF ADMIN OFCR OF THE HOUSE,Q4,SALARIES  OFFICERS & EMPLOYEES,PERSONNEL COMPENSATION,DETAIL,   ,   ,   ,BRACKENS ROBERT,10/1/2017,12/31/2017,BROADCAST PRODUCTION TECHNICIA,23539.5,2017
,FISCAL YEAR 2018 CHIEF ADMIN OFCR OF THE HOUSE,Q4,SALARIES  OFFICERS & EMPLOYEES,PERSONNEL COMPENSATION,DETAIL,   ,   ,   ,BRACKENS ROBERT,10/1/2017,11/30/2017,BROADCAST PRODUCTION TECHNICIA (OVERTIME),543.21,2017
,FISCAL YEAR 2018 CHIEF ADMIN OFCR OF THE HOUSE,Q4,SALARIES  OFFICERS & EMPLOYEES,PERSONNEL COMPENSATION,DETAIL,   ,   ,   ,BRADLEY NATHANIEL R,10/1/2017,10/31/2017,DIRECTOR  TECHNOLOGY SUPPORT,11611.58,2017
,FISCAL YEAR 2018 CHIEF ADMIN OFCR OF THE HOUSE,Q4,SALARIES  OFFICERS & EMPLOYEES,PERSONNEL COMPENSATION,DETAIL,   ,   ,   ,BRADLEY NATHANIEL R,11/1/2017,12/31/2017,DIRECTOR  HELP DESK OPERATIONS,23655,2017
,FISCAL YEAR 2018 CHIEF ADMIN OFCR OF THE HOUSE,Q4,SALARIES  OFFICERS & EMPLOYEES,PERSONNEL COMPENSATION,DETAIL,   ,   ,   ,BRADY JOHN R,10/1/2017,12/31/2017,APPRENTICE UPHOLSTERER,13260.24,2017
,FISCAL YEAR 2018 CHIEF ADMIN OFCR OF THE HOUSE,Q4,SALARIES  OFFICERS & EMPLOYEES,PERSONNEL COMPENSATION,DETAIL,   ,   ,   ,BRAXTON BRANDON A.,10/1/2017,12/31/2017,REC/WAREHOUSE SPEC (A),12809.01,2017
,FISCAL YEAR 2018 CHIEF ADMIN OFCR OF THE HOUSE,Q4,SALARIES  OFFICERS & EMPLOYEES,PERSONNEL COMPENSATION,DETAIL,   ,   ,   ,BREWSTER III JAMES E,10/1/2017,12/31/2017,LOGISTICS & DIST SPEC (A),10124.76,2017
,FISCAL YEAR 2018 CHIEF ADMIN OFCR OF THE HOUSE,Q4,SALARIES  OFFICERS & EMPLOYEES,PERSONNEL COMPENSATION,DETAIL,   ,   ,   ,BREWSTER CHRISTOPHER A,10/1/2017,12/31/2017,ADMINISTRATIVE COUNSEL,42102.75,2017
,FISCAL YEAR 2018 CHIEF ADMIN OFCR OF THE HOUSE,Q4,SALARIES  OFFICERS & EMPLOYEES,PERSONNEL COMPENSATION,DETAIL,   ,   ,   ,BRIDGEFORTH TOINETTA A.,10/1/2017,12/31/2017,SENIOR CONTRACTS SPECIALIST,27592.26,2017
,FISCAL YEAR 2018 CHIEF ADMIN OFCR OF THE HOUSE,Q4,SALARIES  OFFICERS & EMPLOYEES,PERSONNEL COMPENSATION,DETAIL,   ,   ,   ,BRISCOE KEVIN,10/1/2017,12/31/2017,LOGISTICS & DIST SPEC (A),12004.5,2017
,FISCAL YEAR 2018 CHIEF ADMIN OFCR OF THE HOUSE,Q4,SALARIES  OFFICERS & EMPLOYEES,PERSONNEL COMPENSATION,DETAIL,   ,   ,   ,BROBBEY-MENSAH KWAME,10/1/2017,12/31/2017,SR INFO SYST. SECURITY ANALYST,30839.49,2017
,FISCAL YEAR 2018 CHIEF ADMIN OFCR OF THE HOUSE,Q4,SALARIES  OFFICERS & EMPLOYEES,PERSONNEL COMPENSATION,DETAIL,   ,   ,   ,BROWN SR DEMETRICE T.,10/1/2017,12/31/2017,SR TECHNICAL SUPPORT REP,29048.25,2017
,FISCAL YEAR 2018 CHIEF ADMIN OFCR OF THE HOUSE,Q4,SALARIES  OFFICERS & EMPLOYEES,PERSONNEL COMPENSATION,DETAIL,   ,   ,   ,BROWN KEITH S.,10/1/2017,12/31/2017,APPRENTICE CABINET MAKER,15169.74,2017
,FISCAL YEAR 2018 CHIEF ADMIN OFCR OF THE HOUSE,Q4,SALARIES  OFFICERS & EMPLOYEES,PERSONNEL COMPENSATION,DETAIL,   ,   ,   ,BROWN PAMELA L.,10/1/2017,12/31/2017,CUSTOMER SOLUTIONS REP.,19713,2017
,FISCAL YEAR 2018 CHIEF ADMIN OFCR OF THE HOUSE,Q4,SALARIES  OFFICERS & EMPLOYEES,PERSONNEL COMPENSATION,DETAIL,   ,   ,   ,BROWN DAVID D,10/1/2017,12/31/2017,FINANCIAL COUNSELOR,18468.24,2017
,FISCAL YEAR 2018 CHIEF ADMIN OFCR OF THE HOUSE,Q4,SALARIES  OFFICERS & EMPLOYEES,PERSONNEL COMPENSATION,DETAIL,   ,   ,   ,BROWN DAVID D,10/1/2017,10/31/2017,FINANCIAL COUNSELOR (OVERTIME),53.27,2017
,FISCAL YEAR 2018 CHIEF ADMIN OFCR OF THE HOUSE,Q4,SALARIES  OFFICERS & EMPLOYEES,PERSONNEL COMPENSATION,DETAIL,   ,   ,   ,BROWN JASON,10/1/2017,12/31/2017,TECHNICAL DIRECTOR,23809.26,2017
,FISCAL YEAR 2018 CHIEF ADMIN OFCR OF THE HOUSE,Q4,SALARIES  OFFICERS & EMPLOYEES,PERSONNEL COMPENSATION,DETAIL,   ,   ,   ,BROWN JASON,10/1/2017,11/30/2017,TECHNICAL DIRECTOR (OVERTIME),457.86,2017
,FISCAL YEAR 2018 CHIEF ADMIN OFCR OF THE HOUSE,Q4,SALARIES  OFFICERS & EMPLOYEES,PERSONNEL COMPENSATION,DETAIL,   ,   ,   ,BROWN LAWRENCE,10/1/2017,12/31/2017,BROADCAST ENGINEER/PROD SPEC.,24012.24,2017
,FISCAL YEAR 2018 CHIEF ADMIN OFCR OF THE HOUSE,Q4,SALARIES  OFFICERS & EMPLOYEES,PERSONNEL COMPENSATION,DETAIL,   ,   ,   ,BRUMMELL JENELLE L,10/1/2017,12/31/2017,PARALEGAL,19932.24,2017
,FISCAL YEAR 2018 CHIEF ADMIN OFCR OF THE HOUSE,Q4,SALARIES  OFFICERS & EMPLOYEES,PERSONNEL COMPENSATION,DETAIL,   ,   ,   ,BUCKLER RICKY L.,10/1/2017,11/12/2017,CONTRACTS SPECIALIST,10764.6,2017
,FISCAL YEAR 2018 CHIEF ADMIN OFCR OF THE HOUSE,Q4,SALARIES  OFFICERS & EMPLOYEES,PERSONNEL COMPENSATION,DETAIL,   ,   ,   ,BUCKLER RICKY L.,11/13/2017,12/31/2017,BUSINESS PROC APPLIC SPEC,12698.27,2017
,FISCAL YEAR 2018 CHIEF ADMIN OFCR OF THE HOUSE,Q4,SALARIES  OFFICERS & EMPLOYEES,PERSONNEL COMPENSATION,DETAIL,   ,   ,   ,BUCKLER TROY D.,10/1/2017,12/31/2017,PURCHASING AGENT,17574.75,2017
,FISCAL YEAR 2018 CHIEF ADMIN OFCR OF THE HOUSE,Q4,SALARIES  OFFICERS & EMPLOYEES,PERSONNEL COMPENSATION,DETAIL,   ,   ,   ,BURCH KENNETH J.,10/1/2017,12/31/2017,BUSINESS PROC APPLIC SPEC,31921.26,2017
,FISCAL YEAR 2018 CHIEF ADMIN OFCR OF THE HOUSE,Q4,SALARIES  OFFICERS & EMPLOYEES,PERSONNEL COMPENSATION,DETAIL,   ,   ,   ,BURNHAM ELIZABETH,10/1/2017,12/31/2017,MEMBERS' SERVICES COUNSELOR,25240.5,2017
,FISCAL YEAR 2018 CHIEF ADMIN OFCR OF THE HOUSE,Q4,SALARIES  OFFICERS & EMPLOYEES,PERSONNEL COMPENSATION,DETAIL,   ,   ,   ,BURRIS JESSICA L,10/1/2017,12/31/2017,DIRECTOR FINANCIAL COUNSELING,31788.75,2017
,FISCAL YEAR 2018 CHIEF ADMIN OFCR OF THE HOUSE,Q4,SALARIES  OFFICERS & EMPLOYEES,PERSONNEL COMPENSATION,DETAIL,   ,   ,   ,BUTLER JAMES F.,10/1/2017,12/31/2017,DIRECTOR PAYROLL AND BENEFITS,34176,2017
,FISCAL YEAR 2018 CHIEF ADMIN OFCR OF THE HOUSE,Q4,SALARIES  OFFICERS & EMPLOYEES,PERSONNEL COMPENSATION,DETAIL,   ,   ,   ,CADE SANYA,10/1/2017,12/31/2017,ASSISTANT CAO,41090.49,2017
,FISCAL YEAR 2018 CHIEF ADMIN OFCR OF THE HOUSE,Q4,SALARIES  OFFICERS & EMPLOYEES,PERSONNEL COMPENSATION,DETAIL,   ,   ,   ,CALLAWAY ROBERT M.,10/1/2017,12/31/2017,SR BROADCAST ENG./PROD SPEC.,26189.49,2017
,FISCAL YEAR 2018 CHIEF ADMIN OFCR OF THE HOUSE,Q4,SALARIES  OFFICERS & EMPLOYEES,PERSONNEL COMPENSATION,DETAIL,   ,   ,   ,CAPPETTO RICHARD,10/1/2017,12/31/2017,CHIEF CUSTOMER OFFICER,42102.75,2017
,FISCAL YEAR 2018 CHIEF ADMIN OFCR OF THE HOUSE,Q4,SALARIES  OFFICERS & EMPLOYEES,PERSONNEL COMPENSATION,DETAIL,   ,   ,   ,CARABALLO MADELINE,10/1/2017,12/31/2017,INTERNET SYSTEMS SPECIALIST,20349,2017
,FISCAL YEAR 2018 CHIEF ADMIN OFCR OF THE HOUSE,Q4,SALARIES  OFFICERS & EMPLOYEES,PERSONNEL COMPENSATION,DETAIL,   ,   ,   ,CARCAMO ALICIA L.,10/1/2017,12/31/2017,ACCOUNTING TECHNICIAN,20955.75,2017
,FISCAL YEAR 2018 CHIEF ADMIN OFCR OF THE HOUSE,Q4,SALARIES  OFFICERS & EMPLOYEES,PERSONNEL COMPENSATION,DETAIL,   ,   ,   ,CARNEY MICHAEL T.,10/1/2017,12/31/2017,MANAGER (CAO COMPLIANCE),30297.99,2017
,FISCAL YEAR 2018 CHIEF ADMIN OFCR OF THE HOUSE,Q4,SALARIES  OFFICERS & EMPLOYEES,PERSONNEL COMPENSATION,DETAIL,   ,   ,   ,CARNNIA CASEY,10/1/2017,12/31/2017,INTERNET SYSTEMS SPECIALIST,24287.01,2017
,FISCAL YEAR 2018 CHIEF ADMIN OFCR OF THE HOUSE,Q4,SALARIES  OFFICERS & EMPLOYEES,PERSONNEL COMPENSATION,DETAIL,   ,   ,   ,CARPENTER CHRISTOPHER D,10/1/2017,12/15/2017,MEDIA LOGISTICS ASSISTANT,10450.62,2017
,FISCAL YEAR 2018 CHIEF ADMIN OFCR OF THE HOUSE,Q4,SALARIES  OFFICERS & EMPLOYEES,PERSONNEL COMPENSATION,DETAIL,   ,   ,   ,CARPENTER CHRISTOPHER D,12/16/2017,12/31/2017,DIGITAL MEDIA COORDINATOR,2390.83,2017
,FISCAL YEAR 2018 CHIEF ADMIN OFCR OF THE HOUSE,Q4,SALARIES  OFFICERS & EMPLOYEES,PERSONNEL COMPENSATION,DETAIL,   ,   ,   ,CARR JOSH D.,10/1/2017,12/31/2017,SENIOR SYSTEMS ENGINEER,27143.49,2017
,FISCAL YEAR 2018 CHIEF ADMIN OFCR OF THE HOUSE,Q4,SALARIES  OFFICERS & EMPLOYEES,PERSONNEL COMPENSATION,DETAIL,   ,   ,   ,CARRICO RONALD,10/1/2017,12/31/2017,SR BUSINESS  PROCESS APPL SPEC,39399,2017
,FISCAL YEAR 2018 CHIEF ADMIN OFCR OF THE HOUSE,Q4,SALARIES  OFFICERS & EMPLOYEES,PERSONNEL COMPENSATION,DETAIL,   ,   ,   ,CARSON LAWRENCE T,10/1/2017,12/31/2017,SALES SPECIALIST,11168.67,2017
,FISCAL YEAR 2018 CHIEF ADMIN OFCR OF THE HOUSE,Q4,SALARIES  OFFICERS & EMPLOYEES,PERSONNEL COMPENSATION,DETAIL,   ,   ,   ,CARTER JR JOHN L.,10/1/2017,12/31/2017,MANAGER  FINISHING/LOCKSMITH S,27620.76,2017
,FISCAL YEAR 2018 CHIEF ADMIN OFCR OF THE HOUSE,Q4,SALARIES  OFFICERS & EMPLOYEES,PERSONNEL COMPENSATION,DETAIL,   ,   ,   ,CARTER DELISA D,10/1/2017,12/31/2017,SR. SOFTWARE SPECIALIST,38093.76,2017
,FISCAL YEAR 2018 CHIEF ADMIN OFCR OF THE HOUSE,Q4,SALARIES  OFFICERS & EMPLOYEES,PERSONNEL COMPENSATION,DETAIL,   ,   ,   ,CHALETZKY ANA Y,10/1/2017,12/31/2017,MANAGER  ACCOUNTING,28134.75,2017
,FISCAL YEAR 2018 CHIEF ADMIN OFCR OF THE HOUSE,Q4,SALARIES  OFFICERS & EMPLOYEES,PERSONNEL COMPENSATION,DETAIL,   ,   ,   ,CHARGUALAF JESSE,10/1/2017,12/31/2017,BROADCAST ENGINEER/PROD SPEC.,22117.5,2017
,FISCAL YEAR 2018 CHIEF ADMIN OFCR OF THE HOUSE,Q4,SALARIES  OFFICERS & EMPLOYEES,PERSONNEL COMPENSATION,DETAIL,   ,   ,   ,CHARGUALAF JESSE,10/1/2017,11/30/2017,BROADCAST ENGINEER/PROD SPEC. (OVERTIME),308.37,2017
,FISCAL YEAR 2018 CHIEF ADMIN OFCR OF THE HOUSE,Q4,SALARIES  OFFICERS & EMPLOYEES,PERSONNEL COMPENSATION,DETAIL,   ,   ,   ,CHIU JIMMY,10/1/2017,12/31/2017,HRIS APPLICATIONS SYST ANALYST,28134.75,2017
,FISCAL YEAR 2018 CHIEF ADMIN OFCR OF THE HOUSE,Q4,SALARIES  OFFICERS & EMPLOYEES,PERSONNEL COMPENSATION,DETAIL,   ,   ,   ,CIANGO JACOB,10/1/2017,12/31/2017,APPLICATION SYSTEMS ADMINISTRA,33554.49,2017
,FISCAL YEAR 2018 CHIEF ADMIN OFCR OF THE HOUSE,Q4,SALARIES  OFFICERS & EMPLOYEES,PERSONNEL COMPENSATION,DETAIL,   ,   ,   ,CICALE MICHAEL P.,10/1/2017,12/31/2017,SR. CAPITOL SERVICE REP.,20955.75,2017
,FISCAL YEAR 2018 CHIEF ADMIN OFCR OF THE HOUSE,Q4,SALARIES  OFFICERS & EMPLOYEES,PERSONNEL COMPENSATION,DETAIL,   ,   ,   ,CICALE WILLIAM J,11/14/2017,12/31/2017,JOURNEYMAN UPHOLSTERER,7867.28,2017
,FISCAL YEAR 2018 CHIEF ADMIN OFCR OF THE HOUSE,Q4,SALARIES  OFFICERS & EMPLOYEES,PERSONNEL COMPENSATION,DETAIL,   ,   ,   ,CLARK MARION,10/1/2017,12/31/2017,SR TELECOMMUNICATIONS ADMIN,19298.01,2017
